Posting date,Supplier number,Supplier name,Expense type,Department,Amount
02/08/2022,1249077,The Advocacy Project,Hired and Contracted Services,ASC Procurement and Business Intelligenc,51294
05/08/2022,1248618,Riverside Echg,Payments to Voluntary bodies,ASC Procurement and Business Intelligenc,31500
21/09/2022,1263736,SERJCO LTD,Legal Costs,Adult Social Care Finance and Resources,1825
25/08/2022,1281952,Wilkin Chapman LLP,Legal Costs,Adult Social Care Finance and Resources,510
14/09/2022,1248886,Sherry Funeral Services Ltd T/a W,Hired and Contracted Services,Adult Social Care Finance and Resources,717
14/09/2022,1248886,Sherry Funeral Services Ltd T/a W,Other premises related costs,Adult Social Care Finance and Resources,2000
13/07/2022,1245228,Pohwer,Hired and Contracted Services,Adult Social Care Finance and Resources,1306.67
19/08/2022,1245228,Pohwer,Hired and Contracted Services,Adult Social Care Finance and Resources,1051.34
13/09/2022,1245228,Pohwer,Hired and Contracted Services,Adult Social Care Finance and Resources,1006.65
17/08/2022,1245982,Anchor Trust,Grant Aid and Donations,Adult Social Care Operations,27228
17/08/2022,1245091,Care UK Community Partnerships Ltd,Grant Aid and Donations,Adult Social Care Operations,72292.11
17/08/2022,1273817,GCH Alan Morkill House Ltd,Grant Aid and Donations,Adult Social Care Operations,27624.28
17/08/2022,1243532,Sanctuary Care Ltd,Grant Aid and Donations,Adult Social Care Operations,720.03
17/08/2022,1243548,St Georges Nursing Home Ltd,Grant Aid and Donations,Adult Social Care Operations,20785.11
17/08/2022,1249232,Vincentian Care Plus,Grant Aid and Donations,Adult Social Care Operations,5829.71
06/07/2022,1290804,Doro Care UK Ltd,###,Bi-Borough Director of Integrated Care,960
06/07/2022,1290804,Doro Care UK Ltd,###,Bi-Borough Director of Integrated Care,1680
03/08/2022,1290804,Doro Care UK Ltd,###,Bi-Borough Director of Integrated Care,1880
05/09/2022,1290804,Doro Care UK Ltd,###,Bi-Borough Director of Integrated Care,1400
05/09/2022,1290804,Doro Care UK Ltd,###,Bi-Borough Director of Integrated Care,11340
08/09/2022,1290804,Doro Care UK Ltd,###,Bi-Borough Director of Integrated Care,1908
08/08/2022,1292281,The Community Housing Group Limited,Hired and Contracted Services,Bi-Borough Director of Integrated Care,23268.76
15/09/2022,1292281,The Community Housing Group Limited,Hired and Contracted Services,Bi-Borough Director of Integrated Care,5859.47
03/08/2022,1246138,Tunstall Healthcare (UK) Ltd (Use,###,Bi-Borough Director of Integrated Care,7494
04/08/2022,1246138,Tunstall Healthcare (UK) Ltd (Use,###,Bi-Borough Director of Integrated Care,3747
08/09/2022,1273817,GCH Alan Morkill House Ltd,Hired and Contracted Services,Bi-Borough Director of Integrated Care,500000
29/09/2022,1246561,Church Army Marylebone Project,Payments to Private Contractors,Bi-Borough Director of Integrated Care,2056.26
29/09/2022,1246561,Church Army Marylebone Project,Payments to Private Contractors,Bi-Borough Director of Integrated Care,2499.76
29/09/2022,1245595,Skyguard Ltd,Security Costs,Bi-Borough Director of Integrated Care,7560
18/07/2022,D000000016,PERSONAL PAYMENTS,Recruitment Expenses (excl. advertising),Bi-Borough Director of Integrated Care,6094.8
07/07/2022,1260861,Old Square Chambers,Legal Costs,Bi-Borough Director of Integrated Care,600
30/09/2022,1246089,Better Group Ltd,Purchase of IT Equipment,Bi-Borough Director of Integrated Care,2104.08
30/09/2022,1246089,Better Group Ltd,Purchase of IT Equipment,Bi-Borough Director of Integrated Care,7812.19
30/09/2022,1246089,Better Group Ltd,Purchase of IT Equipment,Bi-Borough Director of Integrated Care,3166.54
14/09/2022,1292095,365 Care Solutions Ltd,,Bi-Borough Director of Integrated Care,1680.28
14/09/2022,1292095,365 Care Solutions Ltd,,Bi-Borough Director of Integrated Care,20251.58
29/07/2022,1255843,A.I. Care Services Ltd,,Bi-Borough Director of Integrated Care,6510.64
29/07/2022,1255843,A.I. Care Services Ltd,,Bi-Borough Director of Integrated Care,536.96
18/08/2022,1255843,A.I. Care Services Ltd,,Bi-Borough Director of Integrated Care,536.96
18/08/2022,1255843,A.I. Care Services Ltd,,Bi-Borough Director of Integrated Care,6477.08
15/09/2022,1255843,A.I. Care Services Ltd,,Bi-Borough Director of Integrated Care,6510.64
15/09/2022,1255843,A.I. Care Services Ltd,,Bi-Borough Director of Integrated Care,536.96
19/07/2022,1245929,The Regard Partnership Ltd,,Bi-Borough Director of Integrated Care,4011.4
19/07/2022,1245929,The Regard Partnership Ltd,,Bi-Borough Director of Integrated Care,9478.44
19/07/2022,1245929,The Regard Partnership Ltd,,Bi-Borough Director of Integrated Care,6346.64
16/08/2022,1245929,The Regard Partnership Ltd,,Bi-Borough Director of Integrated Care,9478.44
16/08/2022,1245929,The Regard Partnership Ltd,,Bi-Borough Director of Integrated Care,6346.64
16/08/2022,1245929,The Regard Partnership Ltd,,Bi-Borough Director of Integrated Care,4011.4
14/09/2022,1245929,The Regard Partnership Ltd,,Bi-Borough Director of Integrated Care,4011.4
14/09/2022,1245929,The Regard Partnership Ltd,,Bi-Borough Director of Integrated Care,9478.44
14/09/2022,1245929,The Regard Partnership Ltd,,Bi-Borough Director of Integrated Care,6346.64
19/07/2022,1271174,ASPECTS 2 LIMITED,,Bi-Borough Director of Integrated Care,8481.48
16/08/2022,1271174,ASPECTS 2 LIMITED,,Bi-Borough Director of Integrated Care,20610.8
14/09/2022,1271174,ASPECTS 2 LIMITED,,Bi-Borough Director of Integrated Care,4243.4
14/09/2022,1271174,ASPECTS 2 LIMITED,,Bi-Borough Director of Integrated Care,4243.4
19/07/2022,1243851,Accomplish Group Ltd,,Bi-Borough Director of Integrated Care,8877.4
19/07/2022,1243851,Accomplish Group Ltd,,Bi-Borough Director of Integrated Care,8877.4
16/08/2022,1243851,Accomplish Group Ltd,,Bi-Borough Director of Integrated Care,8877.4
16/08/2022,1243851,Accomplish Group Ltd,,Bi-Borough Director of Integrated Care,8877.4
14/09/2022,1243851,Accomplish Group Ltd,,Bi-Borough Director of Integrated Care,8877.4
14/09/2022,1243851,Accomplish Group Ltd,,Bi-Borough Director of Integrated Care,8877.4
19/07/2022,1243435,Acorn Village,,Bi-Borough Director of Integrated Care,5221.08
16/08/2022,1243435,Acorn Village,,Bi-Borough Director of Integrated Care,5221.08
14/09/2022,1243435,Acorn Village,,Bi-Borough Director of Integrated Care,5221.08
11/07/2022,1243931,Ashbourne Healthcare Services,,Bi-Borough Director of Integrated Care,2008.5
04/08/2022,1243931,Ashbourne Healthcare Services,,Bi-Borough Director of Integrated Care,695.5
09/08/2022,1243931,Ashbourne Healthcare Services,,Bi-Borough Director of Integrated Care,1703.22
08/09/2022,1243931,Ashbourne Healthcare Services,,Bi-Borough Director of Integrated Care,3711.5
21/09/2022,1243931,Ashbourne Healthcare Services,,Bi-Borough Director of Integrated Care,1703.22
21/09/2022,1243931,Ashbourne Healthcare Services,,Bi-Borough Director of Integrated Care,1023.53
23/09/2022,1243931,Ashbourne Healthcare Services,,Bi-Borough Director of Integrated Care,3298.91
19/07/2022,1243942,Aspens Charities,,Bi-Borough Director of Integrated Care,7000
16/08/2022,1243942,Aspens Charities,,Bi-Borough Director of Integrated Care,7000
14/09/2022,1243942,Aspens Charities,,Bi-Borough Director of Integrated Care,7000
19/07/2022,1243961,Autism Anglia,,Bi-Borough Director of Integrated Care,10644
16/08/2022,1243961,Autism Anglia,,Bi-Borough Director of Integrated Care,10644
14/09/2022,1243961,Autism Anglia,,Bi-Borough Director of Integrated Care,10644
08/09/2022,1246247,Blitz Home Environmental Cleaning,,Bi-Borough Director of Integrated Care,700
19/07/2022,1243445,Broadstreet House Limited,,Bi-Borough Director of Integrated Care,4303.24
16/08/2022,1243445,Broadstreet House Limited,,Bi-Borough Director of Integrated Care,4303.24
14/09/2022,1243445,Broadstreet House Limited,,Bi-Borough Director of Integrated Care,4303.24
19/07/2022,1246286,Brunswick Supported Living,,Bi-Borough Director of Integrated Care,2629.28
16/08/2022,1246286,Brunswick Supported Living,,Bi-Borough Director of Integrated Care,6385.39
14/09/2022,1246286,Brunswick Supported Living,,Bi-Borough Director of Integrated Care,1314.64
14/09/2022,1246286,Brunswick Supported Living,,Bi-Borough Director of Integrated Care,1314.64
19/07/2022,1273390,CHILTERN SUPPORT & HOUSING LTD,,Bi-Borough Director of Integrated Care,16536.72
16/08/2022,1273390,CHILTERN SUPPORT & HOUSING LTD,,Bi-Borough Director of Integrated Care,16536.72
14/09/2022,1273390,CHILTERN SUPPORT & HOUSING LTD,,Bi-Borough Director of Integrated Care,16536.72
19/07/2022,1244092,Cambrian Learning Disabilities Ltd,,Bi-Borough Director of Integrated Care,6094
16/08/2022,1244092,Cambrian Learning Disabilities Ltd,,Bi-Borough Director of Integrated Care,6094
14/09/2022,1244092,Cambrian Learning Disabilities Ltd,,Bi-Borough Director of Integrated Care,6094
19/07/2022,1246321,Camphill Village Trust,,Bi-Borough Director of Integrated Care,3981.08
16/08/2022,1246321,Camphill Village Trust,,Bi-Borough Director of Integrated Care,3981.08
14/09/2022,1246321,Camphill Village Trust,,Bi-Borough Director of Integrated Care,3981.08
19/07/2022,1246324,Candour Care Services (Broadview),,Bi-Borough Director of Integrated Care,7434.92
16/08/2022,1246324,Candour Care Services (Broadview),,Bi-Borough Director of Integrated Care,7434.92
14/09/2022,1246324,Candour Care Services (Broadview),,Bi-Borough Director of Integrated Care,7434.92
19/07/2022,1246327,Canterbury Oast Trust Ltd,,Bi-Borough Director of Integrated Care,3924.96
16/08/2022,1246327,Canterbury Oast Trust Ltd,,Bi-Borough Director of Integrated Care,1070.57
14/09/2022,1246327,Canterbury Oast Trust Ltd,,Bi-Borough Director of Integrated Care,1346.8
19/07/2022,1259100,Care Assist Limited,,Bi-Borough Director of Integrated Care,7761.6
19/07/2022,1259100,Care Assist Limited,,Bi-Borough Director of Integrated Care,7761.6
16/08/2022,1259100,Care Assist Limited,,Bi-Borough Director of Integrated Care,7761.6
16/08/2022,1259100,Care Assist Limited,,Bi-Borough Director of Integrated Care,7761.6
19/07/2022,1246339,Caretech Community Services Ltd,,Bi-Borough Director of Integrated Care,987.4
19/07/2022,1246339,Caretech Community Services Ltd,,Bi-Borough Director of Integrated Care,5765.52
19/07/2022,1246339,Caretech Community Services Ltd,,Bi-Borough Director of Integrated Care,20323.41
19/07/2022,1246339,Caretech Community Services Ltd,,Bi-Borough Director of Integrated Care,49722.42
16/08/2022,1246339,Caretech Community Services Ltd,,Bi-Borough Director of Integrated Care,5765.52
16/08/2022,1246339,Caretech Community Services Ltd,,Bi-Borough Director of Integrated Care,987.4
16/08/2022,1246339,Caretech Community Services Ltd,,Bi-Borough Director of Integrated Care,4711.16
16/08/2022,1246339,Caretech Community Services Ltd,,Bi-Borough Director of Integrated Care,4711.16
14/09/2022,1246339,Caretech Community Services Ltd,,Bi-Borough Director of Integrated Care,987.4
14/09/2022,1246339,Caretech Community Services Ltd,,Bi-Borough Director of Integrated Care,5765.52
14/09/2022,1246339,Caretech Community Services Ltd,,Bi-Borough Director of Integrated Care,4711.16
14/09/2022,1246339,Caretech Community Services Ltd,,Bi-Borough Director of Integrated Care,4711.16
16/08/2022,1246349,Caxton Youth Organisation,B*Distric Council non fee related servi,Bi-Borough Director of Integrated Care,865
16/08/2022,1246349,Caxton Youth Organisation,B*Distric Council non fee related servi,Bi-Borough Director of Integrated Care,865
16/08/2022,1246349,Caxton Youth Organisation,B*Distric Council non fee related servi,Bi-Borough Director of Integrated Care,865
14/09/2022,1246349,Caxton Youth Organisation,B*Distric Council non fee related servi,Bi-Borough Director of Integrated Care,865
19/07/2022,1276470,Certitude (Support for Living),,Bi-Borough Director of Integrated Care,12988.04
19/07/2022,1276470,Certitude (Support for Living),,Bi-Borough Director of Integrated Care,12278.76
19/07/2022,1276470,Certitude (Support for Living),,Bi-Borough Director of Integrated Care,8587.28
19/07/2022,1276470,Certitude (Support for Living),,Bi-Borough Director of Integrated Care,5372.08
19/07/2022,1276470,Certitude (Support for Living),,Bi-Borough Director of Integrated Care,2302.32
19/07/2022,1276470,Certitude (Support for Living),,Bi-Borough Director of Integrated Care,9630.92
19/07/2022,1276470,Certitude (Support for Living),,Bi-Borough Director of Integrated Care,17243.52
19/07/2022,1276470,Certitude (Support for Living),,Bi-Borough Director of Integrated Care,4489.32
19/07/2022,1276470,Certitude (Support for Living),,Bi-Borough Director of Integrated Care,5819.48
19/07/2022,1276470,Certitude (Support for Living),,Bi-Borough Director of Integrated Care,5793.04
19/07/2022,1276470,Certitude (Support for Living),,Bi-Borough Director of Integrated Care,5819.48
16/08/2022,1276470,Certitude (Support for Living),,Bi-Borough Director of Integrated Care,8587.28
16/08/2022,1276470,Certitude (Support for Living),,Bi-Borough Director of Integrated Care,12278.76
16/08/2022,1276470,Certitude (Support for Living),,Bi-Borough Director of Integrated Care,2302.32
16/08/2022,1276470,Certitude (Support for Living),,Bi-Borough Director of Integrated Care,5372.08
16/08/2022,1276470,Certitude (Support for Living),,Bi-Borough Director of Integrated Care,4489.32
16/08/2022,1276470,Certitude (Support for Living),,Bi-Borough Director of Integrated Care,5819.48
16/08/2022,1276470,Certitude (Support for Living),,Bi-Borough Director of Integrated Care,5819.48
16/08/2022,1276470,Certitude (Support for Living),,Bi-Borough Director of Integrated Care,17243.52
16/08/2022,1276470,Certitude (Support for Living),,Bi-Borough Director of Integrated Care,12988.04
14/09/2022,1276470,Certitude (Support for Living),,Bi-Borough Director of Integrated Care,4256.92
14/09/2022,1276470,Certitude (Support for Living),,Bi-Borough Director of Integrated Care,5819.48
14/09/2022,1276470,Certitude (Support for Living),,Bi-Borough Director of Integrated Care,17243.52
14/09/2022,1276470,Certitude (Support for Living),,Bi-Borough Director of Integrated Care,5372.08
14/09/2022,1276470,Certitude (Support for Living),,Bi-Borough Director of Integrated Care,2302.32
14/09/2022,1276470,Certitude (Support for Living),,Bi-Borough Director of Integrated Care,12988.04
14/09/2022,1276470,Certitude (Support for Living),,Bi-Borough Director of Integrated Care,4489.32
14/09/2022,1276470,Certitude (Support for Living),,Bi-Borough Director of Integrated Care,5819.48
14/09/2022,1276470,Certitude (Support for Living),,Bi-Borough Director of Integrated Care,12278.76
14/09/2022,1276470,Certitude (Support for Living),,Bi-Borough Director of Integrated Care,8587.28
19/07/2022,1293636,Choice Support,,Bi-Borough Director of Integrated Care,8936
02/08/2022,1293636,Choice Support,,Bi-Borough Director of Integrated Care,33684
02/08/2022,1293636,Choice Support,,Bi-Borough Director of Integrated Care,4798.64
05/08/2022,1293636,Choice Support,,Bi-Borough Director of Integrated Care,5071.92
16/08/2022,1293636,Choice Support,,Bi-Borough Director of Integrated Care,8936
16/08/2022,1293636,Choice Support,,Bi-Borough Director of Integrated Care,685.52
16/08/2022,1293636,Choice Support,,Bi-Borough Director of Integrated Care,4812
14/09/2022,1293636,Choice Support,,Bi-Borough Director of Integrated Care,8936
14/09/2022,1293636,Choice Support,,Bi-Borough Director of Integrated Care,685.52
14/09/2022,1293636,Choice Support,,Bi-Borough Director of Integrated Care,4812
08/09/2022,1244190,Clouds End Services Ltd,,Bi-Borough Director of Integrated Care,1600
19/07/2022,1243458,Cocklebury Farmhouse Homes Ltd,,Bi-Borough Director of Integrated Care,4952
19/07/2022,1243458,Cocklebury Farmhouse Homes Ltd,,Bi-Borough Director of Integrated Care,5568
19/07/2022,1243458,Cocklebury Farmhouse Homes Ltd,,Bi-Borough Director of Integrated Care,7028
19/07/2022,1243458,Cocklebury Farmhouse Homes Ltd,,Bi-Borough Director of Integrated Care,5536
19/07/2022,1243458,Cocklebury Farmhouse Homes Ltd,,Bi-Borough Director of Integrated Care,6408
16/08/2022,1243458,Cocklebury Farmhouse Homes Ltd,,Bi-Borough Director of Integrated Care,5536
16/08/2022,1243458,Cocklebury Farmhouse Homes Ltd,,Bi-Borough Director of Integrated Care,6408
16/08/2022,1243458,Cocklebury Farmhouse Homes Ltd,,Bi-Borough Director of Integrated Care,4952
16/08/2022,1243458,Cocklebury Farmhouse Homes Ltd,,Bi-Borough Director of Integrated Care,5568
16/08/2022,1243458,Cocklebury Farmhouse Homes Ltd,,Bi-Borough Director of Integrated Care,7028
14/09/2022,1243458,Cocklebury Farmhouse Homes Ltd,,Bi-Borough Director of Integrated Care,4952
14/09/2022,1243458,Cocklebury Farmhouse Homes Ltd,,Bi-Borough Director of Integrated Care,5568
14/09/2022,1243458,Cocklebury Farmhouse Homes Ltd,,Bi-Borough Director of Integrated Care,7028
14/09/2022,1243458,Cocklebury Farmhouse Homes Ltd,,Bi-Borough Director of Integrated Care,5536
14/09/2022,1243458,Cocklebury Farmhouse Homes Ltd,,Bi-Borough Director of Integrated Care,6408
19/07/2022,1280687,Community Integrated Care,,Bi-Borough Director of Integrated Care,10507.28
19/07/2022,1280687,Community Integrated Care,,Bi-Borough Director of Integrated Care,10507.28
19/07/2022,1280687,Community Integrated Care,,Bi-Borough Director of Integrated Care,5340.64
19/07/2022,1280687,Community Integrated Care,,Bi-Borough Director of Integrated Care,10493.84
19/07/2022,1280687,Community Integrated Care,,Bi-Borough Director of Integrated Care,5345.04
19/07/2022,1280687,Community Integrated Care,,Bi-Borough Director of Integrated Care,5340.64
19/07/2022,1280687,Community Integrated Care,,Bi-Borough Director of Integrated Care,7973.28
19/07/2022,1280687,Community Integrated Care,,Bi-Borough Director of Integrated Care,13014.4
16/08/2022,1280687,Community Integrated Care,,Bi-Borough Director of Integrated Care,10507.28
16/08/2022,1280687,Community Integrated Care,,Bi-Borough Director of Integrated Care,5340.64
16/08/2022,1280687,Community Integrated Care,,Bi-Borough Director of Integrated Care,10507.28
16/08/2022,1280687,Community Integrated Care,,Bi-Borough Director of Integrated Care,10493.84
16/08/2022,1280687,Community Integrated Care,,Bi-Borough Director of Integrated Care,7973.28
16/08/2022,1280687,Community Integrated Care,,Bi-Borough Director of Integrated Care,13014.4
16/08/2022,1280687,Community Integrated Care,,Bi-Borough Director of Integrated Care,5345.04
16/08/2022,1280687,Community Integrated Care,,Bi-Borough Director of Integrated Care,5340.64
14/09/2022,1280687,Community Integrated Care,,Bi-Borough Director of Integrated Care,5345.04
14/09/2022,1280687,Community Integrated Care,,Bi-Borough Director of Integrated Care,5340.64
14/09/2022,1280687,Community Integrated Care,,Bi-Borough Director of Integrated Care,10493.84
14/09/2022,1280687,Community Integrated Care,,Bi-Borough Director of Integrated Care,1876.3
14/09/2022,1280687,Community Integrated Care,,Bi-Borough Director of Integrated Care,10507.28
14/09/2022,1280687,Community Integrated Care,,Bi-Borough Director of Integrated Care,5340.64
19/07/2022,1244212,PERSONAL PAYMENTS,,Bi-Borough Director of Integrated Care,2526
19/07/2022,1244212,PERSONAL PAYMENTS,,Bi-Borough Director of Integrated Care,2526
19/07/2022,1244212,PERSONAL PAYMENTS,,Bi-Borough Director of Integrated Care,3320
19/07/2022,1244212,PERSONAL PAYMENTS,,Bi-Borough Director of Integrated Care,4316
16/08/2022,1244212,PERSONAL PAYMENTS,,Bi-Borough Director of Integrated Care,2526
16/08/2022,1244212,PERSONAL PAYMENTS,,Bi-Borough Director of Integrated Care,2526
16/08/2022,1244212,PERSONAL PAYMENTS,,Bi-Borough Director of Integrated Care,3320
16/08/2022,1244212,PERSONAL PAYMENTS,,Bi-Borough Director of Integrated Care,4316
14/09/2022,1244212,PERSONAL PAYMENTS,,Bi-Borough Director of Integrated Care,4316
14/09/2022,1244212,PERSONAL PAYMENTS,,Bi-Borough Director of Integrated Care,3320
14/09/2022,1244212,PERSONAL PAYMENTS,,Bi-Borough Director of Integrated Care,2526
14/09/2022,1244212,PERSONAL PAYMENTS,,Bi-Borough Director of Integrated Care,2526
30/09/2022,1247117,Derwen College,,Bi-Borough Director of Integrated Care,2671.43
19/07/2022,1243470,Downing (Chertsey Road) Ltd,,Bi-Borough Director of Integrated Care,5971.2
16/08/2022,1243470,Downing (Chertsey Road) Ltd,,Bi-Borough Director of Integrated Care,5971.2
14/09/2022,1243470,Downing (Chertsey Road) Ltd,,Bi-Borough Director of Integrated Care,5971.2
19/07/2022,1243474,Duckyls Farm Centre,,Bi-Borough Director of Integrated Care,2959.12
16/08/2022,1243474,Duckyls Farm Centre,,Bi-Borough Director of Integrated Care,2959.12
14/09/2022,1243474,Duckyls Farm Centre,,Bi-Borough Director of Integrated Care,2959.12
19/07/2022,1245108,Elysium Healthcare No 2 Ltd,,Bi-Borough Director of Integrated Care,8896.64
16/08/2022,1245108,Elysium Healthcare No 2 Ltd,,Bi-Borough Director of Integrated Care,8896.64
14/09/2022,1245108,Elysium Healthcare No 2 Ltd,,Bi-Borough Director of Integrated Care,8896.64
12/08/2022,1246934,Equal People Mencap (Kensington &,B*Voluntary-Spot-V Dep-Enhanced - do not u,Bi-Borough Director of Integrated Care,2700
27/09/2022,1246934,Equal People Mencap (Kensington &,B*Voluntary-Spot-V Dep-Enhanced - do not u,Bi-Borough Director of Integrated Care,2700
19/07/2022,1245110,Eric Patrick Care Ltd,,Bi-Borough Director of Integrated Care,7868
16/08/2022,1245110,Eric Patrick Care Ltd,,Bi-Borough Director of Integrated Care,7868
22/07/2022,1259597,Ethica Services LTD,,Bi-Borough Director of Integrated Care,1656
19/08/2022,1259597,Ethica Services LTD,,Bi-Borough Director of Integrated Care,1656
23/09/2022,1259597,Ethica Services LTD,,Bi-Borough Director of Integrated Care,1863
29/09/2022,1285826,Fircroft Services Limited,,Bi-Borough Director of Integrated Care,97230
19/07/2022,1243483,Greenview Healthcare Ltd,,Bi-Borough Director of Integrated Care,4471
16/08/2022,1243483,Greenview Healthcare Ltd,,Bi-Borough Director of Integrated Care,4471
14/09/2022,1243483,Greenview Healthcare Ltd,,Bi-Borough Director of Integrated Care,4471
19/07/2022,1243485,Grove Care Partnership Ltd,,Bi-Borough Director of Integrated Care,8623.52
16/08/2022,1243485,Grove Care Partnership Ltd,,Bi-Borough Director of Integrated Care,8623.52
14/09/2022,1243485,Grove Care Partnership Ltd,,Bi-Borough Director of Integrated Care,8623.52
19/07/2022,1258503,Guyatt House Care Limited,,Bi-Borough Director of Integrated Care,7081.16
16/08/2022,1258503,Guyatt House Care Limited,,Bi-Borough Director of Integrated Care,7081.16
14/09/2022,1258503,Guyatt House Care Limited,,Bi-Borough Director of Integrated Care,7081.16
06/07/2022,1244531,HCP Staffing Services Ltd,,Bi-Borough Director of Integrated Care,717.88
11/07/2022,1244531,HCP Staffing Services Ltd,,Bi-Borough Director of Integrated Care,717.88
02/08/2022,1244531,HCP Staffing Services Ltd,,Bi-Borough Director of Integrated Care,717.88
02/08/2022,1244531,HCP Staffing Services Ltd,,Bi-Borough Director of Integrated Care,717.88
03/08/2022,1244531,HCP Staffing Services Ltd,,Bi-Borough Director of Integrated Care,717.88
12/08/2022,1244531,HCP Staffing Services Ltd,,Bi-Borough Director of Integrated Care,717.88
12/08/2022,1244531,HCP Staffing Services Ltd,,Bi-Borough Director of Integrated Care,717.88
15/08/2022,1244531,HCP Staffing Services Ltd,,Bi-Borough Director of Integrated Care,717.88
22/08/2022,1244531,HCP Staffing Services Ltd,,Bi-Borough Director of Integrated Care,717.88
01/09/2022,1244531,HCP Staffing Services Ltd,,Bi-Borough Director of Integrated Care,717.88
02/09/2022,1244531,HCP Staffing Services Ltd,,Bi-Borough Director of Integrated Care,717.88
08/09/2022,1244531,HCP Staffing Services Ltd,,Bi-Borough Director of Integrated Care,717.88
27/09/2022,1244531,HCP Staffing Services Ltd,,Bi-Borough Director of Integrated Care,717.88
19/07/2022,1244549,HF Trust Ltd,,Bi-Borough Director of Integrated Care,15117.84
19/07/2022,1244549,HF Trust Ltd,,Bi-Borough Director of Integrated Care,3539.28
16/08/2022,1244549,HF Trust Ltd,B*Voluntary-Spot-V Dep-Enhanced - do not u,Bi-Borough Director of Integrated Care,552.6
16/08/2022,1244549,HF Trust Ltd,B*Voluntary-Spot-V Dep-Enhanced - do not u,Bi-Borough Director of Integrated Care,552.6
16/08/2022,1244549,HF Trust Ltd,B*Voluntary-Spot-V Dep-Enhanced - do not u,Bi-Borough Director of Integrated Care,552.6
16/08/2022,1244549,HF Trust Ltd,,Bi-Borough Director of Integrated Care,15117.84
16/08/2022,1244549,HF Trust Ltd,,Bi-Borough Director of Integrated Care,3539.28
14/09/2022,1244549,HF Trust Ltd,,Bi-Borough Director of Integrated Care,3698.52
14/09/2022,1244549,HF Trust Ltd,,Bi-Borough Director of Integrated Care,15117.84
19/07/2022,1244515,Hampshire Autistic Society,,Bi-Borough Director of Integrated Care,5307.08
16/08/2022,1244515,Hampshire Autistic Society,,Bi-Borough Director of Integrated Care,5307.08
14/09/2022,1244515,Hampshire Autistic Society,,Bi-Borough Director of Integrated Care,5307.08
19/07/2022,1243490,Haydon Park Lodge Ltd,,Bi-Borough Director of Integrated Care,4000
16/08/2022,1243490,Haydon Park Lodge Ltd,,Bi-Borough Director of Integrated Care,4000
14/09/2022,1243490,Haydon Park Lodge Ltd,,Bi-Borough Director of Integrated Care,4000
19/07/2022,1260257,Hazel Homes for Autism Ltd,,Bi-Borough Director of Integrated Care,861
19/07/2022,1260257,Hazel Homes for Autism Ltd,,Bi-Borough Director of Integrated Care,14885.24
16/08/2022,1260257,Hazel Homes for Autism Ltd,,Bi-Borough Director of Integrated Care,861
16/08/2022,1260257,Hazel Homes for Autism Ltd,,Bi-Borough Director of Integrated Care,14885.24
14/09/2022,1260257,Hazel Homes for Autism Ltd,,Bi-Borough Director of Integrated Care,861
14/09/2022,1260257,Hazel Homes for Autism Ltd,,Bi-Borough Director of Integrated Care,14885.24
19/07/2022,1245125,Heathcotes (Southern) Ltd,,Bi-Borough Director of Integrated Care,12189.16
16/08/2022,1245125,Heathcotes (Southern) Ltd,,Bi-Borough Director of Integrated Care,12189.16
14/09/2022,1245125,Heathcotes (Southern) Ltd,,Bi-Borough Director of Integrated Care,12189.16
23/08/2022,1254857,Hope Care Agency,,Bi-Borough Director of Integrated Care,939.68
23/08/2022,1254857,Hope Care Agency,,Bi-Borough Director of Integrated Care,1879.36
23/08/2022,1254857,Hope Care Agency,,Bi-Borough Director of Integrated Care,1879.36
19/07/2022,1267460,Hunters Lodge Care Home,,Bi-Borough Director of Integrated Care,3930.64
16/08/2022,1267460,Hunters Lodge Care Home,,Bi-Borough Director of Integrated Care,3930.64
14/09/2022,1267460,Hunters Lodge Care Home,,Bi-Borough Director of Integrated Care,3930.64
02/08/2022,1247526,Integrity Care and Support Ltd,B*Voluntary-Spot-V Dep-Enhanced - do not u,Bi-Borough Director of Integrated Care,681.02
02/08/2022,1247526,Integrity Care and Support Ltd,B*Voluntary-Spot-V Dep-Enhanced - do not u,Bi-Borough Director of Integrated Care,640.96
02/08/2022,1247526,Integrity Care and Support Ltd,B*Voluntary-Spot-V Dep-Enhanced - do not u,Bi-Borough Director of Integrated Care,781.17
02/08/2022,1247526,Integrity Care and Support Ltd,B*Voluntary-Spot-V Dep-Enhanced - do not u,Bi-Borough Director of Integrated Care,540.81
02/08/2022,1247526,Integrity Care and Support Ltd,B*Voluntary-Spot-V Dep-Enhanced - do not u,Bi-Borough Director of Integrated Care,1482.22
02/08/2022,1247526,Integrity Care and Support Ltd,B*Voluntary-Spot-V Dep-Enhanced - do not u,Bi-Borough Director of Integrated Care,1141.71
02/08/2022,1247526,Integrity Care and Support Ltd,B*Voluntary-Spot-V Dep-Enhanced - do not u,Bi-Borough Director of Integrated Care,520.78
02/08/2022,1247526,Integrity Care and Support Ltd,B*Voluntary-Spot-V Dep-Enhanced - do not u,Bi-Borough Director of Integrated Care,961.44
02/08/2022,1247526,Integrity Care and Support Ltd,B*Voluntary-Spot-V Dep-Enhanced - do not u,Bi-Borough Director of Integrated Care,961.44
02/08/2022,1247526,Integrity Care and Support Ltd,B*Voluntary-Spot-V Dep-Enhanced - do not u,Bi-Borough Director of Integrated Care,841.26
02/08/2022,1247526,Integrity Care and Support Ltd,B*Voluntary-Spot-V Dep-Enhanced - do not u,Bi-Borough Director of Integrated Care,640.96
02/08/2022,1247526,Integrity Care and Support Ltd,B*Voluntary-Spot-V Dep-Enhanced - do not u,Bi-Borough Director of Integrated Care,1682.52
02/08/2022,1247526,Integrity Care and Support Ltd,B*Voluntary-Spot-V Dep-Enhanced - do not u,Bi-Borough Director of Integrated Care,1442.16
02/08/2022,1247526,Integrity Care and Support Ltd,B*Voluntary-Spot-V Dep-Enhanced - do not u,Bi-Borough Director of Integrated Care,961.44
02/08/2022,1247526,Integrity Care and Support Ltd,B*Voluntary-Spot-V Dep-Enhanced - do not u,Bi-Borough Director of Integrated Care,921.38
02/08/2022,1247526,Integrity Care and Support Ltd,B*Voluntary-Spot-V Dep-Enhanced - do not u,Bi-Borough Director of Integrated Care,640.96
02/08/2022,1247526,Integrity Care and Support Ltd,B*Voluntary-Spot-V Dep-Enhanced - do not u,Bi-Borough Director of Integrated Care,881.32
02/08/2022,1247526,Integrity Care and Support Ltd,B*Voluntary-Spot-V Dep-Enhanced - do not u,Bi-Borough Director of Integrated Care,1472.2
02/08/2022,1247526,Integrity Care and Support Ltd,B*Voluntary-Spot-V Dep-Enhanced - do not u,Bi-Borough Director of Integrated Care,1061.59
02/08/2022,1247526,Integrity Care and Support Ltd,B*Voluntary-Spot-V Dep-Enhanced - do not u,Bi-Borough Director of Integrated Care,1121.68
02/08/2022,1247526,Integrity Care and Support Ltd,B*Voluntary-Spot-V Dep-Enhanced - do not u,Bi-Borough Director of Integrated Care,1522.28
08/09/2022,1247526,Integrity Care and Support Ltd,B*Voluntary-Spot-V Dep-Enhanced - do not u,Bi-Borough Director of Integrated Care,1161.74
08/09/2022,1247526,Integrity Care and Support Ltd,B*Voluntary-Spot-V Dep-Enhanced - do not u,Bi-Borough Director of Integrated Care,801.2
08/09/2022,1247526,Integrity Care and Support Ltd,B*Voluntary-Spot-V Dep-Enhanced - do not u,Bi-Borough Director of Integrated Care,721.08
08/09/2022,1247526,Integrity Care and Support Ltd,B*Voluntary-Spot-V Dep-Enhanced - do not u,Bi-Borough Director of Integrated Care,841.26
08/09/2022,1247526,Integrity Care and Support Ltd,B*Voluntary-Spot-V Dep-Enhanced - do not u,Bi-Borough Director of Integrated Care,1602.4
08/09/2022,1247526,Integrity Care and Support Ltd,B*Voluntary-Spot-V Dep-Enhanced - do not u,Bi-Borough Director of Integrated Care,1101.65
08/09/2022,1247526,Integrity Care and Support Ltd,B*Voluntary-Spot-V Dep-Enhanced - do not u,Bi-Borough Director of Integrated Care,961.44
08/09/2022,1247526,Integrity Care and Support Ltd,B*Voluntary-Spot-V Dep-Enhanced - do not u,Bi-Borough Director of Integrated Care,640.96
08/09/2022,1247526,Integrity Care and Support Ltd,B*Voluntary-Spot-V Dep-Enhanced - do not u,Bi-Borough Director of Integrated Care,560.84
08/09/2022,1247526,Integrity Care and Support Ltd,B*Voluntary-Spot-V Dep-Enhanced - do not u,Bi-Borough Director of Integrated Care,1121.68
08/09/2022,1247526,Integrity Care and Support Ltd,B*Voluntary-Spot-V Dep-Enhanced - do not u,Bi-Borough Director of Integrated Care,961.44
08/09/2022,1247526,Integrity Care and Support Ltd,B*Voluntary-Spot-V Dep-Enhanced - do not u,Bi-Borough Director of Integrated Care,570.85
08/09/2022,1247526,Integrity Care and Support Ltd,B*Voluntary-Spot-V Dep-Enhanced - do not u,Bi-Borough Director of Integrated Care,841.26
08/09/2022,1247526,Integrity Care and Support Ltd,B*Voluntary-Spot-V Dep-Enhanced - do not u,Bi-Borough Director of Integrated Care,861.29
08/09/2022,1247526,Integrity Care and Support Ltd,B*Voluntary-Spot-V Dep-Enhanced - do not u,Bi-Borough Director of Integrated Care,1121.68
08/09/2022,1247526,Integrity Care and Support Ltd,B*Voluntary-Spot-V Dep-Enhanced - do not u,Bi-Borough Director of Integrated Care,1942.91
08/09/2022,1247526,Integrity Care and Support Ltd,B*Voluntary-Spot-V Dep-Enhanced - do not u,Bi-Borough Director of Integrated Care,1041.56
08/09/2022,1247526,Integrity Care and Support Ltd,B*Voluntary-Spot-V Dep-Enhanced - do not u,Bi-Borough Director of Integrated Care,1512.26
08/09/2022,1247526,Integrity Care and Support Ltd,B*Voluntary-Spot-V Dep-Enhanced - do not u,Bi-Borough Director of Integrated Care,1081.62
08/09/2022,1247526,Integrity Care and Support Ltd,B*Voluntary-Spot-V Dep-Enhanced - do not u,Bi-Borough Director of Integrated Care,1542.31
08/09/2022,1247526,Integrity Care and Support Ltd,B*Voluntary-Spot-V Dep-Enhanced - do not u,Bi-Borough Director of Integrated Care,1181.77
08/09/2022,1247526,Integrity Care and Support Ltd,B*Voluntary-Spot-V Dep-Enhanced - do not u,Bi-Borough Director of Integrated Care,1402.1
28/09/2022,1247526,Integrity Care and Support Ltd,B*Voluntary-Spot-V Dep-Enhanced - do not u,Bi-Borough Director of Integrated Care,1462.19
28/09/2022,1247526,Integrity Care and Support Ltd,B*Voluntary-Spot-V Dep-Enhanced - do not u,Bi-Borough Director of Integrated Care,500.75
28/09/2022,1247526,Integrity Care and Support Ltd,B*Voluntary-Spot-V Dep-Enhanced - do not u,Bi-Borough Director of Integrated Care,841.26
28/09/2022,1247526,Integrity Care and Support Ltd,B*Voluntary-Spot-V Dep-Enhanced - do not u,Bi-Borough Director of Integrated Care,1221.83
28/09/2022,1247526,Integrity Care and Support Ltd,B*Voluntary-Spot-V Dep-Enhanced - do not u,Bi-Borough Director of Integrated Care,1622.43
28/09/2022,1247526,Integrity Care and Support Ltd,B*Voluntary-Spot-V Dep-Enhanced - do not u,Bi-Borough Director of Integrated Care,1121.68
28/09/2022,1247526,Integrity Care and Support Ltd,B*Voluntary-Spot-V Dep-Enhanced - do not u,Bi-Borough Director of Integrated Care,861.29
28/09/2022,1247526,Integrity Care and Support Ltd,B*Voluntary-Spot-V Dep-Enhanced - do not u,Bi-Borough Director of Integrated Care,961.44
28/09/2022,1247526,Integrity Care and Support Ltd,B*Voluntary-Spot-V Dep-Enhanced - do not u,Bi-Borough Director of Integrated Care,701.05
28/09/2022,1247526,Integrity Care and Support Ltd,B*Voluntary-Spot-V Dep-Enhanced - do not u,Bi-Borough Director of Integrated Care,841.26
28/09/2022,1247526,Integrity Care and Support Ltd,B*Voluntary-Spot-V Dep-Enhanced - do not u,Bi-Borough Director of Integrated Care,1382.07
28/09/2022,1247526,Integrity Care and Support Ltd,B*Voluntary-Spot-V Dep-Enhanced - do not u,Bi-Borough Director of Integrated Care,1121.68
28/09/2022,1247526,Integrity Care and Support Ltd,B*Voluntary-Spot-V Dep-Enhanced - do not u,Bi-Borough Director of Integrated Care,721.08
28/09/2022,1247526,Integrity Care and Support Ltd,B*Voluntary-Spot-V Dep-Enhanced - do not u,Bi-Borough Director of Integrated Care,1281.92
28/09/2022,1247526,Integrity Care and Support Ltd,B*Voluntary-Spot-V Dep-Enhanced - do not u,Bi-Borough Director of Integrated Care,570.86
28/09/2022,1247526,Integrity Care and Support Ltd,B*Voluntary-Spot-V Dep-Enhanced - do not u,Bi-Borough Director of Integrated Care,1001.5
28/09/2022,1247526,Integrity Care and Support Ltd,B*Voluntary-Spot-V Dep-Enhanced - do not u,Bi-Borough Director of Integrated Care,841.26
28/09/2022,1247526,Integrity Care and Support Ltd,B*Voluntary-Spot-V Dep-Enhanced - do not u,Bi-Borough Director of Integrated Care,1562.34
19/07/2022,1243506,Lifeways Community Care Ltd,,Bi-Borough Director of Integrated Care,12221.64
19/07/2022,1243506,Lifeways Community Care Ltd,,Bi-Borough Director of Integrated Care,7102.96
16/08/2022,1243506,Lifeways Community Care Ltd,,Bi-Borough Director of Integrated Care,8476.37
16/08/2022,1243506,Lifeways Community Care Ltd,,Bi-Borough Director of Integrated Care,14584.74
14/09/2022,1243506,Lifeways Community Care Ltd,,Bi-Borough Director of Integrated Care,12708.16
14/09/2022,1243506,Lifeways Community Care Ltd,,Bi-Borough Director of Integrated Care,7385.72
19/07/2022,1249729,Linden Lodge School,,Bi-Borough Director of Integrated Care,4632
19/07/2022,1244762,Livability,,Bi-Borough Director of Integrated Care,6180
16/08/2022,1244762,Livability,,Bi-Borough Director of Integrated Care,6180
14/09/2022,1244762,Livability,,Bi-Borough Director of Integrated Care,6180
07/07/2022,1247650,London Care Ltd,,Bi-Borough Director of Integrated Care,1309.9
07/07/2022,1247650,London Care Ltd,,Bi-Borough Director of Integrated Care,741.2
07/07/2022,1247650,London Care Ltd,,Bi-Borough Director of Integrated Care,1537.96
07/07/2022,1247650,London Care Ltd,,Bi-Borough Director of Integrated Care,1535.46
07/07/2022,1247650,London Care Ltd,,Bi-Borough Director of Integrated Care,1526.36
18/07/2022,1247650,London Care Ltd,,Bi-Borough Director of Integrated Care,1006.8
22/07/2022,1247650,London Care Ltd,,Bi-Borough Director of Integrated Care,1290.13
22/07/2022,1247650,London Care Ltd,,Bi-Borough Director of Integrated Care,741.2
22/07/2022,1247650,London Care Ltd,,Bi-Borough Director of Integrated Care,1523.13
22/07/2022,1247650,London Care Ltd,,Bi-Borough Director of Integrated Care,974.84
22/07/2022,1247650,London Care Ltd,,Bi-Borough Director of Integrated Care,1539.21
05/08/2022,1247650,London Care Ltd,,Bi-Borough Director of Integrated Care,1006.8
18/08/2022,1247650,London Care Ltd,,Bi-Borough Director of Integrated Care,1352.88
18/08/2022,1247650,London Care Ltd,,Bi-Borough Director of Integrated Care,741.2
18/08/2022,1247650,London Care Ltd,,Bi-Borough Director of Integrated Care,1521.27
18/08/2022,1247650,London Care Ltd,,Bi-Borough Director of Integrated Care,1346.75
18/08/2022,1247650,London Care Ltd,,Bi-Borough Director of Integrated Care,1535.3
19/08/2022,1247650,London Care Ltd,,Bi-Borough Director of Integrated Care,1216.52
19/08/2022,1247650,London Care Ltd,,Bi-Borough Director of Integrated Care,740.89
19/08/2022,1247650,London Care Ltd,,Bi-Borough Director of Integrated Care,1554.94
19/08/2022,1247650,London Care Ltd,,Bi-Borough Director of Integrated Care,1548.76
19/08/2022,1247650,London Care Ltd,,Bi-Borough Director of Integrated Care,1548.46
16/09/2022,1247650,London Care Ltd,,Bi-Borough Director of Integrated Care,1480.78
16/09/2022,1247650,London Care Ltd,,Bi-Borough Director of Integrated Care,1542.85
16/09/2022,1247650,London Care Ltd,,Bi-Borough Director of Integrated Care,908.04
16/09/2022,1247650,London Care Ltd,,Bi-Borough Director of Integrated Care,752.63
16/09/2022,1247650,London Care Ltd,,Bi-Borough Director of Integrated Care,1516.66
20/09/2022,1247650,London Care Ltd,,Bi-Borough Director of Integrated Care,668.68
20/09/2022,1247650,London Care Ltd,,Bi-Borough Director of Integrated Care,1056.08
20/09/2022,1247650,London Care Ltd,,Bi-Borough Director of Integrated Care,1006.8
20/09/2022,1247650,London Care Ltd,,Bi-Borough Director of Integrated Care,1006.8
14/09/2022,1247651,London Care Partnership Ltd,,Bi-Borough Director of Integrated Care,42577.6
16/08/2022,1247656,London Cyrenians Housing Ltd,,Bi-Borough Director of Integrated Care,4449.85
14/09/2022,1247656,London Cyrenians Housing Ltd,,Bi-Borough Director of Integrated Care,13553.38
14/09/2022,1247656,London Cyrenians Housing Ltd,,Bi-Borough Director of Integrated Care,6320
28/07/2022,1247846,London Vip Cars,Payments to Transport Operators,Bi-Borough Director of Integrated Care,4449
12/09/2022,1247846,London Vip Cars,Payments to Transport Operators,Bi-Borough Director of Integrated Care,5145
26/09/2022,1247846,London Vip Cars,Payments to Transport Operators,Bi-Borough Director of Integrated Care,4620
19/07/2022,1247854,Look Ahead Housing & Care Ltd,,Bi-Borough Director of Integrated Care,1513.4
16/08/2022,1247854,Look Ahead Housing & Care Ltd,,Bi-Borough Director of Integrated Care,1513.4
14/09/2022,1247854,Look Ahead Housing & Care Ltd,,Bi-Borough Director of Integrated Care,1513.4
29/07/2022,1259132,MMR Home Care LTD,,Bi-Borough Director of Integrated Care,2349.2
29/07/2022,1259132,MMR Home Care LTD,,Bi-Borough Director of Integrated Care,2349.2
19/08/2022,1259132,MMR Home Care LTD,,Bi-Borough Director of Integrated Care,4161.44
19/08/2022,1259132,MMR Home Care LTD,,Bi-Borough Director of Integrated Care,4161.44
20/09/2022,1259132,MMR Home Care LTD,,Bi-Borough Director of Integrated Care,4228.56
20/09/2022,1259132,MMR Home Care LTD,,Bi-Borough Director of Integrated Care,4228.56
19/07/2022,1282320,Marcus and Marcus,,Bi-Borough Director of Integrated Care,23440
16/08/2022,1282320,Marcus and Marcus,,Bi-Borough Director of Integrated Care,23440
14/09/2022,1282320,Marcus and Marcus,,Bi-Borough Director of Integrated Care,23440
27/09/2022,1282320,Marcus and Marcus,,Bi-Borough Director of Integrated Care,5858.97
19/07/2022,1245144,Methodist Homes For The Aged,,Bi-Borough Director of Integrated Care,3191.52
16/08/2022,1245144,Methodist Homes For The Aged,,Bi-Borough Director of Integrated Care,3191.52
14/09/2022,1245144,Methodist Homes For The Aged,,Bi-Borough Director of Integrated Care,3191.52
19/07/2022,1247933,Minster Pathways Ltd,,Bi-Borough Director of Integrated Care,1248
19/07/2022,1247933,Minster Pathways Ltd,,Bi-Borough Director of Integrated Care,3646.56
16/08/2022,1247933,Minster Pathways Ltd,,Bi-Borough Director of Integrated Care,3646.56
16/08/2022,1247933,Minster Pathways Ltd,,Bi-Borough Director of Integrated Care,1248
14/09/2022,1247933,Minster Pathways Ltd,,Bi-Borough Director of Integrated Care,1248
14/09/2022,1247933,Minster Pathways Ltd,,Bi-Borough Director of Integrated Care,3646.56
06/07/2022,1244905,Nas Services Ltd (Residential),B*Voluntary-Spot-V Dep-Enhanced - do not u,Bi-Borough Director of Integrated Care,1870.92
06/07/2022,1244905,Nas Services Ltd (Residential),B*Voluntary-Spot-V Dep-Enhanced - do not u,Bi-Borough Director of Integrated Care,1418.44
19/07/2022,1244905,Nas Services Ltd (Residential),,Bi-Borough Director of Integrated Care,4058.88
19/07/2022,1244905,Nas Services Ltd (Residential),,Bi-Borough Director of Integrated Care,3379.32
19/07/2022,1244905,Nas Services Ltd (Residential),,Bi-Borough Director of Integrated Care,7400.08
19/07/2022,1244905,Nas Services Ltd (Residential),,Bi-Borough Director of Integrated Care,7970.16
20/07/2022,1244905,Nas Services Ltd (Residential),B*Voluntary-Spot-V Dep-Enhanced - do not u,Bi-Borough Director of Integrated Care,525.84
03/08/2022,1244905,Nas Services Ltd (Residential),B*Voluntary-Spot-V Dep-Enhanced - do not u,Bi-Borough Director of Integrated Care,1418.44
03/08/2022,1244905,Nas Services Ltd (Residential),B*Voluntary-Spot-V Dep-Enhanced - do not u,Bi-Borough Director of Integrated Care,5258.4
03/08/2022,1244905,Nas Services Ltd (Residential),B*Voluntary-Spot-V Dep-Enhanced - do not u,Bi-Borough Director of Integrated Care,1870.92
16/08/2022,1244905,Nas Services Ltd (Residential),,Bi-Borough Director of Integrated Care,4058.88
16/08/2022,1244905,Nas Services Ltd (Residential),,Bi-Borough Director of Integrated Care,7970.16
06/09/2022,1244905,Nas Services Ltd (Residential),B*Voluntary-Spot-V Dep-Enhanced - do not u,Bi-Borough Director of Integrated Care,5258.4
06/09/2022,1244905,Nas Services Ltd (Residential),B*Voluntary-Spot-V Dep-Enhanced - do not u,Bi-Borough Director of Integrated Care,1870.92
06/09/2022,1244905,Nas Services Ltd (Residential),B*Voluntary-Spot-V Dep-Enhanced - do not u,Bi-Borough Director of Integrated Care,1418.44
14/09/2022,1244905,Nas Services Ltd (Residential),,Bi-Borough Director of Integrated Care,7970.16
14/09/2022,1244905,Nas Services Ltd (Residential),,Bi-Borough Director of Integrated Care,4058.88
06/07/2022,1244906,Nas Services Ltd (Use 3009018),B*Voluntary-Spot-V Dep-Enhanced - do not u,Bi-Borough Director of Integrated Care,1308.36
06/07/2022,1244906,Nas Services Ltd (Use 3009018),B*Voluntary-Spot-V Dep-Enhanced - do not u,Bi-Borough Director of Integrated Care,2970.72
06/07/2022,1244906,Nas Services Ltd (Use 3009018),B*Voluntary-Spot-V Dep-Enhanced - do not u,Bi-Borough Director of Integrated Care,1124.96
06/07/2022,1244906,Nas Services Ltd (Use 3009018),B*Voluntary-Spot-V Dep-Enhanced - do not u,Bi-Borough Director of Integrated Care,2027.52
06/07/2022,1244906,Nas Services Ltd (Use 3009018),B*Voluntary-Spot-V Dep-Enhanced - do not u,Bi-Borough Director of Integrated Care,2915.36
06/07/2022,1244906,Nas Services Ltd (Use 3009018),B*Voluntary-Spot-V Dep-Enhanced - do not u,Bi-Borough Director of Integrated Care,1772.04
06/07/2022,1244906,Nas Services Ltd (Use 3009018),B*Voluntary-Spot-V Dep-Enhanced - do not u,Bi-Borough Director of Integrated Care,4879.2
06/07/2022,1244906,Nas Services Ltd (Use 3009018),B*Voluntary-Spot-V Dep-Enhanced - do not u,Bi-Borough Director of Integrated Care,5243.8
03/08/2022,1244906,Nas Services Ltd (Use 3009018),B*Voluntary-Spot-V Dep-Enhanced - do not u,Bi-Borough Director of Integrated Care,2027.52
03/08/2022,1244906,Nas Services Ltd (Use 3009018),B*Voluntary-Spot-V Dep-Enhanced - do not u,Bi-Borough Director of Integrated Care,1124.96
03/08/2022,1244906,Nas Services Ltd (Use 3009018),B*Voluntary-Spot-V Dep-Enhanced - do not u,Bi-Borough Director of Integrated Care,1772.04
03/08/2022,1244906,Nas Services Ltd (Use 3009018),B*Voluntary-Spot-V Dep-Enhanced - do not u,Bi-Borough Director of Integrated Care,1308.36
03/08/2022,1244906,Nas Services Ltd (Use 3009018),B*Voluntary-Spot-V Dep-Enhanced - do not u,Bi-Borough Director of Integrated Care,2970.72
03/08/2022,1244906,Nas Services Ltd (Use 3009018),B*Voluntary-Spot-V Dep-Enhanced - do not u,Bi-Borough Director of Integrated Care,4879.2
03/08/2022,1244906,Nas Services Ltd (Use 3009018),B*Voluntary-Spot-V Dep-Enhanced - do not u,Bi-Borough Director of Integrated Care,5243.8
03/08/2022,1244906,Nas Services Ltd (Use 3009018),B*Voluntary-Spot-V Dep-Enhanced - do not u,Bi-Borough Director of Integrated Care,2915.36
03/08/2022,1244906,Nas Services Ltd (Use 3009018),B*Voluntary-Spot-V Dep-Enhanced - do not u,Bi-Borough Director of Integrated Care,1744.52
06/09/2022,1244906,Nas Services Ltd (Use 3009018),B*Voluntary-Spot-V Dep-Enhanced - do not u,Bi-Borough Director of Integrated Care,4879.2
06/09/2022,1244906,Nas Services Ltd (Use 3009018),B*Voluntary-Spot-V Dep-Enhanced - do not u,Bi-Borough Director of Integrated Care,2970.72
06/09/2022,1244906,Nas Services Ltd (Use 3009018),B*Voluntary-Spot-V Dep-Enhanced - do not u,Bi-Borough Director of Integrated Care,1124.96
06/09/2022,1244906,Nas Services Ltd (Use 3009018),B*Voluntary-Spot-V Dep-Enhanced - do not u,Bi-Borough Director of Integrated Care,1744.52
06/09/2022,1244906,Nas Services Ltd (Use 3009018),B*Voluntary-Spot-V Dep-Enhanced - do not u,Bi-Borough Director of Integrated Care,5243.8
06/09/2022,1244906,Nas Services Ltd (Use 3009018),B*Voluntary-Spot-V Dep-Enhanced - do not u,Bi-Borough Director of Integrated Care,2915.36
06/09/2022,1244906,Nas Services Ltd (Use 3009018),B*Voluntary-Spot-V Dep-Enhanced - do not u,Bi-Borough Director of Integrated Care,1308.36
06/09/2022,1244906,Nas Services Ltd (Use 3009018),B*Voluntary-Spot-V Dep-Enhanced - do not u,Bi-Borough Director of Integrated Care,1772.04
06/09/2022,1244906,Nas Services Ltd (Use 3009018),B*Voluntary-Spot-V Dep-Enhanced - do not u,Bi-Borough Director of Integrated Care,2027.52
19/07/2022,1282551,Nisacraftcare Limited,,Bi-Borough Director of Integrated Care,14092.08
19/07/2022,1282551,Nisacraftcare Limited,,Bi-Borough Director of Integrated Care,8065.2
19/07/2022,1282551,Nisacraftcare Limited,,Bi-Borough Director of Integrated Care,9786.76
16/08/2022,1282551,Nisacraftcare Limited,,Bi-Borough Director of Integrated Care,14092.08
16/08/2022,1282551,Nisacraftcare Limited,,Bi-Borough Director of Integrated Care,8065.2
16/08/2022,1282551,Nisacraftcare Limited,,Bi-Borough Director of Integrated Care,9786.76
14/09/2022,1282551,Nisacraftcare Limited,,Bi-Borough Director of Integrated Care,14092.08
14/09/2022,1282551,Nisacraftcare Limited,,Bi-Borough Director of Integrated Care,8065.2
14/09/2022,1282551,Nisacraftcare Limited,,Bi-Borough Director of Integrated Care,9786.76
19/07/2022,1247147,Norwood Schools Ltd,,Bi-Borough Director of Integrated Care,7305.64
19/07/2022,1247147,Norwood Schools Ltd,,Bi-Borough Director of Integrated Care,5683.56
19/07/2022,1247147,Norwood Schools Ltd,,Bi-Borough Director of Integrated Care,6487.44
19/07/2022,1247147,Norwood Schools Ltd,,Bi-Borough Director of Integrated Care,9472.52
16/08/2022,1247147,Norwood Schools Ltd,,Bi-Borough Director of Integrated Care,7305.64
16/08/2022,1247147,Norwood Schools Ltd,,Bi-Borough Director of Integrated Care,4463.34
16/08/2022,1247147,Norwood Schools Ltd,,Bi-Borough Director of Integrated Care,6487.44
16/08/2022,1247147,Norwood Schools Ltd,,Bi-Borough Director of Integrated Care,9472.52
14/09/2022,1247147,Norwood Schools Ltd,,Bi-Borough Director of Integrated Care,7305.64
14/09/2022,1247147,Norwood Schools Ltd,,Bi-Borough Director of Integrated Care,4678.68
14/09/2022,1247147,Norwood Schools Ltd,,Bi-Borough Director of Integrated Care,6487.44
14/09/2022,1247147,Norwood Schools Ltd,,Bi-Borough Director of Integrated Care,9472.52
19/07/2022,1243520,Oakview Care (Berkshire) Ltd,,Bi-Borough Director of Integrated Care,7038.96
16/08/2022,1243520,Oakview Care (Berkshire) Ltd,,Bi-Borough Director of Integrated Care,7038.96
14/09/2022,1243520,Oakview Care (Berkshire) Ltd,,Bi-Borough Director of Integrated Care,7038.96
02/08/2022,1244971,Octavia Housing (Main Account),Rent,Bi-Borough Director of Integrated Care,6094.72
02/08/2022,1244971,Octavia Housing (Main Account),Rent,Bi-Borough Director of Integrated Care,10187.84
19/07/2022,1243524,PERSONAL PAYMENTS,,Bi-Borough Director of Integrated Care,3379.76
19/07/2022,1243524,PERSONAL PAYMENTS,,Bi-Borough Director of Integrated Care,936
16/08/2022,1243524,PERSONAL PAYMENTS,,Bi-Borough Director of Integrated Care,936
16/08/2022,1243524,PERSONAL PAYMENTS,,Bi-Borough Director of Integrated Care,3379.76
14/09/2022,1243524,PERSONAL PAYMENTS,,Bi-Borough Director of Integrated Care,3379.76
14/09/2022,1243524,PERSONAL PAYMENTS,,Bi-Borough Director of Integrated Care,936
19/07/2022,1245005,PERSONAL PAYMENTS,,Bi-Borough Director of Integrated Care,2902.96
19/07/2022,1245005,PERSONAL PAYMENTS,,Bi-Borough Director of Integrated Care,2146.88
19/07/2022,1245005,PERSONAL PAYMENTS,,Bi-Borough Director of Integrated Care,1337.68
19/07/2022,1245005,PERSONAL PAYMENTS,,Bi-Borough Director of Integrated Care,3106.88
19/07/2022,1245005,PERSONAL PAYMENTS,,Bi-Borough Director of Integrated Care,1744.8
19/07/2022,1245005,PERSONAL PAYMENTS,,Bi-Borough Director of Integrated Care,2146.88
16/08/2022,1245005,PERSONAL PAYMENTS,,Bi-Borough Director of Integrated Care,2902.96
16/08/2022,1245005,PERSONAL PAYMENTS,,Bi-Borough Director of Integrated Care,2146.88
16/08/2022,1245005,PERSONAL PAYMENTS,,Bi-Borough Director of Integrated Care,1337.68
16/08/2022,1245005,PERSONAL PAYMENTS,,Bi-Borough Director of Integrated Care,3238.88
16/08/2022,1245005,PERSONAL PAYMENTS,,Bi-Borough Director of Integrated Care,1744.8
16/08/2022,1245005,PERSONAL PAYMENTS,,Bi-Borough Director of Integrated Care,2146.88
14/09/2022,1245005,PERSONAL PAYMENTS,,Bi-Borough Director of Integrated Care,1337.68
14/09/2022,1245005,PERSONAL PAYMENTS,,Bi-Borough Director of Integrated Care,2146.88
14/09/2022,1245005,PERSONAL PAYMENTS,,Bi-Borough Director of Integrated Care,1744.8
14/09/2022,1245005,PERSONAL PAYMENTS,,Bi-Borough Director of Integrated Care,2146.88
14/09/2022,1245005,PERSONAL PAYMENTS,,Bi-Borough Director of Integrated Care,3370.88
14/09/2022,1245005,PERSONAL PAYMENTS,,Bi-Borough Director of Integrated Care,2902.96
01/07/2022,1248292,PERSONAL PAYMENTS,Adult Social Care - Other Transfer Pay,Bi-Borough Director of Integrated Care,14874.68
14/07/2022,1245825,Sweet Tree Home Care Services,Adult Social Care - Other Transfer Pay,Bi-Borough Director of Integrated Care,3808.44
29/07/2022,1250012,PERSONAL PAYMENTS,Adult Social Care - Other Transfer Pay,Bi-Borough Director of Integrated Care,2015
29/07/2022,1246066,Barrie Bookkeeping & Payroll,Adult Social Care - Other Transfer Pay,Bi-Borough Director of Integrated Care,5754.04
29/07/2022,1246066,Barrie Bookkeeping & Payroll,Adult Social Care - Other Transfer Pay,Bi-Borough Director of Integrated Care,5914.56
29/07/2022,1246066,Barrie Bookkeeping & Payroll,Adult Social Care - Other Transfer Pay,Bi-Borough Director of Integrated Care,843.96
29/07/2022,1246066,Barrie Bookkeeping & Payroll,Adult Social Care - Other Transfer Pay,Bi-Borough Director of Integrated Care,1164.6
29/07/2022,1250037,PERSONAL PAYMENTS,Adult Social Care - Other Transfer Pay,Bi-Borough Director of Integrated Care,2383.72
29/07/2022,1246066,Barrie Bookkeeping & Payroll,Adult Social Care - Other Transfer Pay,Bi-Borough Director of Integrated Care,1791.6
29/07/2022,1247727,PERSONAL PAYMENTS,Social Care - Direct Payments,Bi-Borough Director of Integrated Care,2740.72
29/07/2022,1268346,PERSONAL PAYMENTS,Adult Social Care - Other Transfer Pay,Bi-Borough Director of Integrated Care,1623.4
29/07/2022,1280973,PERSONAL PAYMENTS,Adult Social Care - Other Transfer Pay,Bi-Borough Director of Integrated Care,6236.88
29/07/2022,1246066,Barrie Bookkeeping & Payroll,Adult Social Care - Other Transfer Pay,Bi-Borough Director of Integrated Care,11674.68
29/07/2022,1246066,Barrie Bookkeeping & Payroll,Adult Social Care - Other Transfer Pay,Bi-Borough Director of Integrated Care,2056.84
29/07/2022,1246066,Barrie Bookkeeping & Payroll,Adult Social Care - Other Transfer Pay,Bi-Borough Director of Integrated Care,2854.04
29/07/2022,1246066,Barrie Bookkeeping & Payroll,Adult Social Care - Other Transfer Pay,Bi-Borough Director of Integrated Care,2452.2
29/07/2022,1246066,Barrie Bookkeeping & Payroll,Adult Social Care - Other Transfer Pay,Bi-Borough Director of Integrated Care,876.08
29/07/2022,1246066,Barrie Bookkeeping & Payroll,Adult Social Care - Other Transfer Pay,Bi-Borough Director of Integrated Care,953.88
29/07/2022,1248292,PERSONAL PAYMENTS,Adult Social Care - Other Transfer Pay,Bi-Borough Director of Integrated Care,10471.96
29/07/2022,1248010,PERSONAL PAYMENTS,Adult Social Care - Other Transfer Pay,Bi-Borough Director of Integrated Care,677.18
29/07/2022,1248154,PERSONAL PAYMENTS,Adult Social Care - Other Transfer Pay,Bi-Borough Director of Integrated Care,829.52
29/07/2022,1278955,PERSONAL PAYMENTS,Social Care - Direct Payments,Bi-Borough Director of Integrated Care,1289.24
29/07/2022,1246066,Barrie Bookkeeping & Payroll,Adult Social Care - Other Transfer Pay,Bi-Borough Director of Integrated Care,1991
29/07/2022,1292106,PERSONAL PAYMENTS,Adult Social Care - Other Transfer Pay,Bi-Borough Director of Integrated Care,1155.4
29/07/2022,1246066,Barrie Bookkeeping & Payroll,Adult Social Care - Other Transfer Pay,Bi-Borough Director of Integrated Care,1688.6
29/07/2022,1246066,Barrie Bookkeeping & Payroll,Adult Social Care - Other Transfer Pay,Bi-Borough Director of Integrated Care,733.8
29/07/2022,1246066,Barrie Bookkeeping & Payroll,Adult Social Care - Other Transfer Pay,Bi-Borough Director of Integrated Care,2483.4
29/07/2022,1269674,PERSONAL PAYMENTS,Adult Social Care - Other Transfer Pay,Bi-Borough Director of Integrated Care,889.28
29/07/2022,1247820,PERSONAL PAYMENTS,Adult Social Care - Other Transfer Pay,Bi-Borough Director of Integrated Care,8751.04
29/07/2022,1254540,PERSONAL PAYMENTS,Adult Social Care - Other Transfer Pay,Bi-Borough Director of Integrated Care,939.92
29/07/2022,1246066,Barrie Bookkeeping & Payroll,Adult Social Care - Other Transfer Pay,Bi-Borough Director of Integrated Care,2611.32
29/07/2022,1249942,PERSONAL PAYMENTS,Adult Social Care - Other Transfer Pay,Bi-Borough Director of Integrated Care,6343.36
29/07/2022,1246066,Barrie Bookkeeping & Payroll,Adult Social Care - Other Transfer Pay,Bi-Borough Director of Integrated Care,818
29/07/2022,1250656,PERSONAL PAYMENTS,Social Care - Direct Payments,Bi-Borough Director of Integrated Care,1118.36
29/07/2022,1248148,PERSONAL PAYMENTS,Adult Social Care - Other Transfer Pay,Bi-Borough Director of Integrated Care,1638.96
29/07/2022,1246066,Barrie Bookkeeping & Payroll,Adult Social Care - Other Transfer Pay,Bi-Borough Director of Integrated Care,2585.32
29/07/2022,1250074,PERSONAL PAYMENTS,Adult Social Care - Other Transfer Pay,Bi-Borough Director of Integrated Care,6904.8
29/07/2022,1246066,Barrie Bookkeeping & Payroll,Adult Social Care - Other Transfer Pay,Bi-Borough Director of Integrated Care,4603.4
29/07/2022,1250627,PERSONAL PAYMENTS,Adult Social Care - Other Transfer Pay,Bi-Borough Director of Integrated Care,2508
29/07/2022,1250670,PERSONAL PAYMENTS,Adult Social Care - Other Transfer Pay,Bi-Borough Director of Integrated Care,1571.52
29/07/2022,1250044,PERSONAL PAYMENTS,Adult Social Care - Other Transfer Pay,Bi-Borough Director of Integrated Care,724.04
29/07/2022,1247804,PERSONAL PAYMENTS,Adult Social Care - Other Transfer Pay,Bi-Borough Director of Integrated Care,752.2
29/07/2022,1250138,PERSONAL PAYMENTS,Adult Social Care - Other Transfer Pay,Bi-Borough Director of Integrated Care,916
29/07/2022,1250186,PERSONAL PAYMENTS,Adult Social Care - Other Transfer Pay,Bi-Borough Director of Integrated Care,3121.48
29/07/2022,1272570,PERSONAL PAYMENTS,Adult Social Care - Other Transfer Pay,Bi-Borough Director of Integrated Care,1051.24
29/07/2022,1250215,PERSONAL PAYMENTS,Adult Social Care - Other Transfer Pay,Bi-Borough Director of Integrated Care,1361.56
29/07/2022,1250536,PERSONAL PAYMENTS,Adult Social Care - Other Transfer Pay,Bi-Borough Director of Integrated Care,678.64
29/07/2022,1248354,PERSONAL PAYMENTS,Adult Social Care - Other Transfer Pay,Bi-Borough Director of Integrated Care,2425.36
29/07/2022,1250674,PERSONAL PAYMENTS,Adult Social Care - Other Transfer Pay,Bi-Borough Director of Integrated Care,2652.16
04/08/2022,1245825,Sweet Tree Home Care Services,Adult Social Care - Other Transfer Pay,Bi-Borough Director of Integrated Care,3875.61
25/08/2022,1250674,PERSONAL PAYMENTS,Adult Social Care - Other Transfer Pay,Bi-Borough Director of Integrated Care,2652.16
25/08/2022,1272570,PERSONAL PAYMENTS,Adult Social Care - Other Transfer Pay,Bi-Borough Director of Integrated Care,1051.24
25/08/2022,1246066,Barrie Bookkeeping & Payroll,Adult Social Care - Other Transfer Pay,Bi-Borough Director of Integrated Care,2483.4
25/08/2022,1246066,Barrie Bookkeeping & Payroll,Adult Social Care - Other Transfer Pay,Bi-Borough Director of Integrated Care,1688.6
25/08/2022,1246066,Barrie Bookkeeping & Payroll,Adult Social Care - Other Transfer Pay,Bi-Borough Director of Integrated Care,733.8
25/08/2022,1246066,Barrie Bookkeeping & Payroll,Adult Social Care - Other Transfer Pay,Bi-Borough Director of Integrated Care,1991
25/08/2022,1246066,Barrie Bookkeeping & Payroll,Adult Social Care - Other Transfer Pay,Bi-Borough Director of Integrated Care,2452.2
25/08/2022,1246066,Barrie Bookkeeping & Payroll,Adult Social Care - Other Transfer Pay,Bi-Borough Director of Integrated Care,2854.04
25/08/2022,1246066,Barrie Bookkeeping & Payroll,Adult Social Care - Other Transfer Pay,Bi-Borough Director of Integrated Care,2056.84
25/08/2022,1246066,Barrie Bookkeeping & Payroll,Adult Social Care - Other Transfer Pay,Bi-Borough Director of Integrated Care,11674.68
25/08/2022,1246066,Barrie Bookkeeping & Payroll,Adult Social Care - Other Transfer Pay,Bi-Borough Director of Integrated Care,876.08
25/08/2022,1246066,Barrie Bookkeeping & Payroll,Adult Social Care - Other Transfer Pay,Bi-Borough Director of Integrated Care,953.88
25/08/2022,1246066,Barrie Bookkeeping & Payroll,Adult Social Care - Other Transfer Pay,Bi-Borough Director of Integrated Care,1471.44
25/08/2022,1248292,PERSONAL PAYMENTS,Adult Social Care - Other Transfer Pay,Bi-Borough Director of Integrated Care,10471.96
25/08/2022,1292106,PERSONAL PAYMENTS,Adult Social Care - Other Transfer Pay,Bi-Borough Director of Integrated Care,1155.4
25/08/2022,1280973,PERSONAL PAYMENTS,Adult Social Care - Other Transfer Pay,Bi-Borough Director of Integrated Care,6749.08
25/08/2022,1269674,PERSONAL PAYMENTS,Adult Social Care - Other Transfer Pay,Bi-Borough Director of Integrated Care,889.28
25/08/2022,1250012,PERSONAL PAYMENTS,Adult Social Care - Other Transfer Pay,Bi-Borough Director of Integrated Care,2015
25/08/2022,1248354,PERSONAL PAYMENTS,Adult Social Care - Other Transfer Pay,Bi-Borough Director of Integrated Care,2425.36
25/08/2022,1250215,PERSONAL PAYMENTS,Adult Social Care - Other Transfer Pay,Bi-Borough Director of Integrated Care,1361.56
25/08/2022,1250536,PERSONAL PAYMENTS,Adult Social Care - Other Transfer Pay,Bi-Borough Director of Integrated Care,678.64
25/08/2022,1246066,Barrie Bookkeeping & Payroll,Adult Social Care - Other Transfer Pay,Bi-Borough Director of Integrated Care,5914.56
25/08/2022,1246066,Barrie Bookkeeping & Payroll,Adult Social Care - Other Transfer Pay,Bi-Borough Director of Integrated Care,1791.6
25/08/2022,1246066,Barrie Bookkeeping & Payroll,Adult Social Care - Other Transfer Pay,Bi-Borough Director of Integrated Care,5754.04
25/08/2022,1248010,PERSONAL PAYMENTS,Adult Social Care - Other Transfer Pay,Bi-Borough Director of Integrated Care,904.8
25/08/2022,1268346,PERSONAL PAYMENTS,Adult Social Care - Other Transfer Pay,Bi-Borough Director of Integrated Care,1623.4
25/08/2022,1250037,PERSONAL PAYMENTS,Adult Social Care - Other Transfer Pay,Bi-Borough Director of Integrated Care,2383.72
25/08/2022,1247727,PERSONAL PAYMENTS,Social Care - Direct Payments,Bi-Borough Director of Integrated Care,2740.72
25/08/2022,1246066,Barrie Bookkeeping & Payroll,Adult Social Care - Other Transfer Pay,Bi-Borough Director of Integrated Care,818
25/08/2022,1246066,Barrie Bookkeeping & Payroll,Adult Social Care - Other Transfer Pay,Bi-Borough Director of Integrated Care,2652.58
25/08/2022,1249942,PERSONAL PAYMENTS,Adult Social Care - Other Transfer Pay,Bi-Borough Director of Integrated Care,6343.36
25/08/2022,1247820,PERSONAL PAYMENTS,Adult Social Care - Other Transfer Pay,Bi-Borough Director of Integrated Care,8751.04
25/08/2022,1250656,PERSONAL PAYMENTS,Social Care - Direct Payments,Bi-Borough Director of Integrated Care,1118.36
25/08/2022,1248010,PERSONAL PAYMENTS,Adult Social Care - Other Transfer Pay,Bi-Borough Director of Integrated Care,646.16
25/08/2022,1278955,PERSONAL PAYMENTS,Social Care - Direct Payments,Bi-Borough Director of Integrated Care,2349.6
25/08/2022,1254540,PERSONAL PAYMENTS,Adult Social Care - Other Transfer Pay,Bi-Borough Director of Integrated Care,939.92
25/08/2022,1248154,PERSONAL PAYMENTS,Adult Social Care - Other Transfer Pay,Bi-Borough Director of Integrated Care,829.52
25/08/2022,1248148,PERSONAL PAYMENTS,Adult Social Care - Other Transfer Pay,Bi-Borough Director of Integrated Care,1638.96
25/08/2022,1246066,Barrie Bookkeeping & Payroll,Adult Social Care - Other Transfer Pay,Bi-Borough Director of Integrated Care,21857
25/08/2022,1250074,PERSONAL PAYMENTS,Adult Social Care - Other Transfer Pay,Bi-Borough Director of Integrated Care,6904.8
25/08/2022,1246066,Barrie Bookkeeping & Payroll,Adult Social Care - Other Transfer Pay,Bi-Borough Director of Integrated Care,4603.4
25/08/2022,1250627,PERSONAL PAYMENTS,Adult Social Care - Other Transfer Pay,Bi-Borough Director of Integrated Care,2508
25/08/2022,1250044,PERSONAL PAYMENTS,Adult Social Care - Other Transfer Pay,Bi-Borough Director of Integrated Care,724.04
25/08/2022,1247804,PERSONAL PAYMENTS,Adult Social Care - Other Transfer Pay,Bi-Borough Director of Integrated Care,752.2
25/08/2022,1250670,PERSONAL PAYMENTS,Adult Social Care - Other Transfer Pay,Bi-Borough Director of Integrated Care,1571.52
25/08/2022,1250138,PERSONAL PAYMENTS,Adult Social Care - Other Transfer Pay,Bi-Borough Director of Integrated Care,916
25/08/2022,1246066,Barrie Bookkeeping & Payroll,Adult Social Care - Other Transfer Pay,Bi-Borough Director of Integrated Care,1164.6
25/08/2022,1246066,Barrie Bookkeeping & Payroll,Adult Social Care - Other Transfer Pay,Bi-Borough Director of Integrated Care,843.96
25/08/2022,1250186,PERSONAL PAYMENTS,Adult Social Care - Other Transfer Pay,Bi-Borough Director of Integrated Care,3121.48
22/09/2022,1250138,PERSONAL PAYMENTS,Adult Social Care - Other Transfer Pay,Bi-Borough Director of Integrated Care,916
22/09/2022,1248148,PERSONAL PAYMENTS,Adult Social Care - Other Transfer Pay,Bi-Borough Director of Integrated Care,1638.96
22/09/2022,1246066,Barrie Bookkeeping & Payroll,Adult Social Care - Other Transfer Pay,Bi-Borough Director of Integrated Care,2585.32
22/09/2022,1250186,PERSONAL PAYMENTS,Adult Social Care - Other Transfer Pay,Bi-Borough Director of Integrated Care,3121.48
22/09/2022,1272570,PERSONAL PAYMENTS,Adult Social Care - Other Transfer Pay,Bi-Borough Director of Integrated Care,1051.24
22/09/2022,1250074,PERSONAL PAYMENTS,Adult Social Care - Other Transfer Pay,Bi-Borough Director of Integrated Care,6904.8
22/09/2022,1250674,PERSONAL PAYMENTS,Adult Social Care - Other Transfer Pay,Bi-Borough Director of Integrated Care,2652.16
22/09/2022,1246066,Barrie Bookkeeping & Payroll,Adult Social Care - Other Transfer Pay,Bi-Borough Director of Integrated Care,843.96
22/09/2022,1246066,Barrie Bookkeeping & Payroll,Adult Social Care - Other Transfer Pay,Bi-Borough Director of Integrated Care,1164.6
22/09/2022,1268346,PERSONAL PAYMENTS,Adult Social Care - Other Transfer Pay,Bi-Borough Director of Integrated Care,1623.4
22/09/2022,1246066,Barrie Bookkeeping & Payroll,Adult Social Care - Other Transfer Pay,Bi-Borough Director of Integrated Care,11674.68
22/09/2022,1246066,Barrie Bookkeeping & Payroll,Adult Social Care - Other Transfer Pay,Bi-Borough Director of Integrated Care,2056.84
22/09/2022,1246066,Barrie Bookkeeping & Payroll,Adult Social Care - Other Transfer Pay,Bi-Borough Director of Integrated Care,2854.04
22/09/2022,1246066,Barrie Bookkeeping & Payroll,Adult Social Care - Other Transfer Pay,Bi-Borough Director of Integrated Care,2452.2
22/09/2022,1246066,Barrie Bookkeeping & Payroll,Adult Social Care - Other Transfer Pay,Bi-Borough Director of Integrated Care,876.08
22/09/2022,1248292,PERSONAL PAYMENTS,Adult Social Care - Other Transfer Pay,Bi-Borough Director of Integrated Care,10471.96
22/09/2022,1280973,PERSONAL PAYMENTS,Adult Social Care - Other Transfer Pay,Bi-Borough Director of Integrated Care,6394.48
22/09/2022,1246066,Barrie Bookkeeping & Payroll,Adult Social Care - Other Transfer Pay,Bi-Borough Director of Integrated Care,1991
22/09/2022,1292106,PERSONAL PAYMENTS,Adult Social Care - Other Transfer Pay,Bi-Borough Director of Integrated Care,1155.4
22/09/2022,1247820,PERSONAL PAYMENTS,Adult Social Care - Other Transfer Pay,Bi-Borough Director of Integrated Care,8751.04
22/09/2022,1246066,Barrie Bookkeeping & Payroll,Adult Social Care - Other Transfer Pay,Bi-Borough Director of Integrated Care,9596.52
22/09/2022,1254540,PERSONAL PAYMENTS,Adult Social Care - Other Transfer Pay,Bi-Borough Director of Integrated Care,939.92
22/09/2022,1249942,PERSONAL PAYMENTS,Adult Social Care - Other Transfer Pay,Bi-Borough Director of Integrated Care,6343.36
22/09/2022,1246066,Barrie Bookkeeping & Payroll,Adult Social Care - Other Transfer Pay,Bi-Borough Director of Integrated Care,1688.6
22/09/2022,1246066,Barrie Bookkeeping & Payroll,Adult Social Care - Other Transfer Pay,Bi-Borough Director of Integrated Care,2618.28
22/09/2022,1246066,Barrie Bookkeeping & Payroll,Adult Social Care - Other Transfer Pay,Bi-Borough Director of Integrated Care,818
22/09/2022,1246066,Barrie Bookkeeping & Payroll,Adult Social Care - Other Transfer Pay,Bi-Borough Director of Integrated Care,733.8
22/09/2022,1246066,Barrie Bookkeeping & Payroll,Adult Social Care - Other Transfer Pay,Bi-Borough Director of Integrated Care,2483.4
22/09/2022,1269674,PERSONAL PAYMENTS,Adult Social Care - Other Transfer Pay,Bi-Borough Director of Integrated Care,889.28
22/09/2022,1250656,PERSONAL PAYMENTS,Social Care - Direct Payments,Bi-Borough Director of Integrated Care,1118.36
22/09/2022,1250215,PERSONAL PAYMENTS,Adult Social Care - Other Transfer Pay,Bi-Borough Director of Integrated Care,1361.56
22/09/2022,1250536,PERSONAL PAYMENTS,Adult Social Care - Other Transfer Pay,Bi-Borough Director of Integrated Care,678.64
22/09/2022,1248354,PERSONAL PAYMENTS,Adult Social Care - Other Transfer Pay,Bi-Borough Director of Integrated Care,2425.36
22/09/2022,1297850,PERSONAL PAYMENTS,Adult Social Care - Other Transfer Pay,Bi-Borough Director of Integrated Care,721.12
22/09/2022,1250012,PERSONAL PAYMENTS,Adult Social Care - Other Transfer Pay,Bi-Borough Director of Integrated Care,2015
22/09/2022,1246066,Barrie Bookkeeping & Payroll,Adult Social Care - Other Transfer Pay,Bi-Borough Director of Integrated Care,5754.04
22/09/2022,1246066,Barrie Bookkeeping & Payroll,Adult Social Care - Other Transfer Pay,Bi-Borough Director of Integrated Care,5914.56
22/09/2022,1250037,PERSONAL PAYMENTS,Adult Social Care - Other Transfer Pay,Bi-Borough Director of Integrated Care,2383.72
22/09/2022,1246066,Barrie Bookkeeping & Payroll,Adult Social Care - Other Transfer Pay,Bi-Borough Director of Integrated Care,1791.6
22/09/2022,1247727,PERSONAL PAYMENTS,Social Care - Direct Payments,Bi-Borough Director of Integrated Care,2740.72
22/09/2022,1248154,PERSONAL PAYMENTS,Adult Social Care - Other Transfer Pay,Bi-Borough Director of Integrated Care,829.52
22/09/2022,1248010,PERSONAL PAYMENTS,Adult Social Care - Other Transfer Pay,Bi-Borough Director of Integrated Care,646.16
22/09/2022,1278955,PERSONAL PAYMENTS,Social Care - Direct Payments,Bi-Borough Director of Integrated Care,1580.32
22/09/2022,1246066,Barrie Bookkeeping & Payroll,Adult Social Care - Other Transfer Pay,Bi-Borough Director of Integrated Care,4603.4
22/09/2022,1250627,PERSONAL PAYMENTS,Adult Social Care - Other Transfer Pay,Bi-Borough Director of Integrated Care,2508
22/09/2022,1250670,PERSONAL PAYMENTS,Adult Social Care - Other Transfer Pay,Bi-Borough Director of Integrated Care,1571.52
22/09/2022,1250044,PERSONAL PAYMENTS,Adult Social Care - Other Transfer Pay,Bi-Borough Director of Integrated Care,724.04
22/09/2022,1247804,PERSONAL PAYMENTS,Adult Social Care - Other Transfer Pay,Bi-Borough Director of Integrated Care,752.2
30/09/2022,1245825,Sweet Tree Home Care Services,Adult Social Care - Other Transfer Pay,Bi-Borough Director of Integrated Care,3743.26
06/09/2022,1255663,PLAY ASSOCIATION HAMMERSMITH AND FU,B*Voluntary-Spot-V Dep-Enhanced - do not u,Bi-Borough Director of Integrated Care,1503
19/07/2022,1258049,PSS (UK),,Bi-Borough Director of Integrated Care,2660.96
16/08/2022,1258049,PSS (UK),,Bi-Borough Director of Integrated Care,2660.96
14/09/2022,1258049,PSS (UK),,Bi-Borough Director of Integrated Care,2660.96
19/07/2022,1245021,Paradise Community,,Bi-Borough Director of Integrated Care,10414.68
16/08/2022,1245021,Paradise Community,,Bi-Borough Director of Integrated Care,10414.68
14/09/2022,1245021,Paradise Community,,Bi-Borough Director of Integrated Care,10414.68
19/07/2022,1292143,Pathway for Care Ltd T/a Transformi,,Bi-Borough Director of Integrated Care,22715.48
16/08/2022,1292143,Pathway for Care Ltd T/a Transformi,,Bi-Borough Director of Integrated Care,11813.4
14/09/2022,1292143,Pathway for Care Ltd T/a Transformi,,Bi-Borough Director of Integrated Care,10728.8
19/07/2022,1250448,PERSONAL PAYMENTS,,Bi-Borough Director of Integrated Care,1419.24
16/08/2022,1250448,PERSONAL PAYMENTS,,Bi-Borough Director of Integrated Care,1419.24
14/09/2022,1250448,PERSONAL PAYMENTS,,Bi-Borough Director of Integrated Care,1419.24
19/07/2022,1245163,Poor Servants of the mother of,,Bi-Borough Director of Integrated Care,2878.88
16/08/2022,1245163,Poor Servants of the mother of,,Bi-Borough Director of Integrated Care,2878.88
14/09/2022,1245163,Poor Servants of the mother of,,Bi-Borough Director of Integrated Care,2878.88
19/07/2022,1245165,Precious Homes Ltd,,Bi-Borough Director of Integrated Care,2660
19/07/2022,1245165,Precious Homes Ltd,,Bi-Borough Director of Integrated Care,2660
16/08/2022,1245165,Precious Homes Ltd,,Bi-Borough Director of Integrated Care,2660
16/08/2022,1245165,Precious Homes Ltd,,Bi-Borough Director of Integrated Care,2660
14/09/2022,1245165,Precious Homes Ltd,,Bi-Borough Director of Integrated Care,2660
14/09/2022,1245165,Precious Homes Ltd,,Bi-Borough Director of Integrated Care,2660
21/07/2022,1248563,Pursuing Independent Paths,B*Voluntary-Spot-V Dep-Enhanced - do not u,Bi-Borough Director of Integrated Care,1020.88
21/07/2022,1248563,Pursuing Independent Paths,B*Voluntary-Spot-V Dep-Enhanced - do not u,Bi-Borough Director of Integrated Care,1276.1
21/07/2022,1248563,Pursuing Independent Paths,B*Voluntary-Spot-V Dep-Enhanced - do not u,Bi-Borough Director of Integrated Care,1531.32
21/07/2022,1248563,Pursuing Independent Paths,B*Voluntary-Spot-V Dep-Enhanced - do not u,Bi-Borough Director of Integrated Care,1786.54
21/07/2022,1248563,Pursuing Independent Paths,B*Voluntary-Spot-V Dep-Enhanced - do not u,Bi-Borough Director of Integrated Care,1289.32
21/07/2022,1248563,Pursuing Independent Paths,B*Voluntary-Spot-V Dep-Enhanced - do not u,Bi-Borough Director of Integrated Care,510.44
21/07/2022,1248563,Pursuing Independent Paths,B*Voluntary-Spot-V Dep-Enhanced - do not u,Bi-Borough Director of Integrated Care,1020.88
21/07/2022,1248563,Pursuing Independent Paths,B*Voluntary-Spot-V Dep-Enhanced - do not u,Bi-Borough Director of Integrated Care,1020.88
21/07/2022,1248563,Pursuing Independent Paths,B*Voluntary-Spot-V Dep-Enhanced - do not u,Bi-Borough Director of Integrated Care,2552.2
21/07/2022,1248563,Pursuing Independent Paths,B*Voluntary-Spot-V Dep-Enhanced - do not u,Bi-Borough Director of Integrated Care,1531.32
21/07/2022,1248563,Pursuing Independent Paths,B*Voluntary-Spot-V Dep-Enhanced - do not u,Bi-Borough Director of Integrated Care,1531.32
21/07/2022,1248563,Pursuing Independent Paths,B*Voluntary-Spot-V Dep-Enhanced - do not u,Bi-Borough Director of Integrated Care,1531.32
21/07/2022,1248563,Pursuing Independent Paths,B*Voluntary-Spot-V Dep-Enhanced - do not u,Bi-Borough Director of Integrated Care,510.44
21/07/2022,1248563,Pursuing Independent Paths,B*Voluntary-Spot-V Dep-Enhanced - do not u,Bi-Borough Director of Integrated Care,1020.88
21/07/2022,1248563,Pursuing Independent Paths,B*Voluntary-Spot-V Dep-Enhanced - do not u,Bi-Borough Director of Integrated Care,1531.32
21/07/2022,1248563,Pursuing Independent Paths,B*Voluntary-Spot-V Dep-Enhanced - do not u,Bi-Borough Director of Integrated Care,1276.1
21/07/2022,1248563,Pursuing Independent Paths,B*Voluntary-Spot-V Dep-Enhanced - do not u,Bi-Borough Director of Integrated Care,2552.2
21/07/2022,1248563,Pursuing Independent Paths,B*Voluntary-Spot-V Dep-Enhanced - do not u,Bi-Borough Director of Integrated Care,1531.32
21/07/2022,1248563,Pursuing Independent Paths,B*Voluntary-Spot-V Dep-Enhanced - do not u,Bi-Borough Director of Integrated Care,1531.32
21/07/2022,1248563,Pursuing Independent Paths,B*Voluntary-Spot-V Dep-Enhanced - do not u,Bi-Borough Director of Integrated Care,1531.32
21/07/2022,1248563,Pursuing Independent Paths,B*Voluntary-Spot-V Dep-Enhanced - do not u,Bi-Borough Director of Integrated Care,1531.32
21/07/2022,1248563,Pursuing Independent Paths,B*Voluntary-Spot-V Dep-Enhanced - do not u,Bi-Borough Director of Integrated Care,510.44
21/07/2022,1248563,Pursuing Independent Paths,B*Voluntary-Spot-V Dep-Enhanced - do not u,Bi-Borough Director of Integrated Care,1020.88
21/07/2022,1248563,Pursuing Independent Paths,B*Voluntary-Spot-V Dep-Enhanced - do not u,Bi-Borough Director of Integrated Care,1276.1
21/07/2022,1248563,Pursuing Independent Paths,B*Voluntary-Spot-V Dep-Enhanced - do not u,Bi-Borough Director of Integrated Care,510.44
21/07/2022,1248563,Pursuing Independent Paths,B*Voluntary-Spot-V Dep-Enhanced - do not u,Bi-Borough Director of Integrated Care,1252.72
21/07/2022,1248563,Pursuing Independent Paths,B*Voluntary-Spot-V Dep-Enhanced - do not u,Bi-Borough Director of Integrated Care,510.44
21/07/2022,1248563,Pursuing Independent Paths,B*Voluntary-Spot-V Dep-Enhanced - do not u,Bi-Borough Director of Integrated Care,510.44
21/07/2022,1248563,Pursuing Independent Paths,B*Voluntary-Spot-V Dep-Enhanced - do not u,Bi-Borough Director of Integrated Care,1879.08
21/07/2022,1248563,Pursuing Independent Paths,B*Voluntary-Spot-V Dep-Enhanced - do not u,Bi-Borough Director of Integrated Care,510.44
21/07/2022,1248563,Pursuing Independent Paths,B*Voluntary-Spot-V Dep-Enhanced - do not u,Bi-Borough Director of Integrated Care,510.44
21/07/2022,1248563,Pursuing Independent Paths,B*Voluntary-Spot-V Dep-Enhanced - do not u,Bi-Borough Director of Integrated Care,1020.88
21/07/2022,1248563,Pursuing Independent Paths,B*Voluntary-Spot-V Dep-Enhanced - do not u,Bi-Borough Director of Integrated Care,546.9
21/07/2022,1248563,Pursuing Independent Paths,B*Voluntary-Spot-V Dep-Enhanced - do not u,Bi-Borough Director of Integrated Care,583.36
21/07/2022,1248563,Pursuing Independent Paths,B*Voluntary-Spot-V Dep-Enhanced - do not u,Bi-Borough Director of Integrated Care,510.44
21/07/2022,1248563,Pursuing Independent Paths,B*Voluntary-Spot-V Dep-Enhanced - do not u,Bi-Borough Director of Integrated Care,1531.32
21/07/2022,1248563,Pursuing Independent Paths,B*Voluntary-Spot-V Dep-Enhanced - do not u,Bi-Borough Director of Integrated Care,2041.76
21/07/2022,1248563,Pursuing Independent Paths,B*Voluntary-Spot-V Dep-Enhanced - do not u,Bi-Borough Director of Integrated Care,2041.76
21/07/2022,1248563,Pursuing Independent Paths,B*Voluntary-Spot-V Dep-Enhanced - do not u,Bi-Borough Director of Integrated Care,1531.32
21/07/2022,1248563,Pursuing Independent Paths,B*Voluntary-Spot-V Dep-Enhanced - do not u,Bi-Borough Director of Integrated Care,1531.32
21/07/2022,1248563,Pursuing Independent Paths,B*Voluntary-Spot-V Dep-Enhanced - do not u,Bi-Borough Director of Integrated Care,1531.32
25/08/2022,1248563,Pursuing Independent Paths,B*Voluntary-Spot-V Dep-Enhanced - do not u,Bi-Borough Director of Integrated Care,1020.88
25/08/2022,1248563,Pursuing Independent Paths,B*Voluntary-Spot-V Dep-Enhanced - do not u,Bi-Borough Director of Integrated Care,1276.12
25/08/2022,1248563,Pursuing Independent Paths,B*Voluntary-Spot-V Dep-Enhanced - do not u,Bi-Borough Director of Integrated Care,1531.32
25/08/2022,1248563,Pursuing Independent Paths,B*Voluntary-Spot-V Dep-Enhanced - do not u,Bi-Borough Director of Integrated Care,1786.56
25/08/2022,1248563,Pursuing Independent Paths,B*Voluntary-Spot-V Dep-Enhanced - do not u,Bi-Borough Director of Integrated Care,1289.32
25/08/2022,1248563,Pursuing Independent Paths,B*Voluntary-Spot-V Dep-Enhanced - do not u,Bi-Borough Director of Integrated Care,510.44
25/08/2022,1248563,Pursuing Independent Paths,B*Voluntary-Spot-V Dep-Enhanced - do not u,Bi-Borough Director of Integrated Care,1020.88
25/08/2022,1248563,Pursuing Independent Paths,B*Voluntary-Spot-V Dep-Enhanced - do not u,Bi-Borough Director of Integrated Care,1020.88
25/08/2022,1248563,Pursuing Independent Paths,B*Voluntary-Spot-V Dep-Enhanced - do not u,Bi-Borough Director of Integrated Care,2552.2
25/08/2022,1248563,Pursuing Independent Paths,B*Voluntary-Spot-V Dep-Enhanced - do not u,Bi-Borough Director of Integrated Care,1531.32
25/08/2022,1248563,Pursuing Independent Paths,B*Voluntary-Spot-V Dep-Enhanced - do not u,Bi-Borough Director of Integrated Care,1531.32
25/08/2022,1248563,Pursuing Independent Paths,B*Voluntary-Spot-V Dep-Enhanced - do not u,Bi-Borough Director of Integrated Care,1531.32
25/08/2022,1248563,Pursuing Independent Paths,B*Voluntary-Spot-V Dep-Enhanced - do not u,Bi-Borough Director of Integrated Care,510.44
25/08/2022,1248563,Pursuing Independent Paths,B*Voluntary-Spot-V Dep-Enhanced - do not u,Bi-Borough Director of Integrated Care,1020.88
25/08/2022,1248563,Pursuing Independent Paths,B*Voluntary-Spot-V Dep-Enhanced - do not u,Bi-Borough Director of Integrated Care,1531.32
25/08/2022,1248563,Pursuing Independent Paths,B*Voluntary-Spot-V Dep-Enhanced - do not u,Bi-Borough Director of Integrated Care,1276.12
25/08/2022,1248563,Pursuing Independent Paths,B*Voluntary-Spot-V Dep-Enhanced - do not u,Bi-Borough Director of Integrated Care,2552.2
25/08/2022,1248563,Pursuing Independent Paths,B*Voluntary-Spot-V Dep-Enhanced - do not u,Bi-Borough Director of Integrated Care,1531.32
25/08/2022,1248563,Pursuing Independent Paths,B*Voluntary-Spot-V Dep-Enhanced - do not u,Bi-Borough Director of Integrated Care,1531.32
25/08/2022,1248563,Pursuing Independent Paths,B*Voluntary-Spot-V Dep-Enhanced - do not u,Bi-Borough Director of Integrated Care,1531.32
25/08/2022,1248563,Pursuing Independent Paths,B*Voluntary-Spot-V Dep-Enhanced - do not u,Bi-Borough Director of Integrated Care,1531.32
25/08/2022,1248563,Pursuing Independent Paths,B*Voluntary-Spot-V Dep-Enhanced - do not u,Bi-Borough Director of Integrated Care,510.44
25/08/2022,1248563,Pursuing Independent Paths,B*Voluntary-Spot-V Dep-Enhanced - do not u,Bi-Borough Director of Integrated Care,1531.32
25/08/2022,1248563,Pursuing Independent Paths,B*Voluntary-Spot-V Dep-Enhanced - do not u,Bi-Borough Director of Integrated Care,1276.12
25/08/2022,1248563,Pursuing Independent Paths,B*Voluntary-Spot-V Dep-Enhanced - do not u,Bi-Borough Director of Integrated Care,510.44
25/08/2022,1248563,Pursuing Independent Paths,B*Voluntary-Spot-V Dep-Enhanced - do not u,Bi-Borough Director of Integrated Care,1252.72
25/08/2022,1248563,Pursuing Independent Paths,B*Voluntary-Spot-V Dep-Enhanced - do not u,Bi-Borough Director of Integrated Care,510.44
25/08/2022,1248563,Pursuing Independent Paths,B*Voluntary-Spot-V Dep-Enhanced - do not u,Bi-Borough Director of Integrated Care,510.44
25/08/2022,1248563,Pursuing Independent Paths,B*Voluntary-Spot-V Dep-Enhanced - do not u,Bi-Borough Director of Integrated Care,1879.08
25/08/2022,1248563,Pursuing Independent Paths,B*Voluntary-Spot-V Dep-Enhanced - do not u,Bi-Borough Director of Integrated Care,510.44
25/08/2022,1248563,Pursuing Independent Paths,B*Voluntary-Spot-V Dep-Enhanced - do not u,Bi-Borough Director of Integrated Care,510.44
25/08/2022,1248563,Pursuing Independent Paths,B*Voluntary-Spot-V Dep-Enhanced - do not u,Bi-Borough Director of Integrated Care,1020.88
25/08/2022,1248563,Pursuing Independent Paths,B*Voluntary-Spot-V Dep-Enhanced - do not u,Bi-Borough Director of Integrated Care,546.92
25/08/2022,1248563,Pursuing Independent Paths,B*Voluntary-Spot-V Dep-Enhanced - do not u,Bi-Borough Director of Integrated Care,583.36
25/08/2022,1248563,Pursuing Independent Paths,B*Voluntary-Spot-V Dep-Enhanced - do not u,Bi-Borough Director of Integrated Care,510.44
25/08/2022,1248563,Pursuing Independent Paths,B*Voluntary-Spot-V Dep-Enhanced - do not u,Bi-Borough Director of Integrated Care,1531.32
25/08/2022,1248563,Pursuing Independent Paths,B*Voluntary-Spot-V Dep-Enhanced - do not u,Bi-Borough Director of Integrated Care,1148.49
25/08/2022,1248563,Pursuing Independent Paths,B*Voluntary-Spot-V Dep-Enhanced - do not u,Bi-Borough Director of Integrated Care,2041.76
25/08/2022,1248563,Pursuing Independent Paths,B*Voluntary-Spot-V Dep-Enhanced - do not u,Bi-Borough Director of Integrated Care,2041.76
25/08/2022,1248563,Pursuing Independent Paths,B*Voluntary-Spot-V Dep-Enhanced - do not u,Bi-Borough Director of Integrated Care,1531.32
25/08/2022,1248563,Pursuing Independent Paths,B*Voluntary-Spot-V Dep-Enhanced - do not u,Bi-Borough Director of Integrated Care,1531.32
25/08/2022,1248563,Pursuing Independent Paths,B*Voluntary-Spot-V Dep-Enhanced - do not u,Bi-Borough Director of Integrated Care,1531.32
23/09/2022,1248563,Pursuing Independent Paths,B*Voluntary-Spot-V Dep-Enhanced - do not u,Bi-Borough Director of Integrated Care,1020.88
23/09/2022,1248563,Pursuing Independent Paths,B*Voluntary-Spot-V Dep-Enhanced - do not u,Bi-Borough Director of Integrated Care,1276.1
23/09/2022,1248563,Pursuing Independent Paths,B*Voluntary-Spot-V Dep-Enhanced - do not u,Bi-Borough Director of Integrated Care,1531.32
23/09/2022,1248563,Pursuing Independent Paths,B*Voluntary-Spot-V Dep-Enhanced - do not u,Bi-Borough Director of Integrated Care,1786.54
23/09/2022,1248563,Pursuing Independent Paths,B*Voluntary-Spot-V Dep-Enhanced - do not u,Bi-Borough Director of Integrated Care,1289.32
23/09/2022,1248563,Pursuing Independent Paths,B*Voluntary-Spot-V Dep-Enhanced - do not u,Bi-Borough Director of Integrated Care,510.44
23/09/2022,1248563,Pursuing Independent Paths,B*Voluntary-Spot-V Dep-Enhanced - do not u,Bi-Borough Director of Integrated Care,1020.88
23/09/2022,1248563,Pursuing Independent Paths,B*Voluntary-Spot-V Dep-Enhanced - do not u,Bi-Borough Director of Integrated Care,1914.15
23/09/2022,1248563,Pursuing Independent Paths,B*Voluntary-Spot-V Dep-Enhanced - do not u,Bi-Borough Director of Integrated Care,1531.32
23/09/2022,1248563,Pursuing Independent Paths,B*Voluntary-Spot-V Dep-Enhanced - do not u,Bi-Borough Director of Integrated Care,1531.32
23/09/2022,1248563,Pursuing Independent Paths,B*Voluntary-Spot-V Dep-Enhanced - do not u,Bi-Borough Director of Integrated Care,1531.32
23/09/2022,1248563,Pursuing Independent Paths,B*Voluntary-Spot-V Dep-Enhanced - do not u,Bi-Borough Director of Integrated Care,510.44
23/09/2022,1248563,Pursuing Independent Paths,B*Voluntary-Spot-V Dep-Enhanced - do not u,Bi-Borough Director of Integrated Care,1020.88
23/09/2022,1248563,Pursuing Independent Paths,B*Voluntary-Spot-V Dep-Enhanced - do not u,Bi-Borough Director of Integrated Care,1531.32
23/09/2022,1248563,Pursuing Independent Paths,B*Voluntary-Spot-V Dep-Enhanced - do not u,Bi-Borough Director of Integrated Care,1276.1
23/09/2022,1248563,Pursuing Independent Paths,B*Voluntary-Spot-V Dep-Enhanced - do not u,Bi-Borough Director of Integrated Care,2552.2
23/09/2022,1248563,Pursuing Independent Paths,B*Voluntary-Spot-V Dep-Enhanced - do not u,Bi-Borough Director of Integrated Care,1531.32
23/09/2022,1248563,Pursuing Independent Paths,B*Voluntary-Spot-V Dep-Enhanced - do not u,Bi-Borough Director of Integrated Care,1418.26
23/09/2022,1248563,Pursuing Independent Paths,B*Voluntary-Spot-V Dep-Enhanced - do not u,Bi-Borough Director of Integrated Care,1531.32
23/09/2022,1248563,Pursuing Independent Paths,B*Voluntary-Spot-V Dep-Enhanced - do not u,Bi-Borough Director of Integrated Care,1531.32
23/09/2022,1248563,Pursuing Independent Paths,B*Voluntary-Spot-V Dep-Enhanced - do not u,Bi-Borough Director of Integrated Care,510.44
23/09/2022,1248563,Pursuing Independent Paths,B*Voluntary-Spot-V Dep-Enhanced - do not u,Bi-Borough Director of Integrated Care,1531.32
23/09/2022,1248563,Pursuing Independent Paths,B*Voluntary-Spot-V Dep-Enhanced - do not u,Bi-Borough Director of Integrated Care,1276.1
23/09/2022,1248563,Pursuing Independent Paths,B*Voluntary-Spot-V Dep-Enhanced - do not u,Bi-Borough Director of Integrated Care,510.44
23/09/2022,1248563,Pursuing Independent Paths,B*Voluntary-Spot-V Dep-Enhanced - do not u,Bi-Borough Director of Integrated Care,1252.72
23/09/2022,1248563,Pursuing Independent Paths,B*Voluntary-Spot-V Dep-Enhanced - do not u,Bi-Borough Director of Integrated Care,510.44
23/09/2022,1248563,Pursuing Independent Paths,B*Voluntary-Spot-V Dep-Enhanced - do not u,Bi-Borough Director of Integrated Care,510.44
23/09/2022,1248563,Pursuing Independent Paths,B*Voluntary-Spot-V Dep-Enhanced - do not u,Bi-Borough Director of Integrated Care,1879.08
23/09/2022,1248563,Pursuing Independent Paths,B*Voluntary-Spot-V Dep-Enhanced - do not u,Bi-Borough Director of Integrated Care,510.44
23/09/2022,1248563,Pursuing Independent Paths,B*Voluntary-Spot-V Dep-Enhanced - do not u,Bi-Borough Director of Integrated Care,510.44
23/09/2022,1248563,Pursuing Independent Paths,B*Voluntary-Spot-V Dep-Enhanced - do not u,Bi-Borough Director of Integrated Care,1020.88
23/09/2022,1248563,Pursuing Independent Paths,B*Voluntary-Spot-V Dep-Enhanced - do not u,Bi-Borough Director of Integrated Care,546.9
23/09/2022,1248563,Pursuing Independent Paths,B*Voluntary-Spot-V Dep-Enhanced - do not u,Bi-Borough Director of Integrated Care,583.36
23/09/2022,1248563,Pursuing Independent Paths,B*Voluntary-Spot-V Dep-Enhanced - do not u,Bi-Borough Director of Integrated Care,510.44
23/09/2022,1248563,Pursuing Independent Paths,B*Voluntary-Spot-V Dep-Enhanced - do not u,Bi-Borough Director of Integrated Care,1531.32
23/09/2022,1248563,Pursuing Independent Paths,B*Voluntary-Spot-V Dep-Enhanced - do not u,Bi-Borough Director of Integrated Care,1531.32
23/09/2022,1248563,Pursuing Independent Paths,B*Voluntary-Spot-V Dep-Enhanced - do not u,Bi-Borough Director of Integrated Care,2041.76
23/09/2022,1248563,Pursuing Independent Paths,B*Voluntary-Spot-V Dep-Enhanced - do not u,Bi-Borough Director of Integrated Care,2041.76
23/09/2022,1248563,Pursuing Independent Paths,B*Voluntary-Spot-V Dep-Enhanced - do not u,Bi-Borough Director of Integrated Care,1531.32
23/09/2022,1248563,Pursuing Independent Paths,B*Voluntary-Spot-V Dep-Enhanced - do not u,Bi-Borough Director of Integrated Care,1531.32
23/09/2022,1248563,Pursuing Independent Paths,B*Voluntary-Spot-V Dep-Enhanced - do not u,Bi-Borough Director of Integrated Care,1531.32
19/07/2022,1245169,Rcp Residential Care Providers Ltd,,Bi-Borough Director of Integrated Care,6610.24
19/07/2022,1245169,Rcp Residential Care Providers Ltd,,Bi-Borough Director of Integrated Care,930.96
16/08/2022,1245169,Rcp Residential Care Providers Ltd,,Bi-Borough Director of Integrated Care,6610.24
16/08/2022,1245169,Rcp Residential Care Providers Ltd,,Bi-Borough Director of Integrated Care,930.96
14/09/2022,1245169,Rcp Residential Care Providers Ltd,,Bi-Borough Director of Integrated Care,6610.24
14/09/2022,1245169,Rcp Residential Care Providers Ltd,,Bi-Borough Director of Integrated Care,930.96
19/07/2022,1269718,Reliant Care Limited,,Bi-Borough Director of Integrated Care,7008
19/07/2022,1269718,Reliant Care Limited,,Bi-Borough Director of Integrated Care,11933.6
19/07/2022,1269718,Reliant Care Limited,,Bi-Borough Director of Integrated Care,5124
19/07/2022,1269718,Reliant Care Limited,,Bi-Borough Director of Integrated Care,3712
19/07/2022,1269718,Reliant Care Limited,,Bi-Borough Director of Integrated Care,3712
16/08/2022,1269718,Reliant Care Limited,,Bi-Borough Director of Integrated Care,7008
16/08/2022,1269718,Reliant Care Limited,,Bi-Borough Director of Integrated Care,3712
16/08/2022,1269718,Reliant Care Limited,,Bi-Borough Director of Integrated Care,3712
16/08/2022,1269718,Reliant Care Limited,,Bi-Borough Director of Integrated Care,5124
16/08/2022,1269718,Reliant Care Limited,,Bi-Borough Director of Integrated Care,11933.6
14/09/2022,1269718,Reliant Care Limited,,Bi-Borough Director of Integrated Care,3712
14/09/2022,1269718,Reliant Care Limited,,Bi-Borough Director of Integrated Care,3712
14/09/2022,1269718,Reliant Care Limited,,Bi-Borough Director of Integrated Care,5124
14/09/2022,1269718,Reliant Care Limited,,Bi-Borough Director of Integrated Care,7008
14/09/2022,1269718,Reliant Care Limited,,Bi-Borough Director of Integrated Care,11933.6
05/07/2022,1245316,Respect Care Services Ltd,,Bi-Borough Director of Integrated Care,1543.76
08/07/2022,1245316,Respect Care Services Ltd,,Bi-Borough Director of Integrated Care,1543.76
21/07/2022,1245316,Respect Care Services Ltd,,Bi-Borough Director of Integrated Care,1661.22
05/08/2022,1245316,Respect Care Services Ltd,,Bi-Borough Director of Integrated Care,1778.68
12/08/2022,1245316,Respect Care Services Ltd,,Bi-Borough Director of Integrated Care,1778.68
20/08/2022,1245316,Respect Care Services Ltd,,Bi-Borough Director of Integrated Care,1778.68
13/09/2022,1245316,Respect Care Services Ltd,,Bi-Borough Director of Integrated Care,1778.68
20/09/2022,1245316,Respect Care Services Ltd,,Bi-Borough Director of Integrated Care,1778.68
06/07/2022,1248843,Sage Care Ltd,,Bi-Borough Director of Integrated Care,665.92
06/07/2022,1248843,Sage Care Ltd,,Bi-Borough Director of Integrated Care,514.25
06/07/2022,1248843,Sage Care Ltd,,Bi-Borough Director of Integrated Care,1667.72
06/07/2022,1248843,Sage Care Ltd,,Bi-Borough Director of Integrated Care,1486.26
06/07/2022,1248843,Sage Care Ltd,,Bi-Borough Director of Integrated Care,518.84
06/07/2022,1248843,Sage Care Ltd,,Bi-Borough Director of Integrated Care,1503.01
30/08/2022,1248843,Sage Care Ltd,,Bi-Borough Director of Integrated Care,605.39
30/08/2022,1248843,Sage Care Ltd,,Bi-Borough Director of Integrated Care,544.23
30/08/2022,1248843,Sage Care Ltd,,Bi-Borough Director of Integrated Care,1667.72
30/08/2022,1248843,Sage Care Ltd,,Bi-Borough Director of Integrated Care,1485.71
30/08/2022,1248843,Sage Care Ltd,,Bi-Borough Director of Integrated Care,1465.66
20/09/2022,1248843,Sage Care Ltd,,Bi-Borough Director of Integrated Care,592.44
20/09/2022,1248843,Sage Care Ltd,,Bi-Borough Director of Integrated Care,547.64
20/09/2022,1248843,Sage Care Ltd,,Bi-Borough Director of Integrated Care,1658.76
20/09/2022,1248843,Sage Care Ltd,,Bi-Borough Director of Integrated Care,1514.62
20/09/2022,1248843,Sage Care Ltd,,Bi-Borough Director of Integrated Care,500.31
20/09/2022,1248843,Sage Care Ltd,,Bi-Borough Director of Integrated Care,1478.6
22/09/2022,1248843,Sage Care Ltd,,Bi-Borough Director of Integrated Care,1376.35
22/09/2022,1248843,Sage Care Ltd,,Bi-Borough Director of Integrated Care,556
22/09/2022,1248843,Sage Care Ltd,,Bi-Borough Director of Integrated Care,1595.45
22/09/2022,1248843,Sage Care Ltd,,Bi-Borough Director of Integrated Care,1508.95
22/09/2022,1248843,Sage Care Ltd,,Bi-Borough Director of Integrated Care,518.84
19/07/2022,1262057,Sense - The National Deafbllind,,Bi-Borough Director of Integrated Care,4550
19/07/2022,1262057,Sense - The National Deafbllind,,Bi-Borough Director of Integrated Care,4550
16/08/2022,1262057,Sense - The National Deafbllind,,Bi-Borough Director of Integrated Care,4550
16/08/2022,1262057,Sense - The National Deafbllind,,Bi-Borough Director of Integrated Care,4550
14/09/2022,1262057,Sense - The National Deafbllind,,Bi-Borough Director of Integrated Care,4550
14/09/2022,1262057,Sense - The National Deafbllind,,Bi-Borough Director of Integrated Care,4550
19/07/2022,1243535,Sequence Care Ltd,,Bi-Borough Director of Integrated Care,11348.56
19/07/2022,1243535,Sequence Care Ltd,,Bi-Borough Director of Integrated Care,11348.56
19/07/2022,1243535,Sequence Care Ltd,,Bi-Borough Director of Integrated Care,18975.55
16/08/2022,1243535,Sequence Care Ltd,,Bi-Borough Director of Integrated Care,10476.68
16/08/2022,1243535,Sequence Care Ltd,,Bi-Borough Director of Integrated Care,10476.68
16/08/2022,1243535,Sequence Care Ltd,,Bi-Borough Director of Integrated Care,17517.72
14/09/2022,1243535,Sequence Care Ltd,,Bi-Borough Director of Integrated Care,10476.68
14/09/2022,1243535,Sequence Care Ltd,,Bi-Borough Director of Integrated Care,10476.68
14/09/2022,1243535,Sequence Care Ltd,,Bi-Borough Director of Integrated Care,17517.72
19/07/2022,1243536,Sharda Care Ltd,,Bi-Borough Director of Integrated Care,6500
16/08/2022,1243536,Sharda Care Ltd,,Bi-Borough Director of Integrated Care,6500
14/09/2022,1243536,Sharda Care Ltd,,Bi-Borough Director of Integrated Care,6500
19/07/2022,1245566,Shaw Care Uk Ltd,,Bi-Borough Director of Integrated Care,9389.15
19/07/2022,1245566,Shaw Care Uk Ltd,,Bi-Borough Director of Integrated Care,9389.15
16/08/2022,1245566,Shaw Care Uk Ltd,,Bi-Borough Director of Integrated Care,4852
16/08/2022,1245566,Shaw Care Uk Ltd,,Bi-Borough Director of Integrated Care,4852
14/09/2022,1245566,Shaw Care Uk Ltd,,Bi-Borough Director of Integrated Care,4852
14/09/2022,1245566,Shaw Care Uk Ltd,,Bi-Borough Director of Integrated Care,4852
19/07/2022,1248935,Southside Partnership,,Bi-Borough Director of Integrated Care,800
19/07/2022,1248935,Southside Partnership,,Bi-Borough Director of Integrated Care,2546.68
19/07/2022,1248935,Southside Partnership,,Bi-Borough Director of Integrated Care,3592.8
19/07/2022,1248935,Southside Partnership,,Bi-Borough Director of Integrated Care,800
16/08/2022,1248935,Southside Partnership,,Bi-Borough Director of Integrated Care,2546.68
16/08/2022,1248935,Southside Partnership,,Bi-Borough Director of Integrated Care,800
16/08/2022,1248935,Southside Partnership,,Bi-Borough Director of Integrated Care,800
16/08/2022,1248935,Southside Partnership,,Bi-Borough Director of Integrated Care,3592.8
14/09/2022,1248935,Southside Partnership,,Bi-Borough Director of Integrated Care,3592.8
14/09/2022,1248935,Southside Partnership,,Bi-Borough Director of Integrated Care,800
14/09/2022,1248935,Southside Partnership,,Bi-Borough Director of Integrated Care,2546.68
14/09/2022,1248935,Southside Partnership,,Bi-Borough Director of Integrated Care,800
16/08/2022,1248940,Special People,B*Voluntary-Spot-V Dep-Enhanced - do not u,Bi-Borough Director of Integrated Care,1125.36
16/08/2022,1248940,Special People,B*Voluntary-Spot-V Dep-Enhanced - do not u,Bi-Borough Director of Integrated Care,4101.99
14/09/2022,1248940,Special People,B*Voluntary-Spot-V Dep-Enhanced - do not u,Bi-Borough Director of Integrated Care,1458.82
14/09/2022,1248940,Special People,B*Voluntary-Spot-V Dep-Enhanced - do not u,Bi-Borough Director of Integrated Care,2652.66
14/09/2022,1248940,Special People,B*Voluntary-Spot-V Dep-Enhanced - do not u,Bi-Borough Director of Integrated Care,3673.5
14/09/2022,1248940,Special People,B*Voluntary-Spot-V Dep-Enhanced - do not u,Bi-Borough Director of Integrated Care,1103.4
19/07/2022,1245620,Spencer & Arlington,,Bi-Borough Director of Integrated Care,6627.6
19/07/2022,1245620,Spencer & Arlington,,Bi-Borough Director of Integrated Care,2576
19/07/2022,1245620,Spencer & Arlington,,Bi-Borough Director of Integrated Care,12835.2
19/07/2022,1245620,Spencer & Arlington,,Bi-Borough Director of Integrated Care,3724.56
16/08/2022,1245620,Spencer & Arlington,,Bi-Borough Director of Integrated Care,6627.6
16/08/2022,1245620,Spencer & Arlington,,Bi-Borough Director of Integrated Care,2576
16/08/2022,1245620,Spencer & Arlington,,Bi-Borough Director of Integrated Care,3724.56
16/08/2022,1245620,Spencer & Arlington,,Bi-Borough Director of Integrated Care,12835.2
14/09/2022,1245620,Spencer & Arlington,,Bi-Borough Director of Integrated Care,3724.56
14/09/2022,1245620,Spencer & Arlington,,Bi-Borough Director of Integrated Care,12835.2
14/09/2022,1245620,Spencer & Arlington,,Bi-Borough Director of Integrated Care,2576
14/09/2022,1245620,Spencer & Arlington,,Bi-Borough Director of Integrated Care,6627.6
19/07/2022,1243543,Springlake Care Home Ltd,,Bi-Borough Director of Integrated Care,6800
19/07/2022,1243543,Springlake Care Home Ltd,,Bi-Borough Director of Integrated Care,5400
19/07/2022,1243543,Springlake Care Home Ltd,,Bi-Borough Director of Integrated Care,6000
16/08/2022,1243543,Springlake Care Home Ltd,,Bi-Borough Director of Integrated Care,6800
16/08/2022,1243543,Springlake Care Home Ltd,,Bi-Borough Director of Integrated Care,5400
16/08/2022,1243543,Springlake Care Home Ltd,,Bi-Borough Director of Integrated Care,6000
14/09/2022,1243543,Springlake Care Home Ltd,,Bi-Borough Director of Integrated Care,6000
14/09/2022,1243543,Springlake Care Home Ltd,,Bi-Borough Director of Integrated Care,5400
14/09/2022,1243543,Springlake Care Home Ltd,,Bi-Borough Director of Integrated Care,6800
19/07/2022,1248948,St Davids Care In The Community,,Bi-Borough Director of Integrated Care,3132.56
19/07/2022,1248948,St Davids Care In The Community,,Bi-Borough Director of Integrated Care,3440
16/08/2022,1248948,St Davids Care In The Community,,Bi-Borough Director of Integrated Care,3132.56
16/08/2022,1248948,St Davids Care In The Community,,Bi-Borough Director of Integrated Care,3440
14/09/2022,1248948,St Davids Care In The Community,,Bi-Borough Director of Integrated Care,3132.56
14/09/2022,1248948,St Davids Care In The Community,,Bi-Borough Director of Integrated Care,3440
04/07/2022,1245825,Sweet Tree Home Care Services,,Bi-Borough Director of Integrated Care,5617.87
05/07/2022,1245825,Sweet Tree Home Care Services,,Bi-Borough Director of Integrated Care,5520.16
05/08/2022,1245825,Sweet Tree Home Care Services,,Bi-Borough Director of Integrated Care,2781.9
30/09/2022,1245825,Sweet Tree Home Care Services,,Bi-Borough Director of Integrated Care,3486.73
19/07/2022,1245900,The Grace Eyre Foundation,,Bi-Borough Director of Integrated Care,4235.96
19/07/2022,1245900,The Grace Eyre Foundation,,Bi-Borough Director of Integrated Care,3290.16
16/08/2022,1245900,The Grace Eyre Foundation,,Bi-Borough Director of Integrated Care,4235.96
16/08/2022,1245900,The Grace Eyre Foundation,,Bi-Borough Director of Integrated Care,3290.16
14/09/2022,1245900,The Grace Eyre Foundation,,Bi-Borough Director of Integrated Care,3290.16
14/09/2022,1245900,The Grace Eyre Foundation,,Bi-Borough Director of Integrated Care,4235.96
16/08/2022,1249156,The Wirral Autistic Society,,Bi-Borough Director of Integrated Care,10194.56
14/09/2022,1249156,The Wirral Autistic Society,,Bi-Borough Director of Integrated Care,5097.28
19/07/2022,1246095,Theana Ltd T/a Enlighten Homes,,Bi-Borough Director of Integrated Care,5892
16/08/2022,1246095,Theana Ltd T/a Enlighten Homes,,Bi-Borough Director of Integrated Care,14309.14
14/09/2022,1246095,Theana Ltd T/a Enlighten Homes,,Bi-Borough Director of Integrated Care,2946
14/09/2022,1246095,Theana Ltd T/a Enlighten Homes,,Bi-Borough Director of Integrated Care,2946
19/07/2022,1287640,VIVID COMMUNITY CARE LTD,,Bi-Borough Director of Integrated Care,17290.56
16/08/2022,1287640,VIVID COMMUNITY CARE LTD,,Bi-Borough Director of Integrated Care,17290.56
14/09/2022,1287640,VIVID COMMUNITY CARE LTD,,Bi-Borough Director of Integrated Care,15452.88
19/07/2022,1243552,Vision Homes Association,,Bi-Borough Director of Integrated Care,7760
16/08/2022,1243552,Vision Homes Association,,Bi-Borough Director of Integrated Care,7760
14/09/2022,1243552,Vision Homes Association,,Bi-Borough Director of Integrated Care,7760
19/07/2022,1243553,Voyage Care (Bridge House),,Bi-Borough Director of Integrated Care,6627
19/07/2022,1243553,Voyage Care (Bridge House),,Bi-Borough Director of Integrated Care,5079.2
19/07/2022,1243553,Voyage Care (Bridge House),,Bi-Borough Director of Integrated Care,7189.6
16/08/2022,1243553,Voyage Care (Bridge House),,Bi-Borough Director of Integrated Care,5079.2
16/08/2022,1243553,Voyage Care (Bridge House),,Bi-Borough Director of Integrated Care,6627
16/08/2022,1243553,Voyage Care (Bridge House),,Bi-Borough Director of Integrated Care,7189.6
14/09/2022,1243553,Voyage Care (Bridge House),,Bi-Borough Director of Integrated Care,7123.98
14/09/2022,1243553,Voyage Care (Bridge House),,Bi-Borough Director of Integrated Care,7189.6
14/09/2022,1243553,Voyage Care (Bridge House),,Bi-Borough Director of Integrated Care,5079.2
19/07/2022,1243554,Voyage Care (Kenton House),,Bi-Borough Director of Integrated Care,6274.76
16/08/2022,1243554,Voyage Care (Kenton House),,Bi-Borough Director of Integrated Care,6274.76
14/09/2022,1243554,Voyage Care (Kenton House),,Bi-Borough Director of Integrated Care,6274.76
15/07/2022,1249291,Westminster Society,B*Voluntary-Spot-V Dep-Enhanced - do not u,Bi-Borough Director of Integrated Care,1315.6
15/07/2022,1249291,Westminster Society,B*Voluntary-Spot-V Dep-Enhanced - do not u,Bi-Borough Director of Integrated Care,1416.8
15/07/2022,1249291,Westminster Society,B*Voluntary-Spot-V Dep-Enhanced - do not u,Bi-Borough Director of Integrated Care,809.6
15/07/2022,1249291,Westminster Society,B*Voluntary-Spot-V Dep-Enhanced - do not u,Bi-Borough Director of Integrated Care,1214.4
15/07/2022,1249291,Westminster Society,B*Voluntary-Spot-V Dep-Enhanced - do not u,Bi-Borough Director of Integrated Care,546.48
15/07/2022,1249291,Westminster Society,B*Voluntary-Spot-V Dep-Enhanced - do not u,Bi-Borough Director of Integrated Care,2428.8
15/07/2022,1249291,Westminster Society,B*Voluntary-Spot-V Dep-Enhanced - do not u,Bi-Borough Director of Integrated Care,1376.32
15/07/2022,1249291,Westminster Society,B*Voluntary-Spot-V Dep-Enhanced - do not u,Bi-Borough Director of Integrated Care,1295.36
15/07/2022,1249291,Westminster Society,B*Voluntary-Spot-V Dep-Enhanced - do not u,Bi-Borough Director of Integrated Care,809.6
15/07/2022,1249291,Westminster Society,B*Voluntary-Spot-V Dep-Enhanced - do not u,Bi-Borough Director of Integrated Care,809.6
15/07/2022,1249291,Westminster Society,B*Voluntary-Spot-V Dep-Enhanced - do not u,Bi-Borough Director of Integrated Care,2732.4
15/07/2022,1249291,Westminster Society,B*Voluntary-Spot-V Dep-Enhanced - do not u,Bi-Borough Director of Integrated Care,910.8
15/07/2022,1249291,Westminster Society,B*Voluntary-Spot-V Dep-Enhanced - do not u,Bi-Borough Director of Integrated Care,607.2
15/07/2022,1249291,Westminster Society,B*Voluntary-Spot-V Dep-Enhanced - do not u,Bi-Borough Director of Integrated Care,1012
15/07/2022,1249291,Westminster Society,B*Voluntary-Spot-V Dep-Enhanced - do not u,Bi-Borough Director of Integrated Care,809.6
15/07/2022,1249291,Westminster Society,B*Voluntary-Spot-V Dep-Enhanced - do not u,Bi-Borough Director of Integrated Care,1619.2
15/07/2022,1249291,Westminster Society,B*Voluntary-Spot-V Dep-Enhanced - do not u,Bi-Borough Director of Integrated Care,2530
15/07/2022,1249291,Westminster Society,B*Voluntary-Spot-V Dep-Enhanced - do not u,Bi-Borough Director of Integrated Care,1922.8
15/07/2022,1249291,Westminster Society,B*Voluntary-Spot-V Dep-Enhanced - do not u,Bi-Borough Director of Integrated Care,1416.8
15/07/2022,1249291,Westminster Society,B*Voluntary-Spot-V Dep-Enhanced - do not u,Bi-Borough Director of Integrated Care,1113.2
15/07/2022,1249291,Westminster Society,B*Voluntary-Spot-V Dep-Enhanced - do not u,Bi-Borough Director of Integrated Care,607.2
15/07/2022,1249291,Westminster Society,B*Voluntary-Spot-V Dep-Enhanced - do not u,Bi-Borough Director of Integrated Care,910.8
19/07/2022,1249291,Westminster Society,,Bi-Borough Director of Integrated Care,4846.1
19/07/2022,1249291,Westminster Society,,Bi-Borough Director of Integrated Care,9435.04
19/07/2022,1249291,Westminster Society,,Bi-Borough Director of Integrated Care,1780.08
19/07/2022,1249291,Westminster Society,,Bi-Borough Director of Integrated Care,3202.72
19/07/2022,1249291,Westminster Society,,Bi-Borough Director of Integrated Care,2683.36
19/07/2022,1249291,Westminster Society,,Bi-Borough Director of Integrated Care,2337.12
19/07/2022,1249291,Westminster Society,,Bi-Borough Director of Integrated Care,605.92
19/07/2022,1249291,Westminster Society,,Bi-Borough Director of Integrated Care,4521.48
19/07/2022,1249291,Westminster Society,,Bi-Borough Director of Integrated Care,1211.84
19/07/2022,1249291,Westminster Society,,Bi-Borough Director of Integrated Care,6858.59
19/07/2022,1249291,Westminster Society,,Bi-Borough Director of Integrated Care,1211.84
19/07/2022,1249291,Westminster Society,,Bi-Borough Director of Integrated Care,692.48
19/07/2022,1249291,Westminster Society,,Bi-Borough Director of Integrated Care,1211.84
19/07/2022,1249291,Westminster Society,,Bi-Borough Director of Integrated Care,692.48
19/07/2022,1249291,Westminster Society,,Bi-Borough Director of Integrated Care,2423.68
19/07/2022,1249291,Westminster Society,,Bi-Borough Director of Integrated Care,1012.73
19/07/2022,1249291,Westminster Society,,Bi-Borough Director of Integrated Care,1428.19
19/07/2022,1249291,Westminster Society,,Bi-Borough Director of Integrated Care,3937.16
19/07/2022,1249291,Westminster Society,,Bi-Borough Director of Integrated Care,1012.73
19/07/2022,1249291,Westminster Society,,Bi-Borough Director of Integrated Care,2337.12
19/07/2022,1249291,Westminster Society,,Bi-Borough Director of Integrated Care,1211.84
19/07/2022,1249291,Westminster Society,,Bi-Borough Director of Integrated Care,3548.96
19/07/2022,1249291,Westminster Society,,Bi-Borough Director of Integrated Care,3938.42
19/07/2022,1249291,Westminster Society,,Bi-Borough Director of Integrated Care,3116.16
19/07/2022,1249291,Westminster Society,,Bi-Borough Director of Integrated Care,4154.88
19/07/2022,1249291,Westminster Society,,Bi-Borough Director of Integrated Care,4846.31
19/07/2022,1249291,Westminster Society,,Bi-Borough Director of Integrated Care,2266.88
19/07/2022,1249291,Westminster Society,,Bi-Borough Director of Integrated Care,7773.06
19/07/2022,1249291,Westminster Society,,Bi-Borough Director of Integrated Care,779.04
19/07/2022,1249291,Westminster Society,,Bi-Borough Director of Integrated Care,4847.36
19/07/2022,1249291,Westminster Society,,Bi-Borough Director of Integrated Care,5539.84
19/07/2022,1249291,Westminster Society,,Bi-Borough Director of Integrated Care,1255.07
19/07/2022,1249291,Westminster Society,,Bi-Borough Director of Integrated Care,2943.04
19/07/2022,1249291,Westminster Society,,Bi-Borough Director of Integrated Care,3029.6
19/07/2022,1249291,Westminster Society,,Bi-Borough Director of Integrated Care,7270.41
19/07/2022,1249291,Westminster Society,,Bi-Borough Director of Integrated Care,790.27
19/07/2022,1249291,Westminster Society,,Bi-Borough Director of Integrated Care,10456.41
19/07/2022,1249291,Westminster Society,,Bi-Borough Director of Integrated Care,2423.68
19/07/2022,1249291,Westminster Society,,Bi-Borough Director of Integrated Care,2423.68
19/07/2022,1249291,Westminster Society,,Bi-Borough Director of Integrated Care,790.27
19/07/2022,1249291,Westminster Society,,Bi-Borough Director of Integrated Care,9937.06
19/07/2022,1249291,Westminster Society,,Bi-Borough Director of Integrated Care,3029.48
19/07/2022,1249291,Westminster Society,,Bi-Borough Director of Integrated Care,790.27
19/07/2022,1249291,Westminster Society,,Bi-Borough Director of Integrated Care,9270.45
19/07/2022,1249291,Westminster Society,,Bi-Borough Director of Integrated Care,4413.3
19/07/2022,1249291,Westminster Society,,Bi-Borough Director of Integrated Care,865.6
19/07/2022,1249291,Westminster Society,,Bi-Borough Director of Integrated Care,1211.84
19/07/2022,1249291,Westminster Society,,Bi-Borough Director of Integrated Care,4609.3
19/07/2022,1249291,Westminster Society,,Bi-Borough Director of Integrated Care,1211.84
19/07/2022,1249291,Westminster Society,,Bi-Borough Director of Integrated Care,9917.6
19/07/2022,1249291,Westminster Society,,Bi-Borough Director of Integrated Care,5020.48
19/07/2022,1249291,Westminster Society,,Bi-Borough Director of Integrated Care,592.44
19/07/2022,1249291,Westminster Society,,Bi-Borough Director of Integrated Care,1904.32
19/07/2022,1249291,Westminster Society,,Bi-Borough Director of Integrated Care,592.44
19/07/2022,1249291,Westminster Society,,Bi-Borough Director of Integrated Care,2596.8
19/07/2022,1249291,Westminster Society,,Bi-Borough Director of Integrated Care,3375.84
19/07/2022,1249291,Westminster Society,,Bi-Borough Director of Integrated Care,10131.78
19/07/2022,1249291,Westminster Society,,Bi-Borough Director of Integrated Care,790.27
19/07/2022,1249291,Westminster Society,,Bi-Borough Director of Integrated Care,3029.48
19/07/2022,1249291,Westminster Society,,Bi-Borough Director of Integrated Care,4854.64
19/07/2022,1249291,Westminster Society,,Bi-Borough Director of Integrated Care,1012.73
19/07/2022,1249291,Westminster Society,,Bi-Borough Director of Integrated Care,592.44
19/07/2022,1249291,Westminster Society,,Bi-Borough Director of Integrated Care,2423.68
19/07/2022,1249291,Westminster Society,,Bi-Borough Director of Integrated Care,592.44
19/07/2022,1249291,Westminster Society,,Bi-Borough Director of Integrated Care,2164
19/07/2022,1249291,Westminster Society,,Bi-Borough Director of Integrated Care,3332.5
19/07/2022,1249291,Westminster Society,,Bi-Borough Director of Integrated Care,6665.12
19/07/2022,1249291,Westminster Society,,Bi-Borough Director of Integrated Care,592.44
19/07/2022,1249291,Westminster Society,,Bi-Borough Director of Integrated Care,605.92
19/07/2022,1249291,Westminster Society,,Bi-Borough Director of Integrated Care,553
19/07/2022,1249291,Westminster Society,,Bi-Borough Director of Integrated Care,2266.88
19/07/2022,1249291,Westminster Society,,Bi-Borough Director of Integrated Care,4674.24
19/07/2022,1249291,Westminster Society,,Bi-Borough Director of Integrated Care,2266.88
19/07/2022,1249291,Westminster Society,,Bi-Borough Director of Integrated Care,8119.3
19/07/2022,1249291,Westminster Society,,Bi-Borough Director of Integrated Care,2423.68
19/07/2022,1249291,Westminster Society,,Bi-Borough Director of Integrated Care,12126.94
19/07/2022,1249291,Westminster Society,,Bi-Borough Director of Integrated Care,1012.73
19/07/2022,1249291,Westminster Society,,Bi-Borough Director of Integrated Care,7054.58
19/07/2022,1249291,Westminster Society,,Bi-Borough Director of Integrated Care,4414.56
19/07/2022,1249291,Westminster Society,,Bi-Borough Director of Integrated Care,3462.4
19/07/2022,1249291,Westminster Society,,Bi-Borough Director of Integrated Care,2250.56
19/07/2022,1249291,Westminster Society,,Bi-Borough Director of Integrated Care,1780.08
19/07/2022,1249291,Westminster Society,,Bi-Borough Director of Integrated Care,10732.18
19/07/2022,1249291,Westminster Society,,Bi-Borough Director of Integrated Care,592.44
19/07/2022,1249291,Westminster Society,,Bi-Borough Director of Integrated Care,2423.68
19/07/2022,1249291,Westminster Society,,Bi-Borough Director of Integrated Care,1601.3
19/07/2022,1249291,Westminster Society,,Bi-Borough Director of Integrated Care,1579.7
19/07/2022,1249291,Westminster Society,,Bi-Borough Director of Integrated Care,2683.36
19/07/2022,1249291,Westminster Society,,Bi-Borough Director of Integrated Care,995.38
19/07/2022,1249291,Westminster Society,,Bi-Borough Director of Integrated Care,5479.16
19/07/2022,1249291,Westminster Society,,Bi-Borough Director of Integrated Care,1012.73
19/07/2022,1249291,Westminster Society,,Bi-Borough Director of Integrated Care,4854.64
19/07/2022,1249291,Westminster Society,,Bi-Borough Director of Integrated Care,3289.28
19/07/2022,1249291,Westminster Society,,Bi-Borough Director of Integrated Care,1012.73
19/07/2022,1249291,Westminster Society,,Bi-Borough Director of Integrated Care,5433.41
19/07/2022,1249291,Westminster Society,,Bi-Borough Director of Integrated Care,2856.48
19/07/2022,1249291,Westminster Society,,Bi-Borough Director of Integrated Care,2856.48
19/07/2022,1249291,Westminster Society,,Bi-Borough Director of Integrated Care,2510.24
19/07/2022,1249291,Westminster Society,,Bi-Borough Director of Integrated Care,1514.74
19/07/2022,1249291,Westminster Society,,Bi-Borough Director of Integrated Care,510.68
19/07/2022,1249291,Westminster Society,,Bi-Borough Director of Integrated Care,4695.85
19/07/2022,1249291,Westminster Society,,Bi-Borough Director of Integrated Care,790.27
19/07/2022,1249291,Westminster Society,,Bi-Borough Director of Integrated Care,9145.1
19/07/2022,1249291,Westminster Society,,Bi-Borough Director of Integrated Care,2765
19/07/2022,1249291,Westminster Society,,Bi-Borough Director of Integrated Care,6059.2
19/07/2022,1249291,Westminster Society,,Bi-Borough Director of Integrated Care,592.44
19/07/2022,1249291,Westminster Society,,Bi-Borough Director of Integrated Care,592.44
19/07/2022,1249291,Westminster Society,,Bi-Borough Director of Integrated Care,3289.28
19/07/2022,1249291,Westminster Society,,Bi-Borough Director of Integrated Care,6059.2
19/07/2022,1249291,Westminster Society,,Bi-Borough Director of Integrated Care,4328
19/07/2022,1249291,Westminster Society,,Bi-Borough Director of Integrated Care,10300.64
19/07/2022,1249291,Westminster Society,,Bi-Borough Director of Integrated Care,1012.73
19/07/2022,1249291,Westminster Society,,Bi-Borough Director of Integrated Care,1012.73
19/07/2022,1249291,Westminster Society,,Bi-Borough Director of Integrated Care,7147.91
19/07/2022,1249291,Westminster Society,,Bi-Borough Director of Integrated Care,3289.28
19/07/2022,1249291,Westminster Society,,Bi-Borough Director of Integrated Care,1012.73
19/07/2022,1249291,Westminster Society,,Bi-Borough Director of Integrated Care,7340.26
16/08/2022,1249291,Westminster Society,,Bi-Borough Director of Integrated Care,3683.68
16/08/2022,1249291,Westminster Society,,Bi-Borough Director of Integrated Care,947.24
16/08/2022,1249291,Westminster Society,,Bi-Borough Director of Integrated Care,2185.92
16/08/2022,1249291,Westminster Society,,Bi-Borough Director of Integrated Care,1133.44
16/08/2022,1249291,Westminster Society,,Bi-Borough Director of Integrated Care,3319.36
16/08/2022,1249291,Westminster Society,,Bi-Borough Director of Integrated Care,3683.68
16/08/2022,1249291,Westminster Society,,Bi-Borough Director of Integrated Care,2914.56
16/08/2022,1249291,Westminster Society,,Bi-Borough Director of Integrated Care,4533.76
16/08/2022,1249291,Westminster Society,,Bi-Borough Director of Integrated Care,3886.08
16/08/2022,1249291,Westminster Society,,Bi-Borough Director of Integrated Care,630.25
16/08/2022,1249291,Westminster Society,,Bi-Borough Director of Integrated Care,7270.2
16/08/2022,1249291,Westminster Society,,Bi-Borough Director of Integrated Care,2266.88
16/08/2022,1249291,Westminster Society,,Bi-Borough Director of Integrated Care,728.64
16/08/2022,1249291,Westminster Society,,Bi-Borough Director of Integrated Care,4533.76
16/08/2022,1249291,Westminster Society,,Bi-Borough Director of Integrated Care,8824.64
16/08/2022,1249291,Westminster Society,,Bi-Borough Director of Integrated Care,1664.88
16/08/2022,1249291,Westminster Society,,Bi-Borough Director of Integrated Care,2995.52
16/08/2022,1249291,Westminster Society,,Bi-Borough Director of Integrated Care,2509.76
16/08/2022,1249291,Westminster Society,,Bi-Borough Director of Integrated Care,2185.92
16/08/2022,1249291,Westminster Society,,Bi-Borough Director of Integrated Care,566.72
16/08/2022,1249291,Westminster Society,,Bi-Borough Director of Integrated Care,4230.16
16/08/2022,1249291,Westminster Society,,Bi-Borough Director of Integrated Care,1133.44
16/08/2022,1249291,Westminster Society,,Bi-Borough Director of Integrated Care,6416.08
16/08/2022,1249291,Westminster Society,,Bi-Borough Director of Integrated Care,1133.44
16/08/2022,1249291,Westminster Society,,Bi-Borough Director of Integrated Care,647.68
16/08/2022,1249291,Westminster Society,,Bi-Borough Director of Integrated Care,1133.44
16/08/2022,1249291,Westminster Society,,Bi-Borough Director of Integrated Care,647.68
16/08/2022,1249291,Westminster Society,,Bi-Borough Director of Integrated Care,947.24
16/08/2022,1249291,Westminster Society,,Bi-Borough Director of Integrated Care,2266.88
16/08/2022,1249291,Westminster Society,,Bi-Borough Director of Integrated Care,1335.84
16/08/2022,1249291,Westminster Society,,Bi-Borough Director of Integrated Care,554.16
16/08/2022,1249291,Westminster Society,,Bi-Borough Director of Integrated Care,3076.48
16/08/2022,1249291,Westminster Society,,Bi-Borough Director of Integrated Care,5667.2
16/08/2022,1249291,Westminster Society,,Bi-Borough Director of Integrated Care,4048
16/08/2022,1249291,Westminster Society,,Bi-Borough Director of Integrated Care,947.24
16/08/2022,1249291,Westminster Society,,Bi-Borough Director of Integrated Care,9634.24
16/08/2022,1249291,Westminster Society,,Bi-Borough Director of Integrated Care,947.24
16/08/2022,1249291,Westminster Society,,Bi-Borough Director of Integrated Care,6687.28
16/08/2022,1249291,Westminster Society,,Bi-Borough Director of Integrated Care,3076.48
16/08/2022,1249291,Westminster Society,,Bi-Borough Director of Integrated Care,947.24
16/08/2022,1249291,Westminster Society,,Bi-Borough Director of Integrated Care,6865.4
16/08/2022,1249291,Westminster Society,,Bi-Borough Director of Integrated Care,4533.76
16/08/2022,1249291,Westminster Society,,Bi-Borough Director of Integrated Care,5181.44
16/08/2022,1249291,Westminster Society,,Bi-Borough Director of Integrated Care,1173.92
16/08/2022,1249291,Westminster Society,,Bi-Borough Director of Integrated Care,2833.6
16/08/2022,1249291,Westminster Society,,Bi-Borough Director of Integrated Care,2752.64
16/08/2022,1249291,Westminster Society,,Bi-Borough Director of Integrated Care,6800.64
16/08/2022,1249291,Westminster Society,,Bi-Borough Director of Integrated Care,9779.96
16/08/2022,1249291,Westminster Society,,Bi-Borough Director of Integrated Care,738.96
16/08/2022,1249291,Westminster Society,,Bi-Borough Director of Integrated Care,2266.88
16/08/2022,1249291,Westminster Society,,Bi-Borough Director of Integrated Care,9294.2
16/08/2022,1249291,Westminster Society,,Bi-Borough Director of Integrated Care,2266.88
16/08/2022,1249291,Westminster Society,,Bi-Borough Director of Integrated Care,738.96
16/08/2022,1249291,Westminster Society,,Bi-Borough Director of Integrated Care,2833.6
16/08/2022,1249291,Westminster Society,,Bi-Borough Director of Integrated Care,738.96
16/08/2022,1249291,Westminster Society,,Bi-Borough Director of Integrated Care,8670.8
16/08/2022,1249291,Westminster Society,,Bi-Borough Director of Integrated Care,4128.96
16/08/2022,1249291,Westminster Society,,Bi-Borough Director of Integrated Care,809.6
16/08/2022,1249291,Westminster Society,,Bi-Borough Director of Integrated Care,1133.44
16/08/2022,1249291,Westminster Society,,Bi-Borough Director of Integrated Care,4311.12
16/08/2022,1249291,Westminster Society,,Bi-Borough Director of Integrated Care,1133.44
16/08/2022,1249291,Westminster Society,,Bi-Borough Director of Integrated Care,554.16
16/08/2022,1249291,Westminster Society,,Bi-Borough Director of Integrated Care,1781.12
16/08/2022,1249291,Westminster Society,,Bi-Borough Director of Integrated Care,4695.68
16/08/2022,1249291,Westminster Society,,Bi-Borough Director of Integrated Care,5667.2
16/08/2022,1249291,Westminster Society,,Bi-Borough Director of Integrated Care,554.16
16/08/2022,1249291,Westminster Society,,Bi-Borough Director of Integrated Care,2428.8
16/08/2022,1249291,Westminster Society,,Bi-Borough Director of Integrated Care,8743.68
16/08/2022,1249291,Westminster Society,,Bi-Borough Director of Integrated Care,910.8
16/08/2022,1249291,Westminster Society,,Bi-Borough Director of Integrated Care,3045.97
16/08/2022,1249291,Westminster Society,,Bi-Borough Director of Integrated Care,947.24
16/08/2022,1249291,Westminster Society,,Bi-Borough Director of Integrated Care,4541.84
16/08/2022,1249291,Westminster Society,,Bi-Borough Director of Integrated Care,2266.88
16/08/2022,1249291,Westminster Society,,Bi-Borough Director of Integrated Care,554.16
16/08/2022,1249291,Westminster Society,,Bi-Borough Director of Integrated Care,554.16
16/08/2022,1249291,Westminster Society,,Bi-Borough Director of Integrated Care,2024
16/08/2022,1249291,Westminster Society,,Bi-Borough Director of Integrated Care,3116.96
16/08/2022,1249291,Westminster Society,,Bi-Borough Director of Integrated Care,554.16
16/08/2022,1249291,Westminster Society,,Bi-Borough Director of Integrated Care,6233.92
16/08/2022,1249291,Westminster Society,,Bi-Borough Director of Integrated Care,7196.15
16/08/2022,1249291,Westminster Society,,Bi-Borough Director of Integrated Care,2592.73
16/08/2022,1249291,Westminster Society,,Bi-Borough Director of Integrated Care,553
16/08/2022,1249291,Westminster Society,,Bi-Borough Director of Integrated Care,566.72
16/08/2022,1249291,Westminster Society,,Bi-Borough Director of Integrated Care,630.25
16/08/2022,1249291,Westminster Society,,Bi-Borough Director of Integrated Care,4371.84
16/08/2022,1249291,Westminster Society,,Bi-Borough Director of Integrated Care,2266.88
16/08/2022,1249291,Westminster Society,,Bi-Borough Director of Integrated Care,2266.88
16/08/2022,1249291,Westminster Society,,Bi-Borough Director of Integrated Care,7594.04
16/08/2022,1249291,Westminster Society,,Bi-Borough Director of Integrated Care,630.25
16/08/2022,1249291,Westminster Society,,Bi-Borough Director of Integrated Care,947.24
16/08/2022,1249291,Westminster Society,,Bi-Borough Director of Integrated Care,6598.24
16/08/2022,1249291,Westminster Society,,Bi-Borough Director of Integrated Care,4128.96
16/08/2022,1249291,Westminster Society,,Bi-Borough Director of Integrated Care,3238.4
16/08/2022,1249291,Westminster Society,,Bi-Borough Director of Integrated Care,2104.96
16/08/2022,1249291,Westminster Society,,Bi-Borough Director of Integrated Care,554.16
16/08/2022,1249291,Westminster Society,,Bi-Borough Director of Integrated Care,10039.04
16/08/2022,1249291,Westminster Society,,Bi-Borough Director of Integrated Care,1664.88
16/08/2022,1249291,Westminster Society,,Bi-Borough Director of Integrated Care,13662
16/08/2022,1249291,Westminster Society,,Bi-Borough Director of Integrated Care,2185.92
16/08/2022,1249291,Westminster Society,,Bi-Borough Director of Integrated Care,2266.88
16/08/2022,1249291,Westminster Society,,Bi-Borough Director of Integrated Care,1497.76
16/08/2022,1249291,Westminster Society,,Bi-Borough Director of Integrated Care,1477.52
16/08/2022,1249291,Westminster Society,,Bi-Borough Director of Integrated Care,2509.76
16/08/2022,1249291,Westminster Society,,Bi-Borough Director of Integrated Care,931.04
16/08/2022,1249291,Westminster Society,,Bi-Borough Director of Integrated Care,5124.76
16/08/2022,1249291,Westminster Society,,Bi-Borough Director of Integrated Care,947.24
16/08/2022,1249291,Westminster Society,,Bi-Borough Director of Integrated Care,4541.84
16/08/2022,1249291,Westminster Society,,Bi-Borough Director of Integrated Care,3076.48
16/08/2022,1249291,Westminster Society,,Bi-Borough Director of Integrated Care,947.24
16/08/2022,1249291,Westminster Society,,Bi-Borough Director of Integrated Care,5084.28
16/08/2022,1249291,Westminster Society,,Bi-Borough Director of Integrated Care,2671.68
16/08/2022,1249291,Westminster Society,,Bi-Borough Director of Integrated Care,2671.68
16/08/2022,1249291,Westminster Society,,Bi-Borough Director of Integrated Care,2347.84
16/08/2022,1249291,Westminster Society,,Bi-Borough Director of Integrated Care,1416.8
16/08/2022,1249291,Westminster Society,,Bi-Borough Director of Integrated Care,4392.08
16/08/2022,1249291,Westminster Society,,Bi-Borough Director of Integrated Care,2765
16/08/2022,1249291,Westminster Society,,Bi-Borough Director of Integrated Care,8553.44
16/08/2022,1249291,Westminster Society,,Bi-Borough Director of Integrated Care,738.96
16/08/2022,1249291,Westminster Society,,Bi-Borough Director of Integrated Care,554.16
16/08/2022,1249291,Westminster Society,,Bi-Borough Director of Integrated Care,5667.2
01/09/2022,1249291,Westminster Society,B*Voluntary-Spot-V Dep-Enhanced - do not u,Bi-Borough Director of Integrated Care,952
01/09/2022,1249291,Westminster Society,B*Voluntary-Spot-V Dep-Enhanced - do not u,Bi-Borough Director of Integrated Care,647.68
01/09/2022,1249291,Westminster Society,B*Voluntary-Spot-V Dep-Enhanced - do not u,Bi-Borough Director of Integrated Care,1052.48
01/09/2022,1249291,Westminster Society,B*Voluntary-Spot-V Dep-Enhanced - do not u,Bi-Borough Director of Integrated Care,1133.44
01/09/2022,1249291,Westminster Society,B*Voluntary-Spot-V Dep-Enhanced - do not u,Bi-Borough Director of Integrated Care,1133.44
01/09/2022,1249291,Westminster Society,B*Voluntary-Spot-V Dep-Enhanced - do not u,Bi-Borough Director of Integrated Care,1538.24
01/09/2022,1249291,Westminster Society,B*Voluntary-Spot-V Dep-Enhanced - do not u,Bi-Borough Director of Integrated Care,890.56
01/09/2022,1249291,Westminster Society,B*Voluntary-Spot-V Dep-Enhanced - do not u,Bi-Borough Director of Integrated Care,728.64
01/09/2022,1249291,Westminster Society,B*Voluntary-Spot-V Dep-Enhanced - do not u,Bi-Borough Director of Integrated Care,566.72
01/09/2022,1249291,Westminster Society,B*Voluntary-Spot-V Dep-Enhanced - do not u,Bi-Borough Director of Integrated Care,2024
01/09/2022,1249291,Westminster Society,B*Voluntary-Spot-V Dep-Enhanced - do not u,Bi-Borough Director of Integrated Care,2428.8
01/09/2022,1249291,Westminster Society,B*Voluntary-Spot-V Dep-Enhanced - do not u,Bi-Borough Director of Integrated Care,2550
01/09/2022,1249291,Westminster Society,B*Voluntary-Spot-V Dep-Enhanced - do not u,Bi-Borough Director of Integrated Care,1377
01/09/2022,1249291,Westminster Society,B*Voluntary-Spot-V Dep-Enhanced - do not u,Bi-Borough Director of Integrated Care,647.68
01/09/2022,1249291,Westminster Society,B*Voluntary-Spot-V Dep-Enhanced - do not u,Bi-Borough Director of Integrated Care,728.64
01/09/2022,1249291,Westminster Society,B*Voluntary-Spot-V Dep-Enhanced - do not u,Bi-Borough Director of Integrated Care,2185.92
01/09/2022,1249291,Westminster Society,B*Voluntary-Spot-V Dep-Enhanced - do not u,Bi-Borough Director of Integrated Care,809.6
01/09/2022,1249291,Westminster Society,B*Voluntary-Spot-V Dep-Enhanced - do not u,Bi-Borough Director of Integrated Care,1295.36
01/09/2022,1249291,Westminster Society,B*Voluntary-Spot-V Dep-Enhanced - do not u,Bi-Borough Director of Integrated Care,931.04
01/09/2022,1249291,Westminster Society,B*Voluntary-Spot-V Dep-Enhanced - do not u,Bi-Borough Director of Integrated Care,647.68
01/09/2022,1249291,Westminster Society,B*Voluntary-Spot-V Dep-Enhanced - do not u,Bi-Borough Director of Integrated Care,647.68
08/09/2022,1249291,Westminster Society,Rent,Bi-Borough Director of Integrated Care,7737.85
08/09/2022,1249291,Westminster Society,Rent,Bi-Borough Director of Integrated Care,9505.33
14/09/2022,1249291,Westminster Society,,Bi-Borough Director of Integrated Care,4533.76
14/09/2022,1249291,Westminster Society,,Bi-Borough Director of Integrated Care,8824.64
14/09/2022,1249291,Westminster Society,,Bi-Borough Director of Integrated Care,1664.88
14/09/2022,1249291,Westminster Society,,Bi-Borough Director of Integrated Care,2995.52
14/09/2022,1249291,Westminster Society,,Bi-Borough Director of Integrated Care,2509.76
14/09/2022,1249291,Westminster Society,,Bi-Borough Director of Integrated Care,2185.92
14/09/2022,1249291,Westminster Society,,Bi-Borough Director of Integrated Care,566.72
14/09/2022,1249291,Westminster Society,,Bi-Borough Director of Integrated Care,4230.16
14/09/2022,1249291,Westminster Society,,Bi-Borough Director of Integrated Care,1133.44
14/09/2022,1249291,Westminster Society,,Bi-Borough Director of Integrated Care,1133.44
14/09/2022,1249291,Westminster Society,,Bi-Borough Director of Integrated Care,6416.08
14/09/2022,1249291,Westminster Society,,Bi-Borough Director of Integrated Care,647.68
14/09/2022,1249291,Westminster Society,,Bi-Borough Director of Integrated Care,1133.44
14/09/2022,1249291,Westminster Society,,Bi-Borough Director of Integrated Care,647.68
14/09/2022,1249291,Westminster Society,,Bi-Borough Director of Integrated Care,947.24
14/09/2022,1249291,Westminster Society,,Bi-Borough Director of Integrated Care,2266.88
14/09/2022,1249291,Westminster Society,,Bi-Borough Director of Integrated Care,1335.84
14/09/2022,1249291,Westminster Society,,Bi-Borough Director of Integrated Care,3683.68
14/09/2022,1249291,Westminster Society,,Bi-Borough Director of Integrated Care,947.24
14/09/2022,1249291,Westminster Society,,Bi-Borough Director of Integrated Care,3076.48
14/09/2022,1249291,Westminster Society,,Bi-Borough Director of Integrated Care,554.16
14/09/2022,1249291,Westminster Society,,Bi-Borough Director of Integrated Care,5667.2
14/09/2022,1249291,Westminster Society,,Bi-Borough Director of Integrated Care,4048
14/09/2022,1249291,Westminster Society,,Bi-Borough Director of Integrated Care,947.24
14/09/2022,1249291,Westminster Society,,Bi-Borough Director of Integrated Care,9634.24
14/09/2022,1249291,Westminster Society,,Bi-Borough Director of Integrated Care,947.24
14/09/2022,1249291,Westminster Society,,Bi-Borough Director of Integrated Care,6687.28
14/09/2022,1249291,Westminster Society,,Bi-Borough Director of Integrated Care,3076.48
14/09/2022,1249291,Westminster Society,,Bi-Borough Director of Integrated Care,2185.92
14/09/2022,1249291,Westminster Society,,Bi-Borough Director of Integrated Care,1133.44
14/09/2022,1249291,Westminster Society,,Bi-Borough Director of Integrated Care,3319.36
14/09/2022,1249291,Westminster Society,,Bi-Borough Director of Integrated Care,3683.68
14/09/2022,1249291,Westminster Society,,Bi-Borough Director of Integrated Care,2914.56
14/09/2022,1249291,Westminster Society,,Bi-Borough Director of Integrated Care,4533.76
14/09/2022,1249291,Westminster Society,,Bi-Borough Director of Integrated Care,3886.08
14/09/2022,1249291,Westminster Society,,Bi-Borough Director of Integrated Care,7270.2
14/09/2022,1249291,Westminster Society,,Bi-Borough Director of Integrated Care,2266.88
14/09/2022,1249291,Westminster Society,,Bi-Borough Director of Integrated Care,2064.48
14/09/2022,1249291,Westminster Society,,Bi-Borough Director of Integrated Care,4533.76
14/09/2022,1249291,Westminster Society,,Bi-Borough Director of Integrated Care,832.73
14/09/2022,1249291,Westminster Society,,Bi-Borough Director of Integrated Care,5181.44
14/09/2022,1249291,Westminster Society,,Bi-Borough Director of Integrated Care,1173.92
14/09/2022,1249291,Westminster Society,,Bi-Borough Director of Integrated Care,2833.6
14/09/2022,1249291,Westminster Society,,Bi-Borough Director of Integrated Care,2752.64
14/09/2022,1249291,Westminster Society,,Bi-Borough Director of Integrated Care,6800.64
14/09/2022,1249291,Westminster Society,,Bi-Borough Director of Integrated Care,738.96
14/09/2022,1249291,Westminster Society,,Bi-Borough Director of Integrated Care,9779.96
14/09/2022,1249291,Westminster Society,,Bi-Borough Director of Integrated Care,2266.88
14/09/2022,1249291,Westminster Society,,Bi-Borough Director of Integrated Care,2266.88
14/09/2022,1249291,Westminster Society,,Bi-Borough Director of Integrated Care,738.96
14/09/2022,1249291,Westminster Society,,Bi-Borough Director of Integrated Care,9294.2
14/09/2022,1249291,Westminster Society,,Bi-Borough Director of Integrated Care,2833.6
14/09/2022,1249291,Westminster Society,,Bi-Borough Director of Integrated Care,738.96
14/09/2022,1249291,Westminster Society,,Bi-Borough Director of Integrated Care,8670.8
14/09/2022,1249291,Westminster Society,,Bi-Borough Director of Integrated Care,6865.4
14/09/2022,1249291,Westminster Society,,Bi-Borough Director of Integrated Care,947.24
14/09/2022,1249291,Westminster Society,,Bi-Borough Director of Integrated Care,4128.96
14/09/2022,1249291,Westminster Society,,Bi-Borough Director of Integrated Care,809.6
14/09/2022,1249291,Westminster Society,,Bi-Borough Director of Integrated Care,1133.44
14/09/2022,1249291,Westminster Society,,Bi-Borough Director of Integrated Care,4311.12
14/09/2022,1249291,Westminster Society,,Bi-Borough Director of Integrated Care,1133.44
14/09/2022,1249291,Westminster Society,,Bi-Borough Director of Integrated Care,1781.12
14/09/2022,1249291,Westminster Society,,Bi-Borough Director of Integrated Care,554.16
14/09/2022,1249291,Westminster Society,,Bi-Borough Director of Integrated Care,5667.2
14/09/2022,1249291,Westminster Society,,Bi-Borough Director of Integrated Care,2428.8
14/09/2022,1249291,Westminster Society,,Bi-Borough Director of Integrated Care,554.16
14/09/2022,1249291,Westminster Society,,Bi-Borough Director of Integrated Care,6557.76
14/09/2022,1249291,Westminster Society,,Bi-Borough Director of Integrated Care,4541.84
14/09/2022,1249291,Westminster Society,,Bi-Borough Director of Integrated Care,947.24
14/09/2022,1249291,Westminster Society,,Bi-Borough Director of Integrated Care,2266.88
14/09/2022,1249291,Westminster Society,,Bi-Borough Director of Integrated Care,554.16
14/09/2022,1249291,Westminster Society,,Bi-Borough Director of Integrated Care,2024
14/09/2022,1249291,Westminster Society,,Bi-Borough Director of Integrated Care,554.16
14/09/2022,1249291,Westminster Society,,Bi-Borough Director of Integrated Care,3116.96
14/09/2022,1249291,Westminster Society,,Bi-Borough Director of Integrated Care,6233.92
14/09/2022,1249291,Westminster Society,,Bi-Borough Director of Integrated Care,554.16
14/09/2022,1249291,Westminster Society,,Bi-Borough Director of Integrated Care,1481.56
14/09/2022,1249291,Westminster Society,,Bi-Borough Director of Integrated Care,1481.56
14/09/2022,1249291,Westminster Society,,Bi-Borough Director of Integrated Care,566.72
14/09/2022,1249291,Westminster Society,,Bi-Borough Director of Integrated Care,553
14/09/2022,1249291,Westminster Society,,Bi-Borough Director of Integrated Care,2266.88
14/09/2022,1249291,Westminster Society,,Bi-Borough Director of Integrated Care,4371.84
14/09/2022,1249291,Westminster Society,,Bi-Borough Director of Integrated Care,2266.88
14/09/2022,1249291,Westminster Society,,Bi-Borough Director of Integrated Care,7594.04
14/09/2022,1249291,Westminster Society,,Bi-Borough Director of Integrated Care,947.24
14/09/2022,1249291,Westminster Society,,Bi-Borough Director of Integrated Care,6598.24
14/09/2022,1249291,Westminster Society,,Bi-Borough Director of Integrated Care,4128.96
14/09/2022,1249291,Westminster Society,,Bi-Borough Director of Integrated Care,3238.4
14/09/2022,1249291,Westminster Society,,Bi-Borough Director of Integrated Care,2104.96
14/09/2022,1249291,Westminster Society,,Bi-Borough Director of Integrated Care,1664.88
14/09/2022,1249291,Westminster Society,,Bi-Borough Director of Integrated Care,10039.04
14/09/2022,1249291,Westminster Society,,Bi-Borough Director of Integrated Care,554.16
14/09/2022,1249291,Westminster Society,,Bi-Borough Director of Integrated Care,1012
14/09/2022,1249291,Westminster Society,,Bi-Borough Director of Integrated Care,2266.88
14/09/2022,1249291,Westminster Society,,Bi-Borough Director of Integrated Care,850.08
14/09/2022,1249291,Westminster Society,,Bi-Borough Director of Integrated Care,1477.52
14/09/2022,1249291,Westminster Society,,Bi-Borough Director of Integrated Care,2509.76
14/09/2022,1249291,Westminster Society,,Bi-Borough Director of Integrated Care,931.04
14/09/2022,1249291,Westminster Society,,Bi-Borough Director of Integrated Care,5124.76
14/09/2022,1249291,Westminster Society,,Bi-Borough Director of Integrated Care,4541.84
14/09/2022,1249291,Westminster Society,,Bi-Borough Director of Integrated Care,947.24
14/09/2022,1249291,Westminster Society,,Bi-Borough Director of Integrated Care,3076.48
14/09/2022,1249291,Westminster Society,,Bi-Borough Director of Integrated Care,5084.28
14/09/2022,1249291,Westminster Society,,Bi-Borough Director of Integrated Care,947.24
14/09/2022,1249291,Westminster Society,,Bi-Borough Director of Integrated Care,2671.68
14/09/2022,1249291,Westminster Society,,Bi-Borough Director of Integrated Care,2671.68
14/09/2022,1249291,Westminster Society,,Bi-Borough Director of Integrated Care,2347.84
14/09/2022,1249291,Westminster Society,,Bi-Borough Director of Integrated Care,1416.8
14/09/2022,1249291,Westminster Society,,Bi-Borough Director of Integrated Care,4392.08
14/09/2022,1249291,Westminster Society,,Bi-Borough Director of Integrated Care,2765
14/09/2022,1249291,Westminster Society,,Bi-Borough Director of Integrated Care,8553.44
14/09/2022,1249291,Westminster Society,,Bi-Borough Director of Integrated Care,738.96
14/09/2022,1249291,Westminster Society,,Bi-Borough Director of Integrated Care,554.16
14/09/2022,1249291,Westminster Society,,Bi-Borough Director of Integrated Care,5667.2
19/07/2022,1246224,Whitmore Vale Housing Association,,Bi-Borough Director of Integrated Care,3688.8
16/08/2022,1246224,Whitmore Vale Housing Association,,Bi-Borough Director of Integrated Care,3688.8
14/09/2022,1246224,Whitmore Vale Housing Association,,Bi-Borough Director of Integrated Care,3688.8
01/07/2022,1243566,Yarrow Housing Ltd,,Bi-Borough Director of Integrated Care,7913.2
19/07/2022,1243566,Yarrow Housing Ltd,,Bi-Borough Director of Integrated Care,5550.8
19/07/2022,1243566,Yarrow Housing Ltd,,Bi-Borough Director of Integrated Care,3632.88
19/07/2022,1243566,Yarrow Housing Ltd,,Bi-Borough Director of Integrated Care,7297.56
19/07/2022,1243566,Yarrow Housing Ltd,,Bi-Borough Director of Integrated Care,7851.2
19/07/2022,1243566,Yarrow Housing Ltd,,Bi-Borough Director of Integrated Care,4886.32
19/07/2022,1243566,Yarrow Housing Ltd,,Bi-Borough Director of Integrated Care,3373.44
19/07/2022,1243566,Yarrow Housing Ltd,,Bi-Borough Director of Integrated Care,8301.92
19/07/2022,1243566,Yarrow Housing Ltd,,Bi-Borough Director of Integrated Care,3889.16
16/08/2022,1243566,Yarrow Housing Ltd,,Bi-Borough Director of Integrated Care,5550.8
16/08/2022,1243566,Yarrow Housing Ltd,,Bi-Borough Director of Integrated Care,8823.68
16/08/2022,1243566,Yarrow Housing Ltd,,Bi-Borough Director of Integrated Care,7297.56
16/08/2022,1243566,Yarrow Housing Ltd,,Bi-Borough Director of Integrated Care,8192.64
16/08/2022,1243566,Yarrow Housing Ltd,,Bi-Borough Director of Integrated Care,4886.32
16/08/2022,1243566,Yarrow Housing Ltd,,Bi-Borough Director of Integrated Care,7851.2
16/08/2022,1243566,Yarrow Housing Ltd,,Bi-Borough Director of Integrated Care,8301.92
16/08/2022,1243566,Yarrow Housing Ltd,,Bi-Borough Director of Integrated Care,3889.16
25/08/2022,1243566,Yarrow Housing Ltd,,Bi-Borough Director of Integrated Care,15842.4
14/09/2022,1243566,Yarrow Housing Ltd,,Bi-Borough Director of Integrated Care,7851.2
14/09/2022,1243566,Yarrow Housing Ltd,,Bi-Borough Director of Integrated Care,4886.32
14/09/2022,1243566,Yarrow Housing Ltd,,Bi-Borough Director of Integrated Care,1686.72
14/09/2022,1243566,Yarrow Housing Ltd,,Bi-Borough Director of Integrated Care,1686.72
14/09/2022,1243566,Yarrow Housing Ltd,,Bi-Borough Director of Integrated Care,8301.92
14/09/2022,1243566,Yarrow Housing Ltd,,Bi-Borough Director of Integrated Care,3889.16
14/09/2022,1243566,Yarrow Housing Ltd,,Bi-Borough Director of Integrated Care,1816.64
14/09/2022,1243566,Yarrow Housing Ltd,,Bi-Borough Director of Integrated Care,1816.64
14/09/2022,1243566,Yarrow Housing Ltd,,Bi-Borough Director of Integrated Care,7297.56
14/09/2022,1243566,Yarrow Housing Ltd,,Bi-Borough Director of Integrated Care,5550.8
27/09/2022,1243566,Yarrow Housing Ltd,,Bi-Borough Director of Integrated Care,7921.2
23/08/2022,1249317,Zocalo Ltd T/as Bluebird Care,,Bi-Borough Director of Integrated Care,3948
23/08/2022,1249317,Zocalo Ltd T/as Bluebird Care,,Bi-Borough Director of Integrated Care,2031.12
23/08/2022,1249317,Zocalo Ltd T/as Bluebird Care,,Bi-Borough Director of Integrated Care,3822
23/08/2022,1249317,Zocalo Ltd T/as Bluebird Care,,Bi-Borough Director of Integrated Care,1917.66
15/09/2022,1249317,Zocalo Ltd T/as Bluebird Care,,Bi-Borough Director of Integrated Care,3528
15/09/2022,1249317,Zocalo Ltd T/as Bluebird Care,,Bi-Borough Director of Integrated Care,1880.37
22/09/2022,1249317,Zocalo Ltd T/as Bluebird Care,,Bi-Borough Director of Integrated Care,3708
22/09/2022,1249317,Zocalo Ltd T/as Bluebird Care,,Bi-Borough Director of Integrated Care,2001.02
20/07/2022,1249318,Zodiac Arts Ltd,B*Voluntary-Spot-V Dep-Enhanced - do not u,Bi-Borough Director of Integrated Care,715.5
16/08/2022,1249318,Zodiac Arts Ltd,B*Voluntary-Spot-V Dep-Enhanced - do not u,Bi-Borough Director of Integrated Care,715.5
29/09/2022,1249318,Zodiac Arts Ltd,B*Voluntary-Spot-V Dep-Enhanced - do not u,Bi-Borough Director of Integrated Care,715.5
02/08/2022,1249020,Steven Carnaby Associates Ltd,Training related expenditure,Bi-Borough Director of Integrated Care,850
29/07/2022,1249167,TMP (UK) Ltd,Recruitment Expenses (excl. advertising),Bi-Borough Director of Integrated Care,610
23/08/2022,1249167,TMP (UK) Ltd,Recruitment Expenses (excl. advertising),Bi-Borough Director of Integrated Care,610
06/09/2022,1292085,Doughty Street Chambers,Legal Costs,Bi-Borough Director of Integrated Care,1087.5
02/08/2022,1252498,PERSONAL PAYMENTS,Legal Costs,Bi-Borough Director of Integrated Care,1300
02/08/2022,1252498,PERSONAL PAYMENTS,Legal Costs,Bi-Borough Director of Integrated Care,900
02/08/2022,1252498,PERSONAL PAYMENTS,Legal Costs,Bi-Borough Director of Integrated Care,600
13/07/2022,1249167,TMP (UK) Ltd,Training related expenditure,Bi-Borough Director of Integrated Care,3080
09/07/2022,1249079,The Appropriate Adult Service Ltd,Training related expenditure,Bi-Borough Director of Integrated Care,1540.63
31/08/2022,1249079,The Appropriate Adult Service Ltd,Training related expenditure,Bi-Borough Director of Integrated Care,1636.25
05/09/2022,1249079,The Appropriate Adult Service Ltd,Training related expenditure,Bi-Borough Director of Integrated Care,1168.75
14/09/2022,1249079,The Appropriate Adult Service Ltd,Training related expenditure,Bi-Borough Director of Integrated Care,956.25
19/07/2022,1248618,Riverside Echg,,Bi-Borough Director of Integrated Care,1381.92
16/08/2022,1248618,Riverside Echg,,Bi-Borough Director of Integrated Care,1381.92
14/09/2022,1248618,Riverside Echg,,Bi-Borough Director of Integrated Care,1381.92
21/07/2022,1243797,Central & North West London Nhs,Other Expenses,Bi-Borough Director of Integrated Care,14596.59
21/07/2022,1243797,Central & North West London Nhs,Other Expenses,Bi-Borough Director of Integrated Care,14596.59
02/09/2022,D000000016,PERSONAL PAYMENTS,,Bi-Borough Director of Integrated Care,5000
19/07/2022,1247852,Look Ahead Care and Support Ltd,,Bi-Borough Director of Integrated Care,955.56
19/07/2022,1247852,Look Ahead Care and Support Ltd,,Bi-Borough Director of Integrated Care,1256.64
19/07/2022,1247852,Look Ahead Care and Support Ltd,,Bi-Borough Director of Integrated Care,842.28
19/07/2022,1247852,Look Ahead Care and Support Ltd,,Bi-Borough Director of Integrated Care,1413
19/07/2022,1247852,Look Ahead Care and Support Ltd,,Bi-Borough Director of Integrated Care,955.56
19/07/2022,1247852,Look Ahead Care and Support Ltd,,Bi-Borough Director of Integrated Care,897.92
19/07/2022,1247852,Look Ahead Care and Support Ltd,,Bi-Borough Director of Integrated Care,1256.64
19/07/2022,1247852,Look Ahead Care and Support Ltd,,Bi-Borough Director of Integrated Care,842.28
16/08/2022,1247852,Look Ahead Care and Support Ltd,,Bi-Borough Director of Integrated Care,1256.64
16/08/2022,1247852,Look Ahead Care and Support Ltd,,Bi-Borough Director of Integrated Care,842.28
16/08/2022,1247852,Look Ahead Care and Support Ltd,,Bi-Borough Director of Integrated Care,955.56
16/08/2022,1247852,Look Ahead Care and Support Ltd,,Bi-Borough Director of Integrated Care,897.92
16/08/2022,1247852,Look Ahead Care and Support Ltd,,Bi-Borough Director of Integrated Care,955.56
16/08/2022,1247852,Look Ahead Care and Support Ltd,,Bi-Borough Director of Integrated Care,1256.64
16/08/2022,1247852,Look Ahead Care and Support Ltd,,Bi-Borough Director of Integrated Care,842.28
16/08/2022,1247852,Look Ahead Care and Support Ltd,,Bi-Borough Director of Integrated Care,1413
14/09/2022,1247852,Look Ahead Care and Support Ltd,,Bi-Borough Director of Integrated Care,842.28
14/09/2022,1247852,Look Ahead Care and Support Ltd,,Bi-Borough Director of Integrated Care,1256.64
14/09/2022,1247852,Look Ahead Care and Support Ltd,,Bi-Borough Director of Integrated Care,955.56
14/09/2022,1247852,Look Ahead Care and Support Ltd,,Bi-Borough Director of Integrated Care,897.92
14/09/2022,1247852,Look Ahead Care and Support Ltd,,Bi-Borough Director of Integrated Care,955.56
14/09/2022,1247852,Look Ahead Care and Support Ltd,,Bi-Borough Director of Integrated Care,1256.64
14/09/2022,1247852,Look Ahead Care and Support Ltd,,Bi-Borough Director of Integrated Care,842.28
14/09/2022,1247852,Look Ahead Care and Support Ltd,,Bi-Borough Director of Integrated Care,1413
19/07/2022,1248618,Riverside Echg,,Bi-Borough Director of Integrated Care,706.72
19/07/2022,1248618,Riverside Echg,,Bi-Borough Director of Integrated Care,1008
19/07/2022,1248618,Riverside Echg,,Bi-Borough Director of Integrated Care,1236.28
19/07/2022,1248618,Riverside Echg,,Bi-Borough Director of Integrated Care,1157.52
19/07/2022,1248618,Riverside Echg,,Bi-Borough Director of Integrated Care,1233.48
19/07/2022,1248618,Riverside Echg,,Bi-Borough Director of Integrated Care,688.24
16/08/2022,1248618,Riverside Echg,,Bi-Borough Director of Integrated Care,1236.28
16/08/2022,1248618,Riverside Echg,,Bi-Borough Director of Integrated Care,661.44
16/08/2022,1248618,Riverside Echg,,Bi-Borough Director of Integrated Care,1233.48
16/08/2022,1248618,Riverside Echg,,Bi-Borough Director of Integrated Care,1008
16/08/2022,1248618,Riverside Echg,,Bi-Borough Director of Integrated Care,688.24
16/08/2022,1248618,Riverside Echg,,Bi-Borough Director of Integrated Care,706.72
14/09/2022,1248618,Riverside Echg,,Bi-Borough Director of Integrated Care,1236.28
14/09/2022,1248618,Riverside Echg,,Bi-Borough Director of Integrated Care,1008
14/09/2022,1248618,Riverside Echg,,Bi-Borough Director of Integrated Care,1233.48
14/09/2022,1248618,Riverside Echg,,Bi-Borough Director of Integrated Care,688.24
19/07/2022,1245584,Single Homeless Project,,Bi-Borough Director of Integrated Care,1531.4
19/07/2022,1245584,Single Homeless Project,,Bi-Borough Director of Integrated Care,1531.36
19/07/2022,1245584,Single Homeless Project,,Bi-Borough Director of Integrated Care,1076.92
16/08/2022,1245584,Single Homeless Project,,Bi-Borough Director of Integrated Care,1531.36
16/08/2022,1245584,Single Homeless Project,,Bi-Borough Director of Integrated Care,1531.4
16/08/2022,1245584,Single Homeless Project,,Bi-Borough Director of Integrated Care,1076.92
14/09/2022,1245584,Single Homeless Project,,Bi-Borough Director of Integrated Care,1531.4
14/09/2022,1245584,Single Homeless Project,,Bi-Borough Director of Integrated Care,1076.92
14/09/2022,1245584,Single Homeless Project,,Bi-Borough Director of Integrated Care,1531.36
19/07/2022,1245636,St Mungos Broadway (Grants &,,Bi-Borough Director of Integrated Care,1062.6
19/07/2022,1245636,St Mungos Broadway (Grants &,,Bi-Borough Director of Integrated Care,1511.44
19/07/2022,1245636,St Mungos Broadway (Grants &,,Bi-Borough Director of Integrated Care,1037.68
19/07/2022,1245636,St Mungos Broadway (Grants &,,Bi-Borough Director of Integrated Care,1622.36
19/07/2022,1245636,St Mungos Broadway (Grants &,,Bi-Borough Director of Integrated Care,1622.36
16/08/2022,1245636,St Mungos Broadway (Grants &,,Bi-Borough Director of Integrated Care,1037.68
16/08/2022,1245636,St Mungos Broadway (Grants &,,Bi-Borough Director of Integrated Care,1622.36
16/08/2022,1245636,St Mungos Broadway (Grants &,,Bi-Borough Director of Integrated Care,1622.36
16/08/2022,1245636,St Mungos Broadway (Grants &,,Bi-Borough Director of Integrated Care,1062.6
16/08/2022,1245636,St Mungos Broadway (Grants &,,Bi-Borough Director of Integrated Care,1511.44
14/09/2022,1245636,St Mungos Broadway (Grants &,,Bi-Borough Director of Integrated Care,636.81
14/09/2022,1245636,St Mungos Broadway (Grants &,,Bi-Borough Director of Integrated Care,1062.6
14/09/2022,1245636,St Mungos Broadway (Grants &,,Bi-Borough Director of Integrated Care,1867.71
14/09/2022,1245636,St Mungos Broadway (Grants &,,Bi-Borough Director of Integrated Care,1512.63
21/07/2022,1243797,Central & North West London Nhs,Other Expenses,Bi-Borough Director of Integrated Care,16786.53
21/07/2022,1243797,Central & North West London Nhs,Other Expenses,Bi-Borough Director of Integrated Care,16786.53
29/07/2022,1255843,A.I. Care Services Ltd,,Bi-Borough Director of Integrated Care,973.24
18/08/2022,1255843,A.I. Care Services Ltd,,Bi-Borough Director of Integrated Care,973.24
12/08/2022,1245929,The Regard Partnership Ltd,B*Voluntary-Spot-V Dep-Enhanced - do not u,Bi-Borough Director of Integrated Care,1855
12/08/2022,1245929,The Regard Partnership Ltd,B*Voluntary-Spot-V Dep-Enhanced - do not u,Bi-Borough Director of Integrated Care,1288
12/08/2022,1245929,The Regard Partnership Ltd,B*Voluntary-Spot-V Dep-Enhanced - do not u,Bi-Borough Director of Integrated Care,1078
01/07/2022,1286967,ACS Homecare Ltd,,Bi-Borough Director of Integrated Care,604.08
06/07/2022,1246011,Art4Space,B*Voluntary-Spot-V Dep-Enhanced - do not u,Bi-Borough Director of Integrated Care,1300
06/07/2022,1246011,Art4Space,B*Voluntary-Spot-V Dep-Enhanced - do not u,Bi-Borough Director of Integrated Care,1300
06/07/2022,1246011,Art4Space,B*Voluntary-Spot-V Dep-Enhanced - do not u,Bi-Borough Director of Integrated Care,1300
06/07/2022,1246011,Art4Space,B*Voluntary-Spot-V Dep-Enhanced - do not u,Bi-Borough Director of Integrated Care,1300
06/07/2022,1246011,Art4Space,B*Voluntary-Spot-V Dep-Enhanced - do not u,Bi-Borough Director of Integrated Care,1300
06/07/2022,1246011,Art4Space,B*Voluntary-Spot-V Dep-Enhanced - do not u,Bi-Borough Director of Integrated Care,1300
11/07/2022,1243931,Ashbourne Healthcare Services,,Bi-Borough Director of Integrated Care,939.68
11/07/2022,1243931,Ashbourne Healthcare Services,,Bi-Borough Director of Integrated Care,1174.6
04/08/2022,1243931,Ashbourne Healthcare Services,,Bi-Borough Director of Integrated Care,1510.2
05/08/2022,1243931,Ashbourne Healthcare Services,,Bi-Borough Director of Integrated Care,1174.6
22/08/2022,1243931,Ashbourne Healthcare Services,,Bi-Borough Director of Integrated Care,1476.64
22/08/2022,1243931,Ashbourne Healthcare Services,,Bi-Borough Director of Integrated Care,939.68
08/09/2022,1243931,Ashbourne Healthcare Services,,Bi-Borough Director of Integrated Care,1434.69
21/09/2022,1243931,Ashbourne Healthcare Services,,Bi-Borough Director of Integrated Care,3406.34
23/09/2022,1243931,Ashbourne Healthcare Services,,Bi-Borough Director of Integrated Care,1510.2
19/07/2022,1271022,BONZA CARE LTD,,Bi-Borough Director of Integrated Care,1684
19/07/2022,1271022,BONZA CARE LTD,,Bi-Borough Director of Integrated Care,3800
16/08/2022,1271022,BONZA CARE LTD,,Bi-Borough Director of Integrated Care,3800
16/08/2022,1271022,BONZA CARE LTD,,Bi-Borough Director of Integrated Care,1684
14/09/2022,1271022,BONZA CARE LTD,,Bi-Borough Director of Integrated Care,4827.14
14/09/2022,1271022,BONZA CARE LTD,,Bi-Borough Director of Integrated Care,4827.14
14/09/2022,1271022,BONZA CARE LTD,,Bi-Borough Director of Integrated Care,3800
14/09/2022,1271022,BONZA CARE LTD,,Bi-Borough Director of Integrated Care,1684
29/07/2022,1246247,Blitz Home Environmental Cleaning,,Bi-Borough Director of Integrated Care,666.67
29/07/2022,1246247,Blitz Home Environmental Cleaning,,Bi-Borough Director of Integrated Care,700
24/08/2022,1246247,Blitz Home Environmental Cleaning,,Bi-Borough Director of Integrated Care,1050
01/09/2022,1246247,Blitz Home Environmental Cleaning,,Bi-Borough Director of Integrated Care,700
01/09/2022,1246247,Blitz Home Environmental Cleaning,,Bi-Borough Director of Integrated Care,700.14
11/07/2022,1246261,Brent Wandsworth & Westminster,B*Voluntary-Spot-V Dep-Enhanced - do not u,Bi-Borough Director of Integrated Care,869.37
18/07/2022,1246261,Brent Wandsworth & Westminster,,Bi-Borough Director of Integrated Care,700.05
27/07/2022,1246261,Brent Wandsworth & Westminster,B*Voluntary-Spot-V Dep-Enhanced - do not u,Bi-Borough Director of Integrated Care,1010.11
03/08/2022,1246262,Brent Wandsworth & Westminster,B*Voluntary-Spot-V Dep-Enhanced - do not u,Bi-Borough Director of Integrated Care,540
03/08/2022,1246262,Brent Wandsworth & Westminster,B*Voluntary-Spot-V Dep-Enhanced - do not u,Bi-Borough Director of Integrated Care,750
03/08/2022,1246262,Brent Wandsworth & Westminster,B*Voluntary-Spot-V Dep-Enhanced - do not u,Bi-Borough Director of Integrated Care,540
15/08/2022,1246261,Brent Wandsworth & Westminster,,Bi-Borough Director of Integrated Care,610.3
16/08/2022,1246261,Brent Wandsworth & Westminster,B*Voluntary-Spot-V Dep-Enhanced - do not u,Bi-Borough Director of Integrated Care,861.6
27/09/2022,1246261,Brent Wandsworth & Westminster,B*Voluntary-Spot-V Dep-Enhanced - do not u,Bi-Borough Director of Integrated Care,927.86
29/09/2022,1246262,Brent Wandsworth & Westminster,B*Voluntary-Spot-V Dep-Enhanced - do not u,Bi-Borough Director of Integrated Care,600
29/09/2022,1246262,Brent Wandsworth & Westminster,B*Voluntary-Spot-V Dep-Enhanced - do not u,Bi-Borough Director of Integrated Care,840
29/09/2022,1246262,Brent Wandsworth & Westminster,B*Voluntary-Spot-V Dep-Enhanced - do not u,Bi-Borough Director of Integrated Care,540
29/09/2022,1246262,Brent Wandsworth & Westminster,B*Voluntary-Spot-V Dep-Enhanced - do not u,Bi-Borough Director of Integrated Care,600
29/09/2022,1246262,Brent Wandsworth & Westminster,B*Voluntary-Spot-V Dep-Enhanced - do not u,Bi-Borough Director of Integrated Care,540
29/09/2022,1246262,Brent Wandsworth & Westminster,B*Voluntary-Spot-V Dep-Enhanced - do not u,Bi-Borough Director of Integrated Care,810
29/09/2022,1246262,Brent Wandsworth & Westminster,B*Voluntary-Spot-V Dep-Enhanced - do not u,Bi-Borough Director of Integrated Care,540
29/09/2022,1246262,Brent Wandsworth & Westminster,B*Voluntary-Spot-V Dep-Enhanced - do not u,Bi-Borough Director of Integrated Care,540
19/07/2022,1247482,PERSONAL PAYMENTS,,Bi-Borough Director of Integrated Care,833.28
16/08/2022,1247482,PERSONAL PAYMENTS,,Bi-Borough Director of Integrated Care,833.28
14/09/2022,1247482,PERSONAL PAYMENTS,,Bi-Borough Director of Integrated Care,833.28
19/07/2022,1246321,Camphill Village Trust,,Bi-Borough Director of Integrated Care,1159.4
16/08/2022,1246321,Camphill Village Trust,,Bi-Borough Director of Integrated Care,1159.4
14/09/2022,1246321,Camphill Village Trust,,Bi-Borough Director of Integrated Care,1159.4
06/07/2022,1286484,City Winners Limited,,Bi-Borough Director of Integrated Care,1480
22/08/2022,1286484,City Winners Limited,,Bi-Borough Director of Integrated Care,930
27/09/2022,1286484,City Winners Limited,,Bi-Borough Director of Integrated Care,1450
22/08/2022,1246581,Clearup Solutions Limited,,Bi-Borough Director of Integrated Care,1385
11/07/2022,1244190,Clouds End Services Ltd,,Bi-Borough Director of Integrated Care,1200
18/07/2022,1244190,Clouds End Services Ltd,,Bi-Borough Director of Integrated Care,1100
05/08/2022,1244190,Clouds End Services Ltd,,Bi-Borough Director of Integrated Care,500
25/08/2022,1244190,Clouds End Services Ltd,,Bi-Borough Director of Integrated Care,1000
22/09/2022,1244190,Clouds End Services Ltd,,Bi-Borough Director of Integrated Care,1200
19/07/2022,1246602,Community Housing Therapy,,Bi-Borough Director of Integrated Care,1940
16/08/2022,1246602,Community Housing Therapy,,Bi-Borough Director of Integrated Care,1940
14/09/2022,1246602,Community Housing Therapy,,Bi-Borough Director of Integrated Care,1940
22/07/2022,1259597,Ethica Services LTD,,Bi-Borough Director of Integrated Care,1161.74
19/08/2022,1259597,Ethica Services LTD,,Bi-Borough Director of Integrated Care,784.29
23/09/2022,1259597,Ethica Services LTD,,Bi-Borough Director of Integrated Care,1077.86
09/09/2022,1252498,PERSONAL PAYMENTS,Legal Costs,Bi-Borough Director of Integrated Care,1555
21/07/2022,1247257,Health Vision Uk,,Bi-Borough Director of Integrated Care,1473.32
21/07/2022,1247257,Health Vision Uk,,Bi-Borough Director of Integrated Care,661.98
21/07/2022,1247257,Health Vision Uk,,Bi-Borough Director of Integrated Care,561.05
21/07/2022,1247257,Health Vision Uk,,Bi-Borough Director of Integrated Care,1547.26
21/07/2022,1247257,Health Vision Uk,,Bi-Borough Director of Integrated Care,665.81
21/07/2022,1247257,Health Vision Uk,,Bi-Borough Director of Integrated Care,963.67
21/07/2022,1247257,Health Vision Uk,,Bi-Borough Director of Integrated Care,510.09
21/07/2022,1247257,Health Vision Uk,,Bi-Borough Director of Integrated Care,550.21
21/07/2022,1247257,Health Vision Uk,,Bi-Borough Director of Integrated Care,1037.68
25/08/2022,1247257,Health Vision Uk,,Bi-Borough Director of Integrated Care,662.89
25/08/2022,1247257,Health Vision Uk,,Bi-Borough Director of Integrated Care,953.17
25/08/2022,1247257,Health Vision Uk,,Bi-Borough Director of Integrated Care,504.94
25/08/2022,1247257,Health Vision Uk,,Bi-Borough Director of Integrated Care,997.18
25/08/2022,1247257,Health Vision Uk,,Bi-Borough Director of Integrated Care,518.84
25/08/2022,1247257,Health Vision Uk,,Bi-Borough Director of Integrated Care,545.19
25/08/2022,1247257,Health Vision Uk,,Bi-Borough Director of Integrated Care,1037.68
25/08/2022,1247257,Health Vision Uk,,Bi-Borough Director of Integrated Care,1473
25/08/2022,1247257,Health Vision Uk,,Bi-Borough Director of Integrated Care,637.65
25/08/2022,1247257,Health Vision Uk,,Bi-Borough Director of Integrated Care,593.09
25/08/2022,1247257,Health Vision Uk,,Bi-Borough Director of Integrated Care,1549.11
15/09/2022,1247257,Health Vision Uk,,Bi-Borough Director of Integrated Care,518.84
15/09/2022,1247257,Health Vision Uk,,Bi-Borough Director of Integrated Care,544.19
15/09/2022,1247257,Health Vision Uk,,Bi-Borough Director of Integrated Care,1036.14
15/09/2022,1247257,Health Vision Uk,,Bi-Borough Director of Integrated Care,1442.95
15/09/2022,1247257,Health Vision Uk,,Bi-Borough Director of Integrated Care,664.8
15/09/2022,1247257,Health Vision Uk,,Bi-Borough Director of Integrated Care,648.64
15/09/2022,1247257,Health Vision Uk,,Bi-Borough Director of Integrated Care,1550.34
15/09/2022,1247257,Health Vision Uk,,Bi-Borough Director of Integrated Care,666.98
15/09/2022,1247257,Health Vision Uk,,Bi-Borough Director of Integrated Care,962.01
15/09/2022,1247257,Health Vision Uk,,Bi-Borough Director of Integrated Care,510.02
06/07/2022,1282613,I Support Behaviour LTD,B*Voluntary-Spot-V Dep-Enhanced - do not u,Bi-Borough Director of Integrated Care,1187.5
03/08/2022,1247526,Integrity Care and Support Ltd,,Bi-Borough Director of Integrated Care,791.18
03/08/2022,1247526,Integrity Care and Support Ltd,,Bi-Borough Director of Integrated Care,861.29
03/08/2022,1247526,Integrity Care and Support Ltd,,Bi-Borough Director of Integrated Care,829.5
03/08/2022,1247526,Integrity Care and Support Ltd,,Bi-Borough Director of Integrated Care,851.27
03/08/2022,1247526,Integrity Care and Support Ltd,,Bi-Borough Director of Integrated Care,1201.8
15/08/2022,1247526,Integrity Care and Support Ltd,,Bi-Borough Director of Integrated Care,1181.77
01/07/2022,1256893,Kapital Care WCC,,Bi-Borough Director of Integrated Care,939.68
01/07/2022,1256893,Kapital Care WCC,,Bi-Borough Director of Integrated Care,1911.22
29/07/2022,1256893,Kapital Care WCC,,Bi-Borough Director of Integrated Care,939.68
29/07/2022,1256893,Kapital Care WCC,,Bi-Borough Director of Integrated Care,1879.36
08/08/2022,1245693,London Borough Of Hammersmith &,Payments to Other Local Authorities,Bi-Borough Director of Integrated Care,1894.1
07/07/2022,1247650,London Care Ltd,,Bi-Borough Director of Integrated Care,704.14
07/07/2022,1247650,London Care Ltd,,Bi-Borough Director of Integrated Care,1027.47
07/07/2022,1247650,London Care Ltd,,Bi-Borough Director of Integrated Care,513.58
07/07/2022,1247650,London Care Ltd,,Bi-Borough Director of Integrated Care,1102.07
07/07/2022,1247650,London Care Ltd,,Bi-Borough Director of Integrated Care,1022.03
07/07/2022,1247650,London Care Ltd,,Bi-Borough Director of Integrated Care,1034.46
07/07/2022,1247650,London Care Ltd,,Bi-Borough Director of Integrated Care,880.69
07/07/2022,1247650,London Care Ltd,,Bi-Borough Director of Integrated Care,510.44
07/07/2022,1247650,London Care Ltd,,Bi-Borough Director of Integrated Care,778.26
22/07/2022,1247650,London Care Ltd,,Bi-Borough Director of Integrated Care,653.8
22/07/2022,1247650,London Care Ltd,,Bi-Borough Director of Integrated Care,877.08
22/07/2022,1247650,London Care Ltd,,Bi-Borough Director of Integrated Care,1160.92
22/07/2022,1247650,London Care Ltd,,Bi-Borough Director of Integrated Care,1010.24
22/07/2022,1247650,London Care Ltd,,Bi-Borough Director of Integrated Care,756.17
22/07/2022,1247650,London Care Ltd,,Bi-Borough Director of Integrated Care,697.32
18/08/2022,1247650,London Care Ltd,,Bi-Borough Director of Integrated Care,1352.22
18/08/2022,1247650,London Care Ltd,,Bi-Borough Director of Integrated Care,702.29
18/08/2022,1247650,London Care Ltd,,Bi-Borough Director of Integrated Care,513.28
18/08/2022,1247650,London Care Ltd,,Bi-Borough Director of Integrated Care,1535.89
18/08/2022,1247650,London Care Ltd,,Bi-Borough Director of Integrated Care,1010
18/08/2022,1247650,London Care Ltd,,Bi-Borough Director of Integrated Care,862.37
19/08/2022,1247650,London Care Ltd,,Bi-Borough Director of Integrated Care,676.96
19/08/2022,1247650,London Care Ltd,,Bi-Borough Director of Integrated Care,516.37
19/08/2022,1247650,London Care Ltd,,Bi-Borough Director of Integrated Care,1556.52
19/08/2022,1247650,London Care Ltd,,Bi-Borough Director of Integrated Care,1016.49
19/08/2022,1247650,London Care Ltd,,Bi-Borough Director of Integrated Care,893.98
19/08/2022,1247650,London Care Ltd,,Bi-Borough Director of Integrated Care,1390.84
16/09/2022,1247650,London Care Ltd,,Bi-Borough Director of Integrated Care,1541.5
16/09/2022,1247650,London Care Ltd,,Bi-Borough Director of Integrated Care,1018.35
16/09/2022,1247650,London Care Ltd,,Bi-Borough Director of Integrated Care,898.15
16/09/2022,1247650,London Care Ltd,,Bi-Borough Director of Integrated Care,1398.55
16/09/2022,1247650,London Care Ltd,,Bi-Borough Director of Integrated Care,688.4
16/09/2022,1247650,London Care Ltd,,Bi-Borough Director of Integrated Care,504.67
19/07/2022,1247852,Look Ahead Care and Support Ltd,Rent,Bi-Borough Director of Integrated Care,1303.28
16/08/2022,1247852,Look Ahead Care and Support Ltd,Rent,Bi-Borough Director of Integrated Care,1303.28
14/09/2022,1247852,Look Ahead Care and Support Ltd,Rent,Bi-Borough Director of Integrated Care,1303.28
19/07/2022,1262948,Lotus House,,Bi-Borough Director of Integrated Care,2928
16/08/2022,1262948,Lotus House,,Bi-Borough Director of Integrated Care,2928
14/09/2022,1262948,Lotus House,,Bi-Borough Director of Integrated Care,2928
19/07/2022,1244866,Micado Community Living Services,,Bi-Borough Director of Integrated Care,2880
16/08/2022,1244866,Micado Community Living Services,,Bi-Borough Director of Integrated Care,2880
14/09/2022,1244866,Micado Community Living Services,,Bi-Borough Director of Integrated Care,2880
06/07/2022,1244905,Nas Services Ltd (Residential),B*Voluntary-Spot-V Dep-Enhanced - do not u,Bi-Borough Director of Integrated Care,1065.12
03/08/2022,1244905,Nas Services Ltd (Residential),B*Voluntary-Spot-V Dep-Enhanced - do not u,Bi-Borough Director of Integrated Care,1065.12
19/07/2022,1270326,New Directions Flexible Social Care,,Bi-Borough Director of Integrated Care,1400
16/08/2022,1270326,New Directions Flexible Social Care,,Bi-Borough Director of Integrated Care,1400
14/09/2022,1270326,New Directions Flexible Social Care,,Bi-Borough Director of Integrated Care,1400
29/07/2022,1254334,PERSONAL PAYMENTS,Adult Social Care - Other Transfer Pay,Bi-Borough Director of Integrated Care,1500
29/07/2022,1266895,PERSONAL PAYMENTS,Social Care - Direct Payments,Bi-Borough Director of Integrated Care,728
29/07/2022,1259940,PERSONAL PAYMENTS,Adult Social Care - Other Transfer Pay,Bi-Borough Director of Integrated Care,1913.76
29/07/2022,1247409,PERSONAL PAYMENTS,Social Care - Direct Payments,Bi-Borough Director of Integrated Care,508.84
29/07/2022,1247479,PERSONAL PAYMENTS,Social Care - Direct Payments,Bi-Borough Director of Integrated Care,1639.08
29/07/2022,1284661,PERSONAL PAYMENTS,Social Care - Direct Payments,Bi-Borough Director of Integrated Care,528
29/07/2022,1291114,PERSONAL PAYMENTS,Social Care - Direct Payments,Bi-Borough Director of Integrated Care,960
25/08/2022,1284661,PERSONAL PAYMENTS,Social Care - Direct Payments,Bi-Borough Director of Integrated Care,528
25/08/2022,1291114,PERSONAL PAYMENTS,Social Care - Direct Payments,Bi-Borough Director of Integrated Care,960
25/08/2022,1254334,PERSONAL PAYMENTS,Adult Social Care - Other Transfer Pay,Bi-Borough Director of Integrated Care,1500
25/08/2022,1266895,PERSONAL PAYMENTS,Social Care - Direct Payments,Bi-Borough Director of Integrated Care,728
25/08/2022,1259940,PERSONAL PAYMENTS,Adult Social Care - Other Transfer Pay,Bi-Borough Director of Integrated Care,1913.76
25/08/2022,1247479,PERSONAL PAYMENTS,Social Care - Direct Payments,Bi-Borough Director of Integrated Care,1639.08
25/08/2022,1247409,PERSONAL PAYMENTS,Social Care - Direct Payments,Bi-Borough Director of Integrated Care,508.84
22/09/2022,1247409,PERSONAL PAYMENTS,Social Care - Direct Payments,Bi-Borough Director of Integrated Care,508.84
22/09/2022,1247479,PERSONAL PAYMENTS,Social Care - Direct Payments,Bi-Borough Director of Integrated Care,1639.08
22/09/2022,1266895,PERSONAL PAYMENTS,Social Care - Direct Payments,Bi-Borough Director of Integrated Care,728
22/09/2022,1297283,PERSONAL PAYMENTS,Social Care - Direct Payments,Bi-Borough Director of Integrated Care,585.75
22/09/2022,1284661,PERSONAL PAYMENTS,Social Care - Direct Payments,Bi-Borough Director of Integrated Care,528
22/09/2022,1259940,PERSONAL PAYMENTS,Adult Social Care - Other Transfer Pay,Bi-Borough Director of Integrated Care,1913.76
22/09/2022,1291114,PERSONAL PAYMENTS,Social Care - Direct Payments,Bi-Borough Director of Integrated Care,960
22/09/2022,1254334,PERSONAL PAYMENTS,Adult Social Care - Other Transfer Pay,Bi-Borough Director of Integrated Care,1500
19/07/2022,1269718,Reliant Care Limited,,Bi-Borough Director of Integrated Care,1340
16/08/2022,1269718,Reliant Care Limited,,Bi-Borough Director of Integrated Care,1340
14/09/2022,1269718,Reliant Care Limited,,Bi-Borough Director of Integrated Care,1340
05/07/2022,1245316,Respect Care Services Ltd,,Bi-Borough Director of Integrated Care,604.08
08/07/2022,1245316,Respect Care Services Ltd,,Bi-Borough Director of Integrated Care,604.08
21/07/2022,1245316,Respect Care Services Ltd,,Bi-Borough Director of Integrated Care,604.08
05/08/2022,1245316,Respect Care Services Ltd,,Bi-Borough Director of Integrated Care,604.08
12/08/2022,1245316,Respect Care Services Ltd,,Bi-Borough Director of Integrated Care,604.08
20/08/2022,1245316,Respect Care Services Ltd,,Bi-Borough Director of Integrated Care,604.08
13/09/2022,1245316,Respect Care Services Ltd,,Bi-Borough Director of Integrated Care,604.08
20/09/2022,1245316,Respect Care Services Ltd,,Bi-Borough Director of Integrated Care,604.08
19/07/2022,1248618,Riverside Echg,Rent,Bi-Borough Director of Integrated Care,1055.88
19/07/2022,1248618,Riverside Echg,Rent,Bi-Borough Director of Integrated Care,836.64
19/07/2022,1248618,Riverside Echg,Rent,Bi-Borough Director of Integrated Care,852.32
16/08/2022,1248618,Riverside Echg,Rent,Bi-Borough Director of Integrated Care,836.64
16/08/2022,1248618,Riverside Echg,Rent,Bi-Borough Director of Integrated Care,852.32
16/08/2022,1248618,Riverside Echg,Rent,Bi-Borough Director of Integrated Care,1055.88
14/09/2022,1248618,Riverside Echg,Rent,Bi-Borough Director of Integrated Care,852.32
14/09/2022,1248618,Riverside Echg,Rent,Bi-Borough Director of Integrated Care,1055.88
14/09/2022,1248618,Riverside Echg,Rent,Bi-Borough Director of Integrated Care,4165.71
14/09/2022,1248618,Riverside Echg,Rent,Bi-Borough Director of Integrated Care,836.64
19/07/2022,1272438,ST GEORGES SUPPORTED LIVING LTD,,Bi-Borough Director of Integrated Care,1700
16/08/2022,1272438,ST GEORGES SUPPORTED LIVING LTD,,Bi-Borough Director of Integrated Care,1700
14/09/2022,1272438,ST GEORGES SUPPORTED LIVING LTD,,Bi-Borough Director of Integrated Care,1700
06/07/2022,1248843,Sage Care Ltd,,Bi-Borough Director of Integrated Care,1990.39
06/07/2022,1248843,Sage Care Ltd,,Bi-Borough Director of Integrated Care,1747.19
06/07/2022,1248843,Sage Care Ltd,,Bi-Borough Director of Integrated Care,561.17
30/08/2022,1248843,Sage Care Ltd,,Bi-Borough Director of Integrated Care,1948.71
30/08/2022,1248843,Sage Care Ltd,,Bi-Borough Director of Integrated Care,1738.21
30/08/2022,1248843,Sage Care Ltd,,Bi-Borough Director of Integrated Care,1218.35
20/09/2022,1248843,Sage Care Ltd,,Bi-Borough Director of Integrated Care,1908.23
20/09/2022,1248843,Sage Care Ltd,,Bi-Borough Director of Integrated Care,1758.31
20/09/2022,1248843,Sage Care Ltd,,Bi-Borough Director of Integrated Care,1212.47
22/09/2022,1248843,Sage Care Ltd,,Bi-Borough Director of Integrated Care,1185.92
22/09/2022,1248843,Sage Care Ltd,,Bi-Borough Director of Integrated Care,2085.83
22/09/2022,1248843,Sage Care Ltd,,Bi-Borough Director of Integrated Care,1652.94
16/08/2022,1286751,Shine Partnerships Limited,,Bi-Borough Director of Integrated Care,2056.25
16/08/2022,1286751,Shine Partnerships Limited,,Bi-Borough Director of Integrated Care,2056.25
19/07/2022,1245584,Single Homeless Project,Rent,Bi-Borough Director of Integrated Care,1413.88
16/08/2022,1245584,Single Homeless Project,Rent,Bi-Borough Director of Integrated Care,1413.88
16/08/2022,1248913,Smithfield Health & Social Care,,Bi-Borough Director of Integrated Care,931.29
13/09/2022,1248913,Smithfield Health & Social Care,,Bi-Borough Director of Integrated Care,931.29
19/07/2022,1248970,St Martin Of Tours Ha Ltd (Use,,Bi-Borough Director of Integrated Care,3800
16/08/2022,1248970,St Martin Of Tours Ha Ltd (Use,,Bi-Borough Director of Integrated Care,3741.43
16/08/2022,1248970,St Martin Of Tours Ha Ltd (Use,,Bi-Borough Director of Integrated Care,3741.43
16/08/2022,1248970,St Martin Of Tours Ha Ltd (Use,,Bi-Borough Director of Integrated Care,3800
14/09/2022,1248970,St Martin Of Tours Ha Ltd (Use,,Bi-Borough Director of Integrated Care,1940
14/09/2022,1248970,St Martin Of Tours Ha Ltd (Use,,Bi-Borough Director of Integrated Care,1940
14/09/2022,1248970,St Martin Of Tours Ha Ltd (Use,,Bi-Borough Director of Integrated Care,3800
19/07/2022,1245636,St Mungos Broadway (Grants &,Rent,Bi-Borough Director of Integrated Care,1622.36
16/08/2022,1245636,St Mungos Broadway (Grants &,Rent,Bi-Borough Director of Integrated Care,1622.36
14/09/2022,1245636,St Mungos Broadway (Grants &,Rent,Bi-Borough Director of Integrated Care,1622.36
20/07/2022,1245182,Supporting Care Ltd,,Bi-Borough Director of Integrated Care,3044.82
02/09/2022,1245182,Supporting Care Ltd,,Bi-Borough Director of Integrated Care,3044.82
02/09/2022,1245182,Supporting Care Ltd,,Bi-Borough Director of Integrated Care,3044.82
19/07/2022,1270462,TRIVENI CARE LTD,,Bi-Borough Director of Integrated Care,2280
16/08/2022,1270462,TRIVENI CARE LTD,,Bi-Borough Director of Integrated Care,2280
14/09/2022,1270462,TRIVENI CARE LTD,,Bi-Borough Director of Integrated Care,2280
14/09/2022,1246095,Theana Ltd T/a Enlighten Homes,,Bi-Borough Director of Integrated Care,7871.79
14/09/2022,1246095,Theana Ltd T/a Enlighten Homes,,Bi-Borough Director of Integrated Care,7871.79
14/07/2022,1249232,Vincentian Care Plus,,Bi-Borough Director of Integrated Care,1603.58
14/07/2022,1249232,Vincentian Care Plus,,Bi-Borough Director of Integrated Care,1145.46
14/07/2022,1249232,Vincentian Care Plus,,Bi-Borough Director of Integrated Care,687.25
14/07/2022,1249232,Vincentian Care Plus,,Bi-Borough Director of Integrated Care,610.88
14/07/2022,1249232,Vincentian Care Plus,,Bi-Borough Director of Integrated Care,1336.31
14/07/2022,1249232,Vincentian Care Plus,,Bi-Borough Director of Integrated Care,1078.06
14/07/2022,1249232,Vincentian Care Plus,,Bi-Borough Director of Integrated Care,2672.6
14/07/2022,1249232,Vincentian Care Plus,,Bi-Borough Director of Integrated Care,2118.99
14/07/2022,1249232,Vincentian Care Plus,,Bi-Borough Director of Integrated Care,839.97
14/07/2022,1249232,Vincentian Care Plus,,Bi-Borough Director of Integrated Care,1069.04
14/07/2022,1249232,Vincentian Care Plus,,Bi-Borough Director of Integrated Care,2405.34
14/07/2022,1249232,Vincentian Care Plus,,Bi-Borough Director of Integrated Care,534.52
14/07/2022,1249232,Vincentian Care Plus,,Bi-Borough Director of Integrated Care,534.52
14/07/2022,1249232,Vincentian Care Plus,,Bi-Borough Director of Integrated Care,534.52
14/07/2022,1249232,Vincentian Care Plus,,Bi-Borough Director of Integrated Care,591.79
14/07/2022,1249232,Vincentian Care Plus,,Bi-Borough Director of Integrated Care,519.91
14/07/2022,1249232,Vincentian Care Plus,,Bi-Borough Director of Integrated Care,801.78
29/07/2022,1249232,Vincentian Care Plus,,Bi-Borough Director of Integrated Care,1584.74
12/08/2022,1249232,Vincentian Care Plus,,Bi-Borough Director of Integrated Care,1547.52
12/08/2022,1249232,Vincentian Care Plus,,Bi-Borough Director of Integrated Care,1556.48
12/08/2022,1249232,Vincentian Care Plus,,Bi-Borough Director of Integrated Care,1111.8
12/08/2022,1249232,Vincentian Care Plus,,Bi-Borough Director of Integrated Care,667.08
12/08/2022,1249232,Vincentian Care Plus,,Bi-Borough Director of Integrated Care,592.96
12/08/2022,1249232,Vincentian Care Plus,,Bi-Borough Director of Integrated Care,1297.1
12/08/2022,1249232,Vincentian Care Plus,,Bi-Borough Director of Integrated Care,1046.43
12/08/2022,1249232,Vincentian Care Plus,,Bi-Borough Director of Integrated Care,2594.2
12/08/2022,1249232,Vincentian Care Plus,,Bi-Borough Director of Integrated Care,2056.83
12/08/2022,1249232,Vincentian Care Plus,,Bi-Borough Director of Integrated Care,815.3
12/08/2022,1249232,Vincentian Care Plus,,Bi-Borough Director of Integrated Care,1037.68
12/08/2022,1249232,Vincentian Care Plus,,Bi-Borough Director of Integrated Care,2334.78
12/08/2022,1249232,Vincentian Care Plus,,Bi-Borough Director of Integrated Care,518.84
12/08/2022,1249232,Vincentian Care Plus,,Bi-Borough Director of Integrated Care,518.84
12/08/2022,1249232,Vincentian Care Plus,,Bi-Borough Director of Integrated Care,518.84
12/08/2022,1249232,Vincentian Care Plus,,Bi-Borough Director of Integrated Care,518.84
12/08/2022,1249232,Vincentian Care Plus,,Bi-Borough Director of Integrated Care,518.84
12/08/2022,1249232,Vincentian Care Plus,,Bi-Borough Director of Integrated Care,768.99
07/09/2022,1249232,Vincentian Care Plus,,Bi-Borough Director of Integrated Care,1547.52
08/09/2022,1249232,Vincentian Care Plus,,Bi-Borough Director of Integrated Care,1556.48
08/09/2022,1249232,Vincentian Care Plus,,Bi-Borough Director of Integrated Care,1102.54
08/09/2022,1249232,Vincentian Care Plus,,Bi-Borough Director of Integrated Care,657.81
08/09/2022,1249232,Vincentian Care Plus,,Bi-Borough Director of Integrated Care,592.96
08/09/2022,1249232,Vincentian Care Plus,,Bi-Borough Director of Integrated Care,1297.1
08/09/2022,1249232,Vincentian Care Plus,,Bi-Borough Director of Integrated Care,1046.43
08/09/2022,1249232,Vincentian Care Plus,,Bi-Borough Director of Integrated Care,2594.2
08/09/2022,1249232,Vincentian Care Plus,,Bi-Borough Director of Integrated Care,2056.83
08/09/2022,1249232,Vincentian Care Plus,,Bi-Borough Director of Integrated Care,815.3
08/09/2022,1249232,Vincentian Care Plus,,Bi-Borough Director of Integrated Care,1037.68
08/09/2022,1249232,Vincentian Care Plus,,Bi-Borough Director of Integrated Care,2334.78
08/09/2022,1249232,Vincentian Care Plus,,Bi-Borough Director of Integrated Care,518.84
08/09/2022,1249232,Vincentian Care Plus,,Bi-Borough Director of Integrated Care,518.84
08/09/2022,1249232,Vincentian Care Plus,,Bi-Borough Director of Integrated Care,518.84
08/09/2022,1249232,Vincentian Care Plus,,Bi-Borough Director of Integrated Care,518.84
08/09/2022,1249232,Vincentian Care Plus,,Bi-Borough Director of Integrated Care,518.84
08/09/2022,1249232,Vincentian Care Plus,,Bi-Borough Director of Integrated Care,778.26
08/09/2022,1249232,Vincentian Care Plus,,Bi-Borough Director of Integrated Care,602.22
08/09/2022,1249232,Vincentian Care Plus,,Bi-Borough Director of Integrated Care,1000.6
15/07/2022,1249291,Westminster Society,,Bi-Borough Director of Integrated Care,1619.2
01/09/2022,1249291,Westminster Society,,Bi-Borough Director of Integrated Care,1295.36
19/07/2022,1243566,Yarrow Housing Ltd,,Bi-Borough Director of Integrated Care,1408.68
16/08/2022,1243566,Yarrow Housing Ltd,,Bi-Borough Director of Integrated Care,1408.68
14/09/2022,1243566,Yarrow Housing Ltd,,Bi-Borough Director of Integrated Care,1408.68
29/09/2022,1251378,229 Mitcham Lane Ltd,,Bi-Borough Director of Integrated Care,1807.74
30/09/2022,1243430,2care,,Bi-Borough Director of Integrated Care,8678.57
30/09/2022,1243430,2care,,Bi-Borough Director of Integrated Care,8678.57
30/09/2022,1243430,2care,,Bi-Borough Director of Integrated Care,8807.14
30/09/2022,1243430,2care,,Bi-Borough Director of Integrated Care,8807.14
19/07/2022,1243431,Abba Residential Home,,Bi-Borough Director of Integrated Care,2472
19/07/2022,1243431,Abba Residential Home,,Bi-Borough Director of Integrated Care,2472
19/07/2022,1243431,Abba Residential Home,,Bi-Borough Director of Integrated Care,2457.2
19/07/2022,1243431,Abba Residential Home,,Bi-Borough Director of Integrated Care,3544.56
19/07/2022,1243431,Abba Residential Home,,Bi-Borough Director of Integrated Care,1629.92
19/07/2022,1243431,Abba Residential Home,,Bi-Borough Director of Integrated Care,1629.92
16/08/2022,1243431,Abba Residential Home,,Bi-Borough Director of Integrated Care,2472
16/08/2022,1243431,Abba Residential Home,,Bi-Borough Director of Integrated Care,2472
16/08/2022,1243431,Abba Residential Home,,Bi-Borough Director of Integrated Care,2457.2
16/08/2022,1243431,Abba Residential Home,,Bi-Borough Director of Integrated Care,3544.56
16/08/2022,1243431,Abba Residential Home,,Bi-Borough Director of Integrated Care,1629.92
16/08/2022,1243431,Abba Residential Home,,Bi-Borough Director of Integrated Care,1629.92
14/09/2022,1243431,Abba Residential Home,,Bi-Borough Director of Integrated Care,3544.56
14/09/2022,1243431,Abba Residential Home,,Bi-Borough Director of Integrated Care,2472
14/09/2022,1243431,Abba Residential Home,,Bi-Borough Director of Integrated Care,2472
14/09/2022,1243431,Abba Residential Home,,Bi-Borough Director of Integrated Care,2457.2
14/09/2022,1243431,Abba Residential Home,,Bi-Borough Director of Integrated Care,1629.92
14/09/2022,1243431,Abba Residential Home,,Bi-Borough Director of Integrated Care,1629.92
19/07/2022,1243851,Accomplish Group Ltd,,Bi-Borough Director of Integrated Care,3730
19/07/2022,1243851,Accomplish Group Ltd,,Bi-Borough Director of Integrated Care,3730
16/08/2022,1243851,Accomplish Group Ltd,,Bi-Borough Director of Integrated Care,3730
16/08/2022,1243851,Accomplish Group Ltd,,Bi-Borough Director of Integrated Care,3730
14/09/2022,1243851,Accomplish Group Ltd,,Bi-Borough Director of Integrated Care,3730
14/09/2022,1243851,Accomplish Group Ltd,,Bi-Borough Director of Integrated Care,3730
01/07/2022,1245982,Anchor Trust,,Bi-Borough Director of Integrated Care,2452.32
01/07/2022,1245982,Anchor Trust,,Bi-Borough Director of Integrated Care,2452.32
01/07/2022,1245982,Anchor Trust,,Bi-Borough Director of Integrated Care,4904.64
19/07/2022,1245982,Anchor Trust,,Bi-Borough Director of Integrated Care,1725.72
19/07/2022,1245982,Anchor Trust,,Bi-Borough Director of Integrated Care,1725.68
16/08/2022,1245982,Anchor Trust,,Bi-Borough Director of Integrated Care,1725.68
16/08/2022,1245982,Anchor Trust,,Bi-Borough Director of Integrated Care,1725.72
25/08/2022,1245982,Anchor Trust,,Bi-Borough Director of Integrated Care,2452.32
25/08/2022,1245982,Anchor Trust,,Bi-Borough Director of Integrated Care,2452.32
25/08/2022,1245982,Anchor Trust,,Bi-Borough Director of Integrated Care,4904.64
14/09/2022,1245982,Anchor Trust,,Bi-Borough Director of Integrated Care,1725.68
14/09/2022,1245982,Anchor Trust,,Bi-Borough Director of Integrated Care,1725.72
27/09/2022,1245982,Anchor Trust,,Bi-Borough Director of Integrated Care,3170.4
27/09/2022,1245982,Anchor Trust,,Bi-Borough Director of Integrated Care,1226.16
27/09/2022,1245982,Anchor Trust,,Bi-Borough Director of Integrated Care,1226.16
19/07/2022,1267747,Apex Care Homes Ltd,,Bi-Borough Director of Integrated Care,1710
19/07/2022,1267747,Apex Care Homes Ltd,,Bi-Borough Director of Integrated Care,1710
16/08/2022,1267747,Apex Care Homes Ltd,,Bi-Borough Director of Integrated Care,1710
16/08/2022,1267747,Apex Care Homes Ltd,,Bi-Borough Director of Integrated Care,1710
14/09/2022,1267747,Apex Care Homes Ltd,,Bi-Borough Director of Integrated Care,1710
14/09/2022,1267747,Apex Care Homes Ltd,,Bi-Borough Director of Integrated Care,1710
19/07/2022,1266508,Ashley Healthcare Ltd,,Bi-Borough Director of Integrated Care,1700
19/07/2022,1266508,Ashley Healthcare Ltd,,Bi-Borough Director of Integrated Care,1700
16/08/2022,1266508,Ashley Healthcare Ltd,,Bi-Borough Director of Integrated Care,1700
16/08/2022,1266508,Ashley Healthcare Ltd,,Bi-Borough Director of Integrated Care,1700
14/09/2022,1266508,Ashley Healthcare Ltd,,Bi-Borough Director of Integrated Care,1700
14/09/2022,1266508,Ashley Healthcare Ltd,,Bi-Borough Director of Integrated Care,1700
19/07/2022,1272521,Ashurst Lodge Healthcare Ltd,,Bi-Borough Director of Integrated Care,2492
19/07/2022,1272521,Ashurst Lodge Healthcare Ltd,,Bi-Borough Director of Integrated Care,2492
16/08/2022,1272521,Ashurst Lodge Healthcare Ltd,,Bi-Borough Director of Integrated Care,2492
16/08/2022,1272521,Ashurst Lodge Healthcare Ltd,,Bi-Borough Director of Integrated Care,2492
14/09/2022,1272521,Ashurst Lodge Healthcare Ltd,,Bi-Borough Director of Integrated Care,2492
14/09/2022,1272521,Ashurst Lodge Healthcare Ltd,,Bi-Borough Director of Integrated Care,2492
19/07/2022,1245072,Aster Healthcare Ltd,,Bi-Borough Director of Integrated Care,3388.76
19/07/2022,1245072,Aster Healthcare Ltd,,Bi-Borough Director of Integrated Care,2688
19/07/2022,1245072,Aster Healthcare Ltd,,Bi-Borough Director of Integrated Care,3400
16/08/2022,1245072,Aster Healthcare Ltd,,Bi-Borough Director of Integrated Care,3400
16/08/2022,1245072,Aster Healthcare Ltd,,Bi-Borough Director of Integrated Care,3388.76
14/09/2022,1245072,Aster Healthcare Ltd,,Bi-Borough Director of Integrated Care,3400
14/09/2022,1245072,Aster Healthcare Ltd,,Bi-Borough Director of Integrated Care,3388.76
19/07/2022,1245074,Astra Homes Ltd,,Bi-Borough Director of Integrated Care,1600
19/07/2022,1245074,Astra Homes Ltd,,Bi-Borough Director of Integrated Care,1600
19/07/2022,1245074,Astra Homes Ltd,,Bi-Borough Director of Integrated Care,1750
19/07/2022,1245074,Astra Homes Ltd,,Bi-Borough Director of Integrated Care,1750
16/08/2022,1245074,Astra Homes Ltd,,Bi-Borough Director of Integrated Care,1600
16/08/2022,1245074,Astra Homes Ltd,,Bi-Borough Director of Integrated Care,1600
16/08/2022,1245074,Astra Homes Ltd,,Bi-Borough Director of Integrated Care,1750
16/08/2022,1245074,Astra Homes Ltd,,Bi-Borough Director of Integrated Care,1750
14/09/2022,1245074,Astra Homes Ltd,,Bi-Borough Director of Integrated Care,1600
14/09/2022,1245074,Astra Homes Ltd,,Bi-Borough Director of Integrated Care,1600
14/09/2022,1245074,Astra Homes Ltd,,Bi-Borough Director of Integrated Care,1750
14/09/2022,1245074,Astra Homes Ltd,,Bi-Borough Director of Integrated Care,1750
19/07/2022,1276561,Autumn Lodge Hove Limited,,Bi-Borough Director of Integrated Care,2390
19/07/2022,1276561,Autumn Lodge Hove Limited,,Bi-Borough Director of Integrated Care,2390
16/08/2022,1276561,Autumn Lodge Hove Limited,,Bi-Borough Director of Integrated Care,2390
16/08/2022,1276561,Autumn Lodge Hove Limited,,Bi-Borough Director of Integrated Care,2390
14/09/2022,1276561,Autumn Lodge Hove Limited,,Bi-Borough Director of Integrated Care,2390
14/09/2022,1276561,Autumn Lodge Hove Limited,,Bi-Borough Director of Integrated Care,2390
19/07/2022,1268910,BROWNLOW ENTERPRISES Ltd,,Bi-Borough Director of Integrated Care,3000
19/07/2022,1268910,BROWNLOW ENTERPRISES Ltd,,Bi-Borough Director of Integrated Care,1800
19/07/2022,1268910,BROWNLOW ENTERPRISES Ltd,,Bi-Borough Director of Integrated Care,1800
16/08/2022,1268910,BROWNLOW ENTERPRISES Ltd,,Bi-Borough Director of Integrated Care,3000
16/08/2022,1268910,BROWNLOW ENTERPRISES Ltd,,Bi-Borough Director of Integrated Care,1800
16/08/2022,1268910,BROWNLOW ENTERPRISES Ltd,,Bi-Borough Director of Integrated Care,1800
14/09/2022,1268910,BROWNLOW ENTERPRISES Ltd,,Bi-Borough Director of Integrated Care,1800
14/09/2022,1268910,BROWNLOW ENTERPRISES Ltd,,Bi-Borough Director of Integrated Care,1800
14/09/2022,1268910,BROWNLOW ENTERPRISES Ltd,,Bi-Borough Director of Integrated Care,3000
19/07/2022,1284750,Barchester Healthcare Homes Ltd,,Bi-Borough Director of Integrated Care,2174.52
19/07/2022,1284750,Barchester Healthcare Homes Ltd,,Bi-Borough Director of Integrated Care,2000
19/07/2022,1245081,Barchester Healthcare Homes Ltd,,Bi-Borough Director of Integrated Care,2720
19/07/2022,1245081,Barchester Healthcare Homes Ltd,,Bi-Borough Director of Integrated Care,2720
16/08/2022,1245081,Barchester Healthcare Homes Ltd,,Bi-Borough Director of Integrated Care,2720
16/08/2022,1245081,Barchester Healthcare Homes Ltd,,Bi-Borough Director of Integrated Care,2720
16/08/2022,1284750,Barchester Healthcare Homes Ltd,,Bi-Borough Director of Integrated Care,2174.52
16/08/2022,1284750,Barchester Healthcare Homes Ltd,,Bi-Borough Director of Integrated Care,2000
14/09/2022,1245081,Barchester Healthcare Homes Ltd,,Bi-Borough Director of Integrated Care,2720
14/09/2022,1245081,Barchester Healthcare Homes Ltd,,Bi-Borough Director of Integrated Care,2720
14/09/2022,1284750,Barchester Healthcare Homes Ltd,,Bi-Borough Director of Integrated Care,2000
14/09/2022,1284750,Barchester Healthcare Homes Ltd,,Bi-Borough Director of Integrated Care,2174.52
16/08/2022,1268306,Beresford House,,Bi-Borough Director of Integrated Care,1275
16/08/2022,1268306,Beresford House,,Bi-Borough Director of Integrated Care,1275
19/07/2022,1285177,Brownlow Enterprises Ltd,,Bi-Borough Director of Integrated Care,3400
16/08/2022,1285177,Brownlow Enterprises Ltd,,Bi-Borough Director of Integrated Care,3400
19/07/2022,1243453,Bupa Care Homes(ANS ) Ltd - T/a,,Bi-Borough Director of Integrated Care,2640.72
16/08/2022,1243453,Bupa Care Homes(ANS ) Ltd - T/a,,Bi-Borough Director of Integrated Care,2640.72
14/09/2022,1243453,Bupa Care Homes(ANS ) Ltd - T/a,,Bi-Borough Director of Integrated Care,16395.08
19/07/2022,1243455,Bupa Care Homes(BNH) Ltd - T/a,,Bi-Borough Director of Integrated Care,4419.16
16/08/2022,1243455,Bupa Care Homes(BNH) Ltd - T/a,,Bi-Borough Director of Integrated Care,4419.16
14/09/2022,1243455,Bupa Care Homes(BNH) Ltd - T/a,,Bi-Borough Director of Integrated Care,4419.16
19/07/2022,1286184,CTK RESIDENTIAL CARE HOMES 2 LTD,,Bi-Borough Director of Integrated Care,2400
19/07/2022,1286184,CTK RESIDENTIAL CARE HOMES 2 LTD,,Bi-Borough Director of Integrated Care,2400
19/07/2022,1286184,CTK RESIDENTIAL CARE HOMES 2 LTD,,Bi-Borough Director of Integrated Care,1142.85
19/07/2022,1286184,CTK RESIDENTIAL CARE HOMES 2 LTD,,Bi-Borough Director of Integrated Care,1142.85
16/08/2022,1286184,CTK RESIDENTIAL CARE HOMES 2 LTD,,Bi-Borough Director of Integrated Care,2400
16/08/2022,1286184,CTK RESIDENTIAL CARE HOMES 2 LTD,,Bi-Borough Director of Integrated Care,2400
14/09/2022,1286184,CTK RESIDENTIAL CARE HOMES 2 LTD,,Bi-Borough Director of Integrated Care,2400
14/09/2022,1286184,CTK RESIDENTIAL CARE HOMES 2 LTD,,Bi-Borough Director of Integrated Care,2400
19/07/2022,1259100,Care Assist Limited,,Bi-Borough Director of Integrated Care,2102
19/07/2022,1259100,Care Assist Limited,,Bi-Borough Director of Integrated Care,2102
19/07/2022,1259100,Care Assist Limited,,Bi-Borough Director of Integrated Care,1150
19/07/2022,1259100,Care Assist Limited,,Bi-Borough Director of Integrated Care,1150
16/08/2022,1259100,Care Assist Limited,,Bi-Borough Director of Integrated Care,1150
16/08/2022,1259100,Care Assist Limited,,Bi-Borough Director of Integrated Care,1150
16/08/2022,1259100,Care Assist Limited,,Bi-Borough Director of Integrated Care,2102
16/08/2022,1259100,Care Assist Limited,,Bi-Borough Director of Integrated Care,2102
14/09/2022,1259100,Care Assist Limited,,Bi-Borough Director of Integrated Care,1150
14/09/2022,1259100,Care Assist Limited,,Bi-Borough Director of Integrated Care,1150
14/09/2022,1259100,Care Assist Limited,,Bi-Borough Director of Integrated Care,2102
14/09/2022,1259100,Care Assist Limited,,Bi-Borough Director of Integrated Care,2102
14/09/2022,1259100,Care Assist Limited,,Bi-Borough Director of Integrated Care,11128.57
19/07/2022,1268990,Care UK Partnerships Ltd T/a,,Bi-Borough Director of Integrated Care,1400
19/07/2022,1268990,Care UK Partnerships Ltd T/a,,Bi-Borough Director of Integrated Care,1400
19/07/2022,1268990,Care UK Partnerships Ltd T/a,,Bi-Borough Director of Integrated Care,1340
19/07/2022,1268990,Care UK Partnerships Ltd T/a,,Bi-Borough Director of Integrated Care,1340
16/08/2022,1268990,Care UK Partnerships Ltd T/a,,Bi-Borough Director of Integrated Care,1400
16/08/2022,1268990,Care UK Partnerships Ltd T/a,,Bi-Borough Director of Integrated Care,1400
16/08/2022,1268990,Care UK Partnerships Ltd T/a,,Bi-Borough Director of Integrated Care,1340
16/08/2022,1268990,Care UK Partnerships Ltd T/a,,Bi-Borough Director of Integrated Care,1340
14/09/2022,1268990,Care UK Partnerships Ltd T/a,,Bi-Borough Director of Integrated Care,1340
14/09/2022,1268990,Care UK Partnerships Ltd T/a,,Bi-Borough Director of Integrated Care,1340
14/09/2022,1268990,Care UK Partnerships Ltd T/a,,Bi-Borough Director of Integrated Care,1118.57
14/09/2022,1268990,Care UK Partnerships Ltd T/a,,Bi-Borough Director of Integrated Care,1118.57
14/09/2022,1268990,Care UK Partnerships Ltd T/a,,Bi-Borough Director of Integrated Care,1400
14/09/2022,1268990,Care UK Partnerships Ltd T/a,,Bi-Borough Director of Integrated Care,1400
19/07/2022,1245095,Centrust Care Homes Ltd,,Bi-Borough Director of Integrated Care,5537.8
16/08/2022,1245095,Centrust Care Homes Ltd,,Bi-Borough Director of Integrated Care,5537.8
14/09/2022,1245095,Centrust Care Homes Ltd,,Bi-Borough Director of Integrated Care,5537.8
19/07/2022,1244165,Chiswick Nursing Centre,,Bi-Borough Director of Integrated Care,2400
19/07/2022,1244165,Chiswick Nursing Centre,,Bi-Borough Director of Integrated Care,2486.36
16/08/2022,1244165,Chiswick Nursing Centre,,Bi-Borough Director of Integrated Care,2400
16/08/2022,1244165,Chiswick Nursing Centre,,Bi-Borough Director of Integrated Care,2486.36
14/09/2022,1244165,Chiswick Nursing Centre,,Bi-Borough Director of Integrated Care,2400
14/09/2022,1244165,Chiswick Nursing Centre,,Bi-Borough Director of Integrated Care,2486.36
19/07/2022,1290027,Christ The King Residential Care Ho,,Bi-Borough Director of Integrated Care,2900
19/07/2022,1290027,Christ The King Residential Care Ho,,Bi-Borough Director of Integrated Care,2900
16/08/2022,1290027,Christ The King Residential Care Ho,,Bi-Borough Director of Integrated Care,2900
16/08/2022,1290027,Christ The King Residential Care Ho,,Bi-Borough Director of Integrated Care,2900
14/09/2022,1290027,Christ The King Residential Care Ho,,Bi-Borough Director of Integrated Care,2900
14/09/2022,1290027,Christ The King Residential Care Ho,,Bi-Borough Director of Integrated Care,2900
19/07/2022,1243457,Cmg Homes Ltd - The Care House,,Bi-Borough Director of Integrated Care,6141.52
19/07/2022,1243457,Cmg Homes Ltd - The Care House,,Bi-Borough Director of Integrated Care,6141.52
16/08/2022,1243457,Cmg Homes Ltd - The Care House,,Bi-Borough Director of Integrated Care,6141.52
16/08/2022,1243457,Cmg Homes Ltd - The Care House,,Bi-Borough Director of Integrated Care,6141.52
14/09/2022,1243457,Cmg Homes Ltd - The Care House,,Bi-Borough Director of Integrated Care,6141.52
14/09/2022,1243457,Cmg Homes Ltd - The Care House,,Bi-Borough Director of Integrated Care,6141.52
19/07/2022,1285247,Cognithan Limited,,Bi-Borough Director of Integrated Care,2200
19/07/2022,1285247,Cognithan Limited,,Bi-Borough Director of Integrated Care,2200
16/08/2022,1285247,Cognithan Limited,,Bi-Borough Director of Integrated Care,2200
16/08/2022,1285247,Cognithan Limited,,Bi-Borough Director of Integrated Care,2200
14/09/2022,1285247,Cognithan Limited,,Bi-Borough Director of Integrated Care,2200
14/09/2022,1285247,Cognithan Limited,,Bi-Borough Director of Integrated Care,2200
14/09/2022,1246602,Community Housing Therapy,,Bi-Borough Director of Integrated Care,8678.57
14/09/2022,1246602,Community Housing Therapy,,Bi-Borough Director of Integrated Care,8678.57
19/07/2022,1243461,Connifers Care Ltd T/a Rowan,,Bi-Borough Director of Integrated Care,1598
19/07/2022,1243461,Connifers Care Ltd T/a Rowan,,Bi-Borough Director of Integrated Care,1598
19/07/2022,1243461,Connifers Care Ltd T/a Rowan,,Bi-Borough Director of Integrated Care,2374
19/07/2022,1243461,Connifers Care Ltd T/a Rowan,,Bi-Borough Director of Integrated Care,2374
19/07/2022,1243461,Connifers Care Ltd T/a Rowan,,Bi-Borough Director of Integrated Care,18382.53
19/07/2022,1243461,Connifers Care Ltd T/a Rowan,,Bi-Borough Director of Integrated Care,18382.79
19/07/2022,1243461,Connifers Care Ltd T/a Rowan,,Bi-Borough Director of Integrated Care,1745.36
19/07/2022,1243461,Connifers Care Ltd T/a Rowan,,Bi-Borough Director of Integrated Care,1745.36
19/07/2022,1243461,Connifers Care Ltd T/a Rowan,,Bi-Borough Director of Integrated Care,1220
19/07/2022,1243461,Connifers Care Ltd T/a Rowan,,Bi-Borough Director of Integrated Care,4980
19/07/2022,1243461,Connifers Care Ltd T/a Rowan,,Bi-Borough Director of Integrated Care,2521.4
19/07/2022,1243461,Connifers Care Ltd T/a Rowan,,Bi-Borough Director of Integrated Care,2521.4
19/07/2022,1243461,Connifers Care Ltd T/a Rowan,,Bi-Borough Director of Integrated Care,3061
19/07/2022,1243461,Connifers Care Ltd T/a Rowan,,Bi-Borough Director of Integrated Care,3069
16/08/2022,1243461,Connifers Care Ltd T/a Rowan,,Bi-Borough Director of Integrated Care,2521.4
16/08/2022,1243461,Connifers Care Ltd T/a Rowan,,Bi-Borough Director of Integrated Care,2521.4
16/08/2022,1243461,Connifers Care Ltd T/a Rowan,,Bi-Borough Director of Integrated Care,1745.36
16/08/2022,1243461,Connifers Care Ltd T/a Rowan,,Bi-Borough Director of Integrated Care,1745.36
16/08/2022,1243461,Connifers Care Ltd T/a Rowan,,Bi-Borough Director of Integrated Care,1220
16/08/2022,1243461,Connifers Care Ltd T/a Rowan,,Bi-Borough Director of Integrated Care,4980
16/08/2022,1243461,Connifers Care Ltd T/a Rowan,,Bi-Borough Director of Integrated Care,3061
16/08/2022,1243461,Connifers Care Ltd T/a Rowan,,Bi-Borough Director of Integrated Care,3069
16/08/2022,1243461,Connifers Care Ltd T/a Rowan,,Bi-Borough Director of Integrated Care,2374
16/08/2022,1243461,Connifers Care Ltd T/a Rowan,,Bi-Borough Director of Integrated Care,2374
16/08/2022,1243461,Connifers Care Ltd T/a Rowan,,Bi-Borough Director of Integrated Care,1598
16/08/2022,1243461,Connifers Care Ltd T/a Rowan,,Bi-Borough Director of Integrated Care,1598
16/08/2022,1243461,Connifers Care Ltd T/a Rowan,,Bi-Borough Director of Integrated Care,2875.48
16/08/2022,1243461,Connifers Care Ltd T/a Rowan,,Bi-Borough Director of Integrated Care,2875.52
14/09/2022,1243461,Connifers Care Ltd T/a Rowan,,Bi-Borough Director of Integrated Care,3069
14/09/2022,1243461,Connifers Care Ltd T/a Rowan,,Bi-Borough Director of Integrated Care,3061
14/09/2022,1243461,Connifers Care Ltd T/a Rowan,,Bi-Borough Director of Integrated Care,2374
14/09/2022,1243461,Connifers Care Ltd T/a Rowan,,Bi-Borough Director of Integrated Care,2374
